{"text_format":"1","workbook":"xlsx","n_sheets":3,"sheets":["TDB Reclamations","Réclamations","Don't delete"],"not_rendered":{"charts":0,"images":0,"macros":1,"external_links":0,"defined_names":32,"comments":0,"pivot_tables":0},"unopened":[],"bounds":{"document_bytes":16777216,"sheet_cells":100000,"rows_first":2000,"rows_last":500,"rows_between":2000,"halvings":0,"cell_chars":16384,"cell_head_chars":4096},"cells_cut":0,"cells_raw":0,"read":"whole","date_system":"1900"}

{"sheet":"TDB Reclamations","index":0,"n_rows":37,"n_cols":37,"rows_kept":37,"cut":false,"hidden":false,"merged":[[0,16,0,18],[0,1,0,3],[0,4,0,6],[0,7,0,9],[0,10,0,12],[0,13,0,15],[0,34,0,36],[0,19,0,21],[0,22,0,24],[0,25,0,27],[0,28,0,30],[0,31,0,33]]}
[null,"Showroom Akwa",null,null,"Showroom Bafoussam",null,null,"Showroom Yaounde",null,null,"Showroom Bonamoussadi",null,null,"Showroom Bonanjo",null,null,"Showroom Garoua",null,null,"Shop Bastos",null,null,"Shop Essos",null,null,"Shop Peyrissac",null,null,"Back Office",null,null,"Front Office",null,null,"Direction Générale"]
["DATES","Informations ","Plaintes","Support_Technique","Informations ","Plaintes","Support_Technique","Informations ","Plaintes","Support_Technique","Informations ","Plaintes","Support_Technique","Informations ","Plaintes","Support_Technique","Informations ","Plaintes","Support_Technique","Informations ","Plaintes","Support_Technique","Informations ","Plaintes","Support_Technique","Informations ","Plaintes","Support_Technique","Informations ","Plaintes","Support_Technique","Informations ","Plaintes","Support_Technique","Informations ","Plaintes","Support_Technique"]
["2018-01-01",{"$f":"SUMPRODUCT((Réclamations!$B$2:$B$32=$A3)*(Réclamations!$K$2:$K$32=B$2)*(Réclamations!$C$2:$C$32=$B$1))","v":0},{"$f":"SUMPRODUCT((Réclamations!$B$2:$B$32=$A3)*(Réclamations!$K$2:$K$32=C$2)*(Réclamations!$C$2:$C$32=$B$1))","v":0},{"$f":"SUMPRODUCT((Réclamations!$B$2:$B$32=$A3)*(Réclamations!$K$2:$K$32=D$2)*(Réclamations!$C$2:$C$32=$B$1))","v":0},{"$f":"SUMPRODUCT((Réclamations!$B$2:$B$32=$A3)*(Réclamations!$K$2:$K$32=E$2)*(Réclamations!$C$2:$C$32=$E$1))","v":0},{"$f":"SUMPRODUCT((Réclamations!$B$2:$B$32=$A3)*(Réclamations!$K$2:$K$32=F$2)*(Réclamations!$C$2:$C$32=$E$1))","v":0},{"$f":"SUMPRODUCT((Réclamations!$B$2:$B$32=$A3)*(Réclamations!$K$2:$K$32=G$2)*(Réclamations!$C$2:$C$32=$E$1))","v":0},{"$f":"SUMPRODUCT((Réclamations!$B$2:$B$32=$A3)*(Réclamations!$K$2:$K$32=H$2)*(Réclamations!$C$2:$C$32=$H$1))","v":0},{"$f":"SUMPRODUCT((Réclamations!$B$2:$B$32=$A3)*(Réclamations!$K$2:$K$32=I$2)*(Réclamations!$C$2:$C$32=$H$1))","v":0},{"$f":"SUMPRODUCT((Réclamations!$B$2:$B$32=$A3)*(Réclamations!$K$2:$K$32=J$2)*(Réclamations!$C$2:$C$32=$H$1))","v":0},{"$f":"SUMPRODUCT((Réclamations!$B$2:$B$32=$A3)*(Réclamations!$K$2:$K$32=K$2)*(Réclamations!$C$2:$C$32=$K$1))","v":0},{"$f":"SUMPRODUCT((Réclamations!$B$2:$B$32=$A3)*(Réclamations!$K$2:$K$32=L$2)*(Réclamations!$C$2:$C$32=$K$1))","v":0},{"$f":"SUMPRODUCT((Réclamations!$B$2:$B$32=$A3)*(Réclamations!$K$2:$K$32=M$2)*(Réclamations!$C$2:$C$32=$K$1))","v":0},{"$f":"SUMPRODUCT((Réclamations!$B$2:$B$32=$A3)*(Réclamations!$K$2:$K$32=N$2)*(Réclamations!$C$2:$C$32=$N$1))","v":0},{"$f":"SUMPRODUCT((Réclamations!$B$2:$B$32=$A3)*(Réclamations!$K$2:$K$32=O$2)*(Réclamations!$C$2:$C$32=$N$1))","v":0},{"$f":"SUMPRODUCT((Réclamations!$B$2:$B$32=$A3)*(Réclamations!$K$2:$K$32=P$2)*(Réclamations!$C$2:$C$32=$N$1))","v":0},{"$f":"SUMPRODUCT((Réclamations!$B$2:$B$32=$A3)*(Réclamations!$K$2:$K$32=Q$2)*(Réclamations!$C$2:$C$32=$Q$1))","v":0},{"$f":"SUMPRODUCT((Réclamations!$B$2:$B$32=$A3)*(Réclamations!$K$2:$K$32=R$2)*(Réclamations!$C$2:$C$32=$Q$1))","v":0},{"$f":"SUMPRODUCT((Réclamations!$B$2:$B$32=$A3)*(Réclamations!$K$2:$K$32=S$2)*(Réclamations!$C$2:$C$32=$Q$1))","v":0},{"$f":"SUMPRODUCT((Réclamations!$B$2:$B$32=$A3)*(Réclamations!$K$2:$K$32=T$2)*(Réclamations!$C$2:$C$32=$T$1))","v":0},{"$f":"SUMPRODUCT((Réclamations!$B$2:$B$32=$A3)*(Réclamations!$K$2:$K$32=U$2)*(Réclamations!$C$2:$C$32=$T$1))","v":0},{"$f":"SUMPRODUCT((Réclamations!$B$2:$B$32=$A3)*(Réclamations!$K$2:$K$32=V$2)*(Réclamations!$C$2:$C$32=$T$1))","v":0},{"$f":"SUMPRODUCT((Réclamations!$B$2:$B$32=$A3)*(Réclamations!$K$2:$K$32=W$2)*(Réclamations!$C$2:$C$32=$W$1))","v":0},{"$f":"SUMPRODUCT((Réclamations!$B$2:$B$32=$A3)*(Réclamations!$K$2:$K$32=X$2)*(Réclamations!$C$2:$C$32=$W$1))","v":0},{"$f":"SUMPRODUCT((Réclamations!$B$2:$B$32=$A3)*(Réclamations!$K$2:$K$32=Y$2)*(Réclamations!$C$2:$C$32=$W$1))","v":0},{"$f":"SUMPRODUCT((Réclamations!$B$2:$B$32=$A3)*(Réclamations!$K$2:$K$32=Z$2)*(Réclamations!$C$2:$C$32=$Z$1))","v":0},{"$f":"SUMPRODUCT((Réclamations!$B$2:$B$32=$A3)*(Réclamations!$K$2:$K$32=AA$2)*(Réclamations!$C$2:$C$32=$Z$1))","v":0},{"$f":"SUMPRODUCT((Réclamations!$B$2:$B$32=$A3)*(Réclamations!$K$2:$K$32=AB$2)*(Réclamations!$C$2:$C$32=$Z$1))","v":0},{"$f":"SUMPRODUCT((Réclamations!$B$2:$B$32=$A3)*(Réclamations!$K$2:$K$32=AC$2)*(Réclamations!$C$2:$C$32=$AC$1))","v":0},{"$f":"SUMPRODUCT((Réclamations!$B$2:$B$32=$A3)*(Réclamations!$K$2:$K$32=AD$2)*(Réclamations!$C$2:$C$32=$AC$1))","v":0},{"$f":"SUMPRODUCT((Réclamations!$B$2:$B$32=$A3)*(Réclamations!$K$2:$K$32=AE$2)*(Réclamations!$C$2:$C$32=$AC$1))","v":0},{"$f":"SUMPRODUCT((Réclamations!$B$2:$B$32=$A3)*(Réclamations!$K$2:$K$32=AF$2)*(Réclamations!$C$2:$C$32=$AF$1))","v":0},{"$f":"SUMPRODUCT((Réclamations!$B$2:$B$32=$A3)*(Réclamations!$K$2:$K$32=AG$2)*(Réclamations!$C$2:$C$32=$AF$1))","v":0},{"$f":"SUMPRODUCT((Réclamations!$B$2:$B$32=$A3)*(Réclamations!$K$2:$K$32=AH$2)*(Réclamations!$C$2:$C$32=$AF$1))","v":0},{"$f":"SUMPRODUCT((Réclamations!$B$2:$B$32=$A3)*(Réclamations!$K$2:$K$32=AI$2)*(Réclamations!$C$2:$C$32=$AI$1))","v":0},{"$f":"SUMPRODUCT((Réclamations!$B$2:$B$32=$A3)*(Réclamations!$K$2:$K$32=AJ$2)*(Réclamations!$C$2:$C$32=$E$1))","v":0},{"$f":"SUMPRODUCT((Réclamations!$B$2:$B$32=$A3)*(Réclamations!$K$2:$K$32=AK$2)*(Réclamations!$C$2:$C$32=$E$1))","v":0}]
["2018-01-02",{"$f":"SUMPRODUCT((Réclamations!$B$2:$B$32=$A4)*(Réclamations!$K$2:$K$32=B$2)*(Réclamations!$C$2:$C$32=$B$1))","v":0},{"$f":"SUMPRODUCT((Réclamations!$B$2:$B$32=$A4)*(Réclamations!$K$2:$K$32=C$2)*(Réclamations!$C$2:$C$32=$B$1))","v":1},{"$f":"SUMPRODUCT((Réclamations!$B$2:$B$32=$A4)*(Réclamations!$K$2:$K$32=D$2)*(Réclamations!$C$2:$C$32=$B$1))","v":1},{"$f":"SUMPRODUCT((Réclamations!$B$2:$B$32=$A4)*(Réclamations!$K$2:$K$32=E$2)*(Réclamations!$C$2:$C$32=$E$1))","v":0},{"$f":"SUMPRODUCT((Réclamations!$B$2:$B$32=$A4)*(Réclamations!$K$2:$K$32=F$2)*(Réclamations!$C$2:$C$32=$E$1))","v":0},{"$f":"SUMPRODUCT((Réclamations!$B$2:$B$32=$A4)*(Réclamations!$K$2:$K$32=G$2)*(Réclamations!$C$2:$C$32=$E$1))","v":0},{"$f":"SUMPRODUCT((Réclamations!$B$2:$B$32=$A4)*(Réclamations!$K$2:$K$32=H$2)*(Réclamations!$C$2:$C$32=$H$1))","v":0},{"$f":"SUMPRODUCT((Réclamations!$B$2:$B$32=$A4)*(Réclamations!$K$2:$K$32=I$2)*(Réclamations!$C$2:$C$32=$H$1))","v":0},{"$f":"SUMPRODUCT((Réclamations!$B$2:$B$32=$A4)*(Réclamations!$K$2:$K$32=J$2)*(Réclamations!$C$2:$C$32=$H$1))","v":0},{"$f":"SUMPRODUCT((Réclamations!$B$2:$B$32=$A4)*(Réclamations!$K$2:$K$32=K$2)*(Réclamations!$C$2:$C$32=$K$1))","v":0},{"$f":"SUMPRODUCT((Réclamations!$B$2:$B$32=$A4)*(Réclamations!$K$2:$K$32=L$2)*(Réclamations!$C$2:$C$32=$K$1))","v":0},{"$f":"SUMPRODUCT((Réclamations!$B$2:$B$32=$A4)*(Réclamations!$K$2:$K$32=M$2)*(Réclamations!$C$2:$C$32=$K$1))","v":0},{"$f":"SUMPRODUCT((Réclamations!$B$2:$B$32=$A4)*(Réclamations!$K$2:$K$32=N$2)*(Réclamations!$C$2:$C$32=$N$1))","v":0},{"$f":"SUMPRODUCT((Réclamations!$B$2:$B$32=$A4)*(Réclamations!$K$2:$K$32=O$2)*(Réclamations!$C$2:$C$32=$N$1))","v":0},{"$f":"SUMPRODUCT((Réclamations!$B$2:$B$32=$A4)*(Réclamations!$K$2:$K$32=P$2)*(Réclamations!$C$2:$C$32=$N$1))","v":0},{"$f":"SUMPRODUCT((Réclamations!$B$2:$B$32=$A4)*(Réclamations!$K$2:$K$32=Q$2)*(Réclamations!$C$2:$C$32=$Q$1))","v":0},{"$f":"SUMPRODUCT((Réclamations!$B$2:$B$32=$A4)*(Réclamations!$K$2:$K$32=R$2)*(Réclamations!$C$2:$C$32=$Q$1))","v":0},{"$f":"SUMPRODUCT((Réclamations!$B$2:$B$32=$A4)*(Réclamations!$K$2:$K$32=S$2)*(Réclamations!$C$2:$C$32=$Q$1))","v":0},{"$f":"SUMPRODUCT((Réclamations!$B$2:$B$32=$A4)*(Réclamations!$K$2:$K$32=T$2)*(Réclamations!$C$2:$C$32=$T$1))","v":0},{"$f":"SUMPRODUCT((Réclamations!$B$2:$B$32=$A4)*(Réclamations!$K$2:$K$32=U$2)*(Réclamations!$C$2:$C$32=$T$1))","v":0},{"$f":"SUMPRODUCT((Réclamations!$B$2:$B$32=$A4)*(Réclamations!$K$2:$K$32=V$2)*(Réclamations!$C$2:$C$32=$T$1))","v":0},{"$f":"SUMPRODUCT((Réclamations!$B$2:$B$32=$A4)*(Réclamations!$K$2:$K$32=W$2)*(Réclamations!$C$2:$C$32=$W$1))","v":0},{"$f":"SUMPRODUCT((Réclamations!$B$2:$B$32=$A4)*(Réclamations!$K$2:$K$32=X$2)*(Réclamations!$C$2:$C$32=$W$1))","v":0},{"$f":"SUMPRODUCT((Réclamations!$B$2:$B$32=$A4)*(Réclamations!$K$2:$K$32=Y$2)*(Réclamations!$C$2:$C$32=$W$1))","v":0},{"$f":"SUMPRODUCT((Réclamations!$B$2:$B$32=$A4)*(Réclamations!$K$2:$K$32=Z$2)*(Réclamations!$C$2:$C$32=$Z$1))","v":0},{"$f":"SUMPRODUCT((Réclamations!$B$2:$B$32=$A4)*(Réclamations!$K$2:$K$32=AA$2)*(Réclamations!$C$2:$C$32=$Z$1))","v":0},{"$f":"SUMPRODUCT((Réclamations!$B$2:$B$32=$A4)*(Réclamations!$K$2:$K$32=AB$2)*(Réclamations!$C$2:$C$32=$Z$1))","v":0},{"$f":"SUMPRODUCT((Réclamations!$B$2:$B$32=$A4)*(Réclamations!$K$2:$K$32=AC$2)*(Réclamations!$C$2:$C$32=$AC$1))","v":0},{"$f":"SUMPRODUCT((Réclamations!$B$2:$B$32=$A4)*(Réclamations!$K$2:$K$32=AD$2)*(Réclamations!$C$2:$C$32=$AC$1))","v":0},{"$f":"SUMPRODUCT((Réclamations!$B$2:$B$32=$A4)*(Réclamations!$K$2:$K$32=AE$2)*(Réclamations!$C$2:$C$32=$AC$1))","v":0},{"$f":"SUMPRODUCT((Réclamations!$B$2:$B$32=$A4)*(Réclamations!$K$2:$K$32=AF$2)*(Réclamations!$C$2:$C$32=$AF$1))","v":0},{"$f":"SUMPRODUCT((Réclamations!$B$2:$B$32=$A4)*(Réclamations!$K$2:$K$32=AG$2)*(Réclamations!$C$2:$C$32=$AF$1))","v":0},{"$f":"SUMPRODUCT((Réclamations!$B$2:$B$32=$A4)*(Réclamations!$K$2:$K$32=AH$2)*(Réclamations!$C$2:$C$32=$AF$1))","v":0},{"$f":"SUMPRODUCT((Réclamations!$B$2:$B$32=$A4)*(Réclamations!$K$2:$K$32=AI$2)*(Réclamations!$C$2:$C$32=$AI$1))","v":0},{"$f":"SUMPRODUCT((Réclamations!$B$2:$B$32=$A4)*(Réclamations!$K$2:$K$32=AJ$2)*(Réclamations!$C$2:$C$32=$E$1))","v":0},{"$f":"SUMPRODUCT((Réclamations!$B$2:$B$32=$A4)*(Réclamations!$K$2:$K$32=AK$2)*(Réclamations!$C$2:$C$32=$E$1))","v":0}]
["2018-01-03",{"$f":"SUMPRODUCT((Réclamations!$B$2:$B$32=$A5)*(Réclamations!$K$2:$K$32=B$2)*(Réclamations!$C$2:$C$32=$B$1))","v":0},{"$f":"SUMPRODUCT((Réclamations!$B$2:$B$32=$A5)*(Réclamations!$K$2:$K$32=C$2)*(Réclamations!$C$2:$C$32=$B$1))","v":0},{"$f":"SUMPRODUCT((Réclamations!$B$2:$B$32=$A5)*(Réclamations!$K$2:$K$32=D$2)*(Réclamations!$C$2:$C$32=$B$1))","v":0},{"$f":"SUMPRODUCT((Réclamations!$B$2:$B$32=$A5)*(Réclamations!$K$2:$K$32=E$2)*(Réclamations!$C$2:$C$32=$E$1))","v":0},{"$f":"SUMPRODUCT((Réclamations!$B$2:$B$32=$A5)*(Réclamations!$K$2:$K$32=F$2)*(Réclamations!$C$2:$C$32=$E$1))","v":0},{"$f":"SUMPRODUCT((Réclamations!$B$2:$B$32=$A5)*(Réclamations!$K$2:$K$32=G$2)*(Réclamations!$C$2:$C$32=$E$1))","v":0},{"$f":"SUMPRODUCT((Réclamations!$B$2:$B$32=$A5)*(Réclamations!$K$2:$K$32=H$2)*(Réclamations!$C$2:$C$32=$H$1))","v":0},{"$f":"SUMPRODUCT((Réclamations!$B$2:$B$32=$A5)*(Réclamations!$K$2:$K$32=I$2)*(Réclamations!$C$2:$C$32=$H$1))","v":0},{"$f":"SUMPRODUCT((Réclamations!$B$2:$B$32=$A5)*(Réclamations!$K$2:$K$32=J$2)*(Réclamations!$C$2:$C$32=$H$1))","v":0},{"$f":"SUMPRODUCT((Réclamations!$B$2:$B$32=$A5)*(Réclamations!$K$2:$K$32=K$2)*(Réclamations!$C$2:$C$32=$K$1))","v":0},{"$f":"SUMPRODUCT((Réclamations!$B$2:$B$32=$A5)*(Réclamations!$K$2:$K$32=L$2)*(Réclamations!$C$2:$C$32=$K$1))","v":0},{"$f":"SUMPRODUCT((Réclamations!$B$2:$B$32=$A5)*(Réclamations!$K$2:$K$32=M$2)*(Réclamations!$C$2:$C$32=$K$1))","v":0},{"$f":"SUMPRODUCT((Réclamations!$B$2:$B$32=$A5)*(Réclamations!$K$2:$K$32=N$2)*(Réclamations!$C$2:$C$32=$N$1))","v":0},{"$f":"SUMPRODUCT((Réclamations!$B$2:$B$32=$A5)*(Réclamations!$K$2:$K$32=O$2)*(Réclamations!$C$2:$C$32=$N$1))","v":0},{"$f":"SUMPRODUCT((Réclamations!$B$2:$B$32=$A5)*(Réclamations!$K$2:$K$32=P$2)*(Réclamations!$C$2:$C$32=$N$1))","v":0},{"$f":"SUMPRODUCT((Réclamations!$B$2:$B$32=$A5)*(Réclamations!$K$2:$K$32=Q$2)*(Réclamations!$C$2:$C$32=$Q$1))","v":0},{"$f":"SUMPRODUCT((Réclamations!$B$2:$B$32=$A5)*(Réclamations!$K$2:$K$32=R$2)*(Réclamations!$C$2:$C$32=$Q$1))","v":0},{"$f":"SUMPRODUCT((Réclamations!$B$2:$B$32=$A5)*(Réclamations!$K$2:$K$32=S$2)*(Réclamations!$C$2:$C$32=$Q$1))","v":0},{"$f":"SUMPRODUCT((Réclamations!$B$2:$B$32=$A5)*(Réclamations!$K$2:$K$32=T$2)*(Réclamations!$C$2:$C$32=$T$1))","v":0},{"$f":"SUMPRODUCT((Réclamations!$B$2:$B$32=$A5)*(Réclamations!$K$2:$K$32=U$2)*(Réclamations!$C$2:$C$32=$T$1))","v":0},{"$f":"SUMPRODUCT((Réclamations!$B$2:$B$32=$A5)*(Réclamations!$K$2:$K$32=V$2)*(Réclamations!$C$2:$C$32=$T$1))","v":0},{"$f":"SUMPRODUCT((Réclamations!$B$2:$B$32=$A5)*(Réclamations!$K$2:$K$32=W$2)*(Réclamations!$C$2:$C$32=$W$1))","v":0},{"$f":"SUMPRODUCT((Réclamations!$B$2:$B$32=$A5)*(Réclamations!$K$2:$K$32=X$2)*(Réclamations!$C$2:$C$32=$W$1))","v":0},{"$f":"SUMPRODUCT((Réclamations!$B$2:$B$32=$A5)*(Réclamations!$K$2:$K$32=Y$2)*(Réclamations!$C$2:$C$32=$W$1))","v":0},{"$f":"SUMPRODUCT((Réclamations!$B$2:$B$32=$A5)*(Réclamations!$K$2:$K$32=Z$2)*(Réclamations!$C$2:$C$32=$Z$1))","v":0},{"$f":"SUMPRODUCT((Réclamations!$B$2:$B$32=$A5)*(Réclamations!$K$2:$K$32=AA$2)*(Réclamations!$C$2:$C$32=$Z$1))","v":0},{"$f":"SUMPRODUCT((Réclamations!$B$2:$B$32=$A5)*(Réclamations!$K$2:$K$32=AB$2)*(Réclamations!$C$2:$C$32=$Z$1))","v":0},{"$f":"SUMPRODUCT((Réclamations!$B$2:$B$32=$A5)*(Réclamations!$K$2:$K$32=AC$2)*(Réclamations!$C$2:$C$32=$AC$1))","v":0},{"$f":"SUMPRODUCT((Réclamations!$B$2:$B$32=$A5)*(Réclamations!$K$2:$K$32=AD$2)*(Réclamations!$C$2:$C$32=$AC$1))","v":0},{"$f":"SUMPRODUCT((Réclamations!$B$2:$B$32=$A5)*(Réclamations!$K$2:$K$32=AE$2)*(Réclamations!$C$2:$C$32=$AC$1))","v":0},{"$f":"SUMPRODUCT((Réclamations!$B$2:$B$32=$A5)*(Réclamations!$K$2:$K$32=AF$2)*(Réclamations!$C$2:$C$32=$AF$1))","v":0},{"$f":"SUMPRODUCT((Réclamations!$B$2:$B$32=$A5)*(Réclamations!$K$2:$K$32=AG$2)*(Réclamations!$C$2:$C$32=$AF$1))","v":0},{"$f":"SUMPRODUCT((Réclamations!$B$2:$B$32=$A5)*(Réclamations!$K$2:$K$32=AH$2)*(Réclamations!$C$2:$C$32=$AF$1))","v":0},{"$f":"SUMPRODUCT((Réclamations!$B$2:$B$32=$A5)*(Réclamations!$K$2:$K$32=AI$2)*(Réclamations!$C$2:$C$32=$AI$1))","v":0},{"$f":"SUMPRODUCT((Réclamations!$B$2:$B$32=$A5)*(Réclamations!$K$2:$K$32=AJ$2)*(Réclamations!$C$2:$C$32=$E$1))","v":0},{"$f":"SUMPRODUCT((Réclamations!$B$2:$B$32=$A5)*(Réclamations!$K$2:$K$32=AK$2)*(Réclamations!$C$2:$C$32=$E$1))","v":0}]
["2018-01-04",{"$f":"SUMPRODUCT((Réclamations!$B$2:$B$32=$A6)*(Réclamations!$K$2:$K$32=B$2)*(Réclamations!$C$2:$C$32=$B$1))","v":0},{"$f":"SUMPRODUCT((Réclamations!$B$2:$B$32=$A6)*(Réclamations!$K$2:$K$32=C$2)*(Réclamations!$C$2:$C$32=$B$1))","v":0},{"$f":"SUMPRODUCT((Réclamations!$B$2:$B$32=$A6)*(Réclamations!$K$2:$K$32=D$2)*(Réclamations!$C$2:$C$32=$B$1))","v":0},{"$f":"SUMPRODUCT((Réclamations!$B$2:$B$32=$A6)*(Réclamations!$K$2:$K$32=E$2)*(Réclamations!$C$2:$C$32=$E$1))","v":0},{"$f":"SUMPRODUCT((Réclamations!$B$2:$B$32=$A6)*(Réclamations!$K$2:$K$32=F$2)*(Réclamations!$C$2:$C$32=$E$1))","v":0},{"$f":"SUMPRODUCT((Réclamations!$B$2:$B$32=$A6)*(Réclamations!$K$2:$K$32=G$2)*(Réclamations!$C$2:$C$32=$E$1))","v":0},{"$f":"SUMPRODUCT((Réclamations!$B$2:$B$32=$A6)*(Réclamations!$K$2:$K$32=H$2)*(Réclamations!$C$2:$C$32=$H$1))","v":0},{"$f":"SUMPRODUCT((Réclamations!$B$2:$B$32=$A6)*(Réclamations!$K$2:$K$32=I$2)*(Réclamations!$C$2:$C$32=$H$1))","v":0},{"$f":"SUMPRODUCT((Réclamations!$B$2:$B$32=$A6)*(Réclamations!$K$2:$K$32=J$2)*(Réclamations!$C$2:$C$32=$H$1))","v":0},{"$f":"SUMPRODUCT((Réclamations!$B$2:$B$32=$A6)*(Réclamations!$K$2:$K$32=K$2)*(Réclamations!$C$2:$C$32=$K$1))","v":0},{"$f":"SUMPRODUCT((Réclamations!$B$2:$B$32=$A6)*(Réclamations!$K$2:$K$32=L$2)*(Réclamations!$C$2:$C$32=$K$1))","v":0},{"$f":"SUMPRODUCT((Réclamations!$B$2:$B$32=$A6)*(Réclamations!$K$2:$K$32=M$2)*(Réclamations!$C$2:$C$32=$K$1))","v":0},{"$f":"SUMPRODUCT((Réclamations!$B$2:$B$32=$A6)*(Réclamations!$K$2:$K$32=N$2)*(Réclamations!$C$2:$C$32=$N$1))","v":0},{"$f":"SUMPRODUCT((Réclamations!$B$2:$B$32=$A6)*(Réclamations!$K$2:$K$32=O$2)*(Réclamations!$C$2:$C$32=$N$1))","v":0},{"$f":"SUMPRODUCT((Réclamations!$B$2:$B$32=$A6)*(Réclamations!$K$2:$K$32=P$2)*(Réclamations!$C$2:$C$32=$N$1))","v":0},{"$f":"SUMPRODUCT((Réclamations!$B$2:$B$32=$A6)*(Réclamations!$K$2:$K$32=Q$2)*(Réclamations!$C$2:$C$32=$Q$1))","v":0},{"$f":"SUMPRODUCT((Réclamations!$B$2:$B$32=$A6)*(Réclamations!$K$2:$K$32=R$2)*(Réclamations!$C$2:$C$32=$Q$1))","v":0},{"$f":"SUMPRODUCT((Réclamations!$B$2:$B$32=$A6)*(Réclamations!$K$2:$K$32=S$2)*(Réclamations!$C$2:$C$32=$Q$1))","v":0},{"$f":"SUMPRODUCT((Réclamations!$B$2:$B$32=$A6)*(Réclamations!$K$2:$K$32=T$2)*(Réclamations!$C$2:$C$32=$T$1))","v":0},{"$f":"SUMPRODUCT((Réclamations!$B$2:$B$32=$A6)*(Réclamations!$K$2:$K$32=U$2)*(Réclamations!$C$2:$C$32=$T$1))","v":0},{"$f":"SUMPRODUCT((Réclamations!$B$2:$B$32=$A6)*(Réclamations!$K$2:$K$32=V$2)*(Réclamations!$C$2:$C$32=$T$1))","v":0},{"$f":"SUMPRODUCT((Réclamations!$B$2:$B$32=$A6)*(Réclamations!$K$2:$K$32=W$2)*(Réclamations!$C$2:$C$32=$W$1))","v":0},{"$f":"SUMPRODUCT((Réclamations!$B$2:$B$32=$A6)*(Réclamations!$K$2:$K$32=X$2)*(Réclamations!$C$2:$C$32=$W$1))","v":0},{"$f":"SUMPRODUCT((Réclamations!$B$2:$B$32=$A6)*(Réclamations!$K$2:$K$32=Y$2)*(Réclamations!$C$2:$C$32=$W$1))","v":0},{"$f":"SUMPRODUCT((Réclamations!$B$2:$B$32=$A6)*(Réclamations!$K$2:$K$32=Z$2)*(Réclamations!$C$2:$C$32=$Z$1))","v":0},{"$f":"SUMPRODUCT((Réclamations!$B$2:$B$32=$A6)*(Réclamations!$K$2:$K$32=AA$2)*(Réclamations!$C$2:$C$32=$Z$1))","v":0},{"$f":"SUMPRODUCT((Réclamations!$B$2:$B$32=$A6)*(Réclamations!$K$2:$K$32=AB$2)*(Réclamations!$C$2:$C$32=$Z$1))","v":0},{"$f":"SUMPRODUCT((Réclamations!$B$2:$B$32=$A6)*(Réclamations!$K$2:$K$32=AC$2)*(Réclamations!$C$2:$C$32=$AC$1))","v":0},{"$f":"SUMPRODUCT((Réclamations!$B$2:$B$32=$A6)*(Réclamations!$K$2:$K$32=AD$2)*(Réclamations!$C$2:$C$32=$AC$1))","v":0},{"$f":"SUMPRODUCT((Réclamations!$B$2:$B$32=$A6)*(Réclamations!$K$2:$K$32=AE$2)*(Réclamations!$C$2:$C$32=$AC$1))","v":0},{"$f":"SUMPRODUCT((Réclamations!$B$2:$B$32=$A6)*(Réclamations!$K$2:$K$32=AF$2)*(Réclamations!$C$2:$C$32=$AF$1))","v":0},{"$f":"SUMPRODUCT((Réclamations!$B$2:$B$32=$A6)*(Réclamations!$K$2:$K$32=AG$2)*(Réclamations!$C$2:$C$32=$AF$1))","v":0},{"$f":"SUMPRODUCT((Réclamations!$B$2:$B$32=$A6)*(Réclamations!$K$2:$K$32=AH$2)*(Réclamations!$C$2:$C$32=$AF$1))","v":0},{"$f":"SUMPRODUCT((Réclamations!$B$2:$B$32=$A6)*(Réclamations!$K$2:$K$32=AI$2)*(Réclamations!$C$2:$C$32=$AI$1))","v":0},{"$f":"SUMPRODUCT((Réclamations!$B$2:$B$32=$A6)*(Réclamations!$K$2:$K$32=AJ$2)*(Réclamations!$C$2:$C$32=$E$1))","v":0},{"$f":"SUMPRODUCT((Réclamations!$B$2:$B$32=$A6)*(Réclamations!$K$2:$K$32=AK$2)*(Réclamations!$C$2:$C$32=$E$1))","v":0}]
["2018-01-05",{"$f":"SUMPRODUCT((Réclamations!$B$2:$B$32=$A7)*(Réclamations!$K$2:$K$32=B$2)*(Réclamations!$C$2:$C$32=$B$1))","v":0},{"$f":"SUMPRODUCT((Réclamations!$B$2:$B$32=$A7)*(Réclamations!$K$2:$K$32=C$2)*(Réclamations!$C$2:$C$32=$B$1))","v":0},{"$f":"SUMPRODUCT((Réclamations!$B$2:$B$32=$A7)*(Réclamations!$K$2:$K$32=D$2)*(Réclamations!$C$2:$C$32=$B$1))","v":0},{"$f":"SUMPRODUCT((Réclamations!$B$2:$B$32=$A7)*(Réclamations!$K$2:$K$32=E$2)*(Réclamations!$C$2:$C$32=$E$1))","v":0},{"$f":"SUMPRODUCT((Réclamations!$B$2:$B$32=$A7)*(Réclamations!$K$2:$K$32=F$2)*(Réclamations!$C$2:$C$32=$E$1))","v":0},{"$f":"SUMPRODUCT((Réclamations!$B$2:$B$32=$A7)*(Réclamations!$K$2:$K$32=G$2)*(Réclamations!$C$2:$C$32=$E$1))","v":0},{"$f":"SUMPRODUCT((Réclamations!$B$2:$B$32=$A7)*(Réclamations!$K$2:$K$32=H$2)*(Réclamations!$C$2:$C$32=$H$1))","v":0},{"$f":"SUMPRODUCT((Réclamations!$B$2:$B$32=$A7)*(Réclamations!$K$2:$K$32=I$2)*(Réclamations!$C$2:$C$32=$H$1))","v":0},{"$f":"SUMPRODUCT((Réclamations!$B$2:$B$32=$A7)*(Réclamations!$K$2:$K$32=J$2)*(Réclamations!$C$2:$C$32=$H$1))","v":0},{"$f":"SUMPRODUCT((Réclamations!$B$2:$B$32=$A7)*(Réclamations!$K$2:$K$32=K$2)*(Réclamations!$C$2:$C$32=$K$1))","v":0},{"$f":"SUMPRODUCT((Réclamations!$B$2:$B$32=$A7)*(Réclamations!$K$2:$K$32=L$2)*(Réclamations!$C$2:$C$32=$K$1))","v":0},{"$f":"SUMPRODUCT((Réclamations!$B$2:$B$32=$A7)*(Réclamations!$K$2:$K$32=M$2)*(Réclamations!$C$2:$C$32=$K$1))","v":0},{"$f":"SUMPRODUCT((Réclamations!$B$2:$B$32=$A7)*(Réclamations!$K$2:$K$32=N$2)*(Réclamations!$C$2:$C$32=$N$1))","v":0},{"$f":"SUMPRODUCT((Réclamations!$B$2:$B$32=$A7)*(Réclamations!$K$2:$K$32=O$2)*(Réclamations!$C$2:$C$32=$N$1))","v":0},{"$f":"SUMPRODUCT((Réclamations!$B$2:$B$32=$A7)*(Réclamations!$K$2:$K$32=P$2)*(Réclamations!$C$2:$C$32=$N$1))","v":0},{"$f":"SUMPRODUCT((Réclamations!$B$2:$B$32=$A7)*(Réclamations!$K$2:$K$32=Q$2)*(Réclamations!$C$2:$C$32=$Q$1))","v":0},{"$f":"SUMPRODUCT((Réclamations!$B$2:$B$32=$A7)*(Réclamations!$K$2:$K$32=R$2)*(Réclamations!$C$2:$C$32=$Q$1))","v":0},{"$f":"SUMPRODUCT((Réclamations!$B$2:$B$32=$A7)*(Réclamations!$K$2:$K$32=S$2)*(Réclamations!$C$2:$C$32=$Q$1))","v":0},{"$f":"SUMPRODUCT((Réclamations!$B$2:$B$32=$A7)*(Réclamations!$K$2:$K$32=T$2)*(Réclamations!$C$2:$C$32=$T$1))","v":0},{"$f":"SUMPRODUCT((Réclamations!$B$2:$B$32=$A7)*(Réclamations!$K$2:$K$32=U$2)*(Réclamations!$C$2:$C$32=$T$1))","v":0},{"$f":"SUMPRODUCT((Réclamations!$B$2:$B$32=$A7)*(Réclamations!$K$2:$K$32=V$2)*(Réclamations!$C$2:$C$32=$T$1))","v":0},{"$f":"SUMPRODUCT((Réclamations!$B$2:$B$32=$A7)*(Réclamations!$K$2:$K$32=W$2)*(Réclamations!$C$2:$C$32=$W$1))","v":0},{"$f":"SUMPRODUCT((Réclamations!$B$2:$B$32=$A7)*(Réclamations!$K$2:$K$32=X$2)*(Réclamations!$C$2:$C$32=$W$1))","v":0},{"$f":"SUMPRODUCT((Réclamations!$B$2:$B$32=$A7)*(Réclamations!$K$2:$K$32=Y$2)*(Réclamations!$C$2:$C$32=$W$1))","v":0},{"$f":"SUMPRODUCT((Réclamations!$B$2:$B$32=$A7)*(Réclamations!$K$2:$K$32=Z$2)*(Réclamations!$C$2:$C$32=$Z$1))","v":0},{"$f":"SUMPRODUCT((Réclamations!$B$2:$B$32=$A7)*(Réclamations!$K$2:$K$32=AA$2)*(Réclamations!$C$2:$C$32=$Z$1))","v":0},{"$f":"SUMPRODUCT((Réclamations!$B$2:$B$32=$A7)*(Réclamations!$K$2:$K$32=AB$2)*(Réclamations!$C$2:$C$32=$Z$1))","v":0},{"$f":"SUMPRODUCT((Réclamations!$B$2:$B$32=$A7)*(Réclamations!$K$2:$K$32=AC$2)*(Réclamations!$C$2:$C$32=$AC$1))","v":0},{"$f":"SUMPRODUCT((Réclamations!$B$2:$B$32=$A7)*(Réclamations!$K$2:$K$32=AD$2)*(Réclamations!$C$2:$C$32=$AC$1))","v":0},{"$f":"SUMPRODUCT((Réclamations!$B$2:$B$32=$A7)*(Réclamations!$K$2:$K$32=AE$2)*(Réclamations!$C$2:$C$32=$AC$1))","v":0},{"$f":"SUMPRODUCT((Réclamations!$B$2:$B$32=$A7)*(Réclamations!$K$2:$K$32=AF$2)*(Réclamations!$C$2:$C$32=$AF$1))","v":0},{"$f":"SUMPRODUCT((Réclamations!$B$2:$B$32=$A7)*(Réclamations!$K$2:$K$32=AG$2)*(Réclamations!$C$2:$C$32=$AF$1))","v":0},{"$f":"SUMPRODUCT((Réclamations!$B$2:$B$32=$A7)*(Réclamations!$K$2:$K$32=AH$2)*(Réclamations!$C$2:$C$32=$AF$1))","v":0},{"$f":"SUMPRODUCT((Réclamations!$B$2:$B$32=$A7)*(Réclamations!$K$2:$K$32=AI$2)*(Réclamations!$C$2:$C$32=$AI$1))","v":0},{"$f":"SUMPRODUCT((Réclamations!$B$2:$B$32=$A7)*(Réclamations!$K$2:$K$32=AJ$2)*(Réclamations!$C$2:$C$32=$E$1))","v":0},{"$f":"SUMPRODUCT((Réclamations!$B$2:$B$32=$A7)*(Réclamations!$K$2:$K$32=AK$2)*(Réclamations!$C$2:$C$32=$E$1))","v":0}]
["2018-01-06",{"$f":"SUMPRODUCT((Réclamations!$B$2:$B$32=$A8)*(Réclamations!$K$2:$K$32=B$2)*(Réclamations!$C$2:$C$32=$B$1))","v":0},{"$f":"SUMPRODUCT((Réclamations!$B$2:$B$32=$A8)*(Réclamations!$K$2:$K$32=C$2)*(Réclamations!$C$2:$C$32=$B$1))","v":0},{"$f":"SUMPRODUCT((Réclamations!$B$2:$B$32=$A8)*(Réclamations!$K$2:$K$32=D$2)*(Réclamations!$C$2:$C$32=$B$1))","v":0},{"$f":"SUMPRODUCT((Réclamations!$B$2:$B$32=$A8)*(Réclamations!$K$2:$K$32=E$2)*(Réclamations!$C$2:$C$32=$E$1))","v":0},{"$f":"SUMPRODUCT((Réclamations!$B$2:$B$32=$A8)*(Réclamations!$K$2:$K$32=F$2)*(Réclamations!$C$2:$C$32=$E$1))","v":0},{"$f":"SUMPRODUCT((Réclamations!$B$2:$B$32=$A8)*(Réclamations!$K$2:$K$32=G$2)*(Réclamations!$C$2:$C$32=$E$1))","v":0},{"$f":"SUMPRODUCT((Réclamations!$B$2:$B$32=$A8)*(Réclamations!$K$2:$K$32=H$2)*(Réclamations!$C$2:$C$32=$H$1))","v":0},{"$f":"SUMPRODUCT((Réclamations!$B$2:$B$32=$A8)*(Réclamations!$K$2:$K$32=I$2)*(Réclamations!$C$2:$C$32=$H$1))","v":0},{"$f":"SUMPRODUCT((Réclamations!$B$2:$B$32=$A8)*(Réclamations!$K$2:$K$32=J$2)*(Réclamations!$C$2:$C$32=$H$1))","v":0},{"$f":"SUMPRODUCT((Réclamations!$B$2:$B$32=$A8)*(Réclamations!$K$2:$K$32=K$2)*(Réclamations!$C$2:$C$32=$K$1))","v":0},{"$f":"SUMPRODUCT((Réclamations!$B$2:$B$32=$A8)*(Réclamations!$K$2:$K$32=L$2)*(Réclamations!$C$2:$C$32=$K$1))","v":0},{"$f":"SUMPRODUCT((Réclamations!$B$2:$B$32=$A8)*(Réclamations!$K$2:$K$32=M$2)*(Réclamations!$C$2:$C$32=$K$1))","v":0},{"$f":"SUMPRODUCT((Réclamations!$B$2:$B$32=$A8)*(Réclamations!$K$2:$K$32=N$2)*(Réclamations!$C$2:$C$32=$N$1))","v":0},{"$f":"SUMPRODUCT((Réclamations!$B$2:$B$32=$A8)*(Réclamations!$K$2:$K$32=O$2)*(Réclamations!$C$2:$C$32=$N$1))","v":0},{"$f":"SUMPRODUCT((Réclamations!$B$2:$B$32=$A8)*(Réclamations!$K$2:$K$32=P$2)*(Réclamations!$C$2:$C$32=$N$1))","v":0},{"$f":"SUMPRODUCT((Réclamations!$B$2:$B$32=$A8)*(Réclamations!$K$2:$K$32=Q$2)*(Réclamations!$C$2:$C$32=$Q$1))","v":0},{"$f":"SUMPRODUCT((Réclamations!$B$2:$B$32=$A8)*(Réclamations!$K$2:$K$32=R$2)*(Réclamations!$C$2:$C$32=$Q$1))","v":0},{"$f":"SUMPRODUCT((Réclamations!$B$2:$B$32=$A8)*(Réclamations!$K$2:$K$32=S$2)*(Réclamations!$C$2:$C$32=$Q$1))","v":0},{"$f":"SUMPRODUCT((Réclamations!$B$2:$B$32=$A8)*(Réclamations!$K$2:$K$32=T$2)*(Réclamations!$C$2:$C$32=$T$1))","v":0},{"$f":"SUMPRODUCT((Réclamations!$B$2:$B$32=$A8)*(Réclamations!$K$2:$K$32=U$2)*(Réclamations!$C$2:$C$32=$T$1))","v":0},{"$f":"SUMPRODUCT((Réclamations!$B$2:$B$32=$A8)*(Réclamations!$K$2:$K$32=V$2)*(Réclamations!$C$2:$C$32=$T$1))","v":0},{"$f":"SUMPRODUCT((Réclamations!$B$2:$B$32=$A8)*(Réclamations!$K$2:$K$32=W$2)*(Réclamations!$C$2:$C$32=$W$1))","v":0},{"$f":"SUMPRODUCT((Réclamations!$B$2:$B$32=$A8)*(Réclamations!$K$2:$K$32=X$2)*(Réclamations!$C$2:$C$32=$W$1))","v":0},{"$f":"SUMPRODUCT((Réclamations!$B$2:$B$32=$A8)*(Réclamations!$K$2:$K$32=Y$2)*(Réclamations!$C$2:$C$32=$W$1))","v":0},{"$f":"SUMPRODUCT((Réclamations!$B$2:$B$32=$A8)*(Réclamations!$K$2:$K$32=Z$2)*(Réclamations!$C$2:$C$32=$Z$1))","v":0},{"$f":"SUMPRODUCT((Réclamations!$B$2:$B$32=$A8)*(Réclamations!$K$2:$K$32=AA$2)*(Réclamations!$C$2:$C$32=$Z$1))","v":0},{"$f":"SUMPRODUCT((Réclamations!$B$2:$B$32=$A8)*(Réclamations!$K$2:$K$32=AB$2)*(Réclamations!$C$2:$C$32=$Z$1))","v":0},{"$f":"SUMPRODUCT((Réclamations!$B$2:$B$32=$A8)*(Réclamations!$K$2:$K$32=AC$2)*(Réclamations!$C$2:$C$32=$AC$1))","v":0},{"$f":"SUMPRODUCT((Réclamations!$B$2:$B$32=$A8)*(Réclamations!$K$2:$K$32=AD$2)*(Réclamations!$C$2:$C$32=$AC$1))","v":0},{"$f":"SUMPRODUCT((Réclamations!$B$2:$B$32=$A8)*(Réclamations!$K$2:$K$32=AE$2)*(Réclamations!$C$2:$C$32=$AC$1))","v":0},{"$f":"SUMPRODUCT((Réclamations!$B$2:$B$32=$A8)*(Réclamations!$K$2:$K$32=AF$2)*(Réclamations!$C$2:$C$32=$AF$1))","v":0},{"$f":"SUMPRODUCT((Réclamations!$B$2:$B$32=$A8)*(Réclamations!$K$2:$K$32=AG$2)*(Réclamations!$C$2:$C$32=$AF$1))","v":0},{"$f":"SUMPRODUCT((Réclamations!$B$2:$B$32=$A8)*(Réclamations!$K$2:$K$32=AH$2)*(Réclamations!$C$2:$C$32=$AF$1))","v":0},{"$f":"SUMPRODUCT((Réclamations!$B$2:$B$32=$A8)*(Réclamations!$K$2:$K$32=AI$2)*(Réclamations!$C$2:$C$32=$AI$1))","v":0},{"$f":"SUMPRODUCT((Réclamations!$B$2:$B$32=$A8)*(Réclamations!$K$2:$K$32=AJ$2)*(Réclamations!$C$2:$C$32=$E$1))","v":0},{"$f":"SUMPRODUCT((Réclamations!$B$2:$B$32=$A8)*(Réclamations!$K$2:$K$32=AK$2)*(Réclamations!$C$2:$C$32=$E$1))","v":0}]
["2018-01-07",{"$f":"SUMPRODUCT((Réclamations!$B$2:$B$32=$A9)*(Réclamations!$K$2:$K$32=B$2)*(Réclamations!$C$2:$C$32=$B$1))","v":0},{"$f":"SUMPRODUCT((Réclamations!$B$2:$B$32=$A9)*(Réclamations!$K$2:$K$32=C$2)*(Réclamations!$C$2:$C$32=$B$1))","v":0},{"$f":"SUMPRODUCT((Réclamations!$B$2:$B$32=$A9)*(Réclamations!$K$2:$K$32=D$2)*(Réclamations!$C$2:$C$32=$B$1))","v":0},{"$f":"SUMPRODUCT((Réclamations!$B$2:$B$32=$A9)*(Réclamations!$K$2:$K$32=E$2)*(Réclamations!$C$2:$C$32=$E$1))","v":0},{"$f":"SUMPRODUCT((Réclamations!$B$2:$B$32=$A9)*(Réclamations!$K$2:$K$32=F$2)*(Réclamations!$C$2:$C$32=$E$1))","v":0},{"$f":"SUMPRODUCT((Réclamations!$B$2:$B$32=$A9)*(Réclamations!$K$2:$K$32=G$2)*(Réclamations!$C$2:$C$32=$E$1))","v":0},{"$f":"SUMPRODUCT((Réclamations!$B$2:$B$32=$A9)*(Réclamations!$K$2:$K$32=H$2)*(Réclamations!$C$2:$C$32=$H$1))","v":0},{"$f":"SUMPRODUCT((Réclamations!$B$2:$B$32=$A9)*(Réclamations!$K$2:$K$32=I$2)*(Réclamations!$C$2:$C$32=$H$1))","v":0},{"$f":"SUMPRODUCT((Réclamations!$B$2:$B$32=$A9)*(Réclamations!$K$2:$K$32=J$2)*(Réclamations!$C$2:$C$32=$H$1))","v":0},{"$f":"SUMPRODUCT((Réclamations!$B$2:$B$32=$A9)*(Réclamations!$K$2:$K$32=K$2)*(Réclamations!$C$2:$C$32=$K$1))","v":0},{"$f":"SUMPRODUCT((Réclamations!$B$2:$B$32=$A9)*(Réclamations!$K$2:$K$32=L$2)*(Réclamations!$C$2:$C$32=$K$1))","v":0},{"$f":"SUMPRODUCT((Réclamations!$B$2:$B$32=$A9)*(Réclamations!$K$2:$K$32=M$2)*(Réclamations!$C$2:$C$32=$K$1))","v":0},{"$f":"SUMPRODUCT((Réclamations!$B$2:$B$32=$A9)*(Réclamations!$K$2:$K$32=N$2)*(Réclamations!$C$2:$C$32=$N$1))","v":0},{"$f":"SUMPRODUCT((Réclamations!$B$2:$B$32=$A9)*(Réclamations!$K$2:$K$32=O$2)*(Réclamations!$C$2:$C$32=$N$1))","v":0},{"$f":"SUMPRODUCT((Réclamations!$B$2:$B$32=$A9)*(Réclamations!$K$2:$K$32=P$2)*(Réclamations!$C$2:$C$32=$N$1))","v":0},{"$f":"SUMPRODUCT((Réclamations!$B$2:$B$32=$A9)*(Réclamations!$K$2:$K$32=Q$2)*(Réclamations!$C$2:$C$32=$Q$1))","v":0},{"$f":"SUMPRODUCT((Réclamations!$B$2:$B$32=$A9)*(Réclamations!$K$2:$K$32=R$2)*(Réclamations!$C$2:$C$32=$Q$1))","v":0},{"$f":"SUMPRODUCT((Réclamations!$B$2:$B$32=$A9)*(Réclamations!$K$2:$K$32=S$2)*(Réclamations!$C$2:$C$32=$Q$1))","v":0},{"$f":"SUMPRODUCT((Réclamations!$B$2:$B$32=$A9)*(Réclamations!$K$2:$K$32=T$2)*(Réclamations!$C$2:$C$32=$T$1))","v":0},{"$f":"SUMPRODUCT((Réclamations!$B$2:$B$32=$A9)*(Réclamations!$K$2:$K$32=U$2)*(Réclamations!$C$2:$C$32=$T$1))","v":0},{"$f":"SUMPRODUCT((Réclamations!$B$2:$B$32=$A9)*(Réclamations!$K$2:$K$32=V$2)*(Réclamations!$C$2:$C$32=$T$1))","v":0},{"$f":"SUMPRODUCT((Réclamations!$B$2:$B$32=$A9)*(Réclamations!$K$2:$K$32=W$2)*(Réclamations!$C$2:$C$32=$W$1))","v":0},{"$f":"SUMPRODUCT((Réclamations!$B$2:$B$32=$A9)*(Réclamations!$K$2:$K$32=X$2)*(Réclamations!$C$2:$C$32=$W$1))","v":0},{"$f":"SUMPRODUCT((Réclamations!$B$2:$B$32=$A9)*(Réclamations!$K$2:$K$32=Y$2)*(Réclamations!$C$2:$C$32=$W$1))","v":0},{"$f":"SUMPRODUCT((Réclamations!$B$2:$B$32=$A9)*(Réclamations!$K$2:$K$32=Z$2)*(Réclamations!$C$2:$C$32=$Z$1))","v":0},{"$f":"SUMPRODUCT((Réclamations!$B$2:$B$32=$A9)*(Réclamations!$K$2:$K$32=AA$2)*(Réclamations!$C$2:$C$32=$Z$1))","v":0},{"$f":"SUMPRODUCT((Réclamations!$B$2:$B$32=$A9)*(Réclamations!$K$2:$K$32=AB$2)*(Réclamations!$C$2:$C$32=$Z$1))","v":0},{"$f":"SUMPRODUCT((Réclamations!$B$2:$B$32=$A9)*(Réclamations!$K$2:$K$32=AC$2)*(Réclamations!$C$2:$C$32=$AC$1))","v":0},{"$f":"SUMPRODUCT((Réclamations!$B$2:$B$32=$A9)*(Réclamations!$K$2:$K$32=AD$2)*(Réclamations!$C$2:$C$32=$AC$1))","v":0},{"$f":"SUMPRODUCT((Réclamations!$B$2:$B$32=$A9)*(Réclamations!$K$2:$K$32=AE$2)*(Réclamations!$C$2:$C$32=$AC$1))","v":0},{"$f":"SUMPRODUCT((Réclamations!$B$2:$B$32=$A9)*(Réclamations!$K$2:$K$32=AF$2)*(Réclamations!$C$2:$C$32=$AF$1))","v":0},{"$f":"SUMPRODUCT((Réclamations!$B$2:$B$32=$A9)*(Réclamations!$K$2:$K$32=AG$2)*(Réclamations!$C$2:$C$32=$AF$1))","v":0},{"$f":"SUMPRODUCT((Réclamations!$B$2:$B$32=$A9)*(Réclamations!$K$2:$K$32=AH$2)*(Réclamations!$C$2:$C$32=$AF$1))","v":0},{"$f":"SUMPRODUCT((Réclamations!$B$2:$B$32=$A9)*(Réclamations!$K$2:$K$32=AI$2)*(Réclamations!$C$2:$C$32=$AI$1))","v":0},{"$f":"SUMPRODUCT((Réclamations!$B$2:$B$32=$A9)*(Réclamations!$K$2:$K$32=AJ$2)*(Réclamations!$C$2:$C$32=$E$1))","v":0},{"$f":"SUMPRODUCT((Réclamations!$B$2:$B$32=$A9)*(Réclamations!$K$2:$K$32=AK$2)*(Réclamations!$C$2:$C$32=$E$1))","v":0}]
["2018-01-08",{"$f":"SUMPRODUCT((Réclamations!$B$2:$B$32=$A10)*(Réclamations!$K$2:$K$32=B$2)*(Réclamations!$C$2:$C$32=$B$1))","v":0},{"$f":"SUMPRODUCT((Réclamations!$B$2:$B$32=$A10)*(Réclamations!$K$2:$K$32=C$2)*(Réclamations!$C$2:$C$32=$B$1))","v":0},{"$f":"SUMPRODUCT((Réclamations!$B$2:$B$32=$A10)*(Réclamations!$K$2:$K$32=D$2)*(Réclamations!$C$2:$C$32=$B$1))","v":0},{"$f":"SUMPRODUCT((Réclamations!$B$2:$B$32=$A10)*(Réclamations!$K$2:$K$32=E$2)*(Réclamations!$C$2:$C$32=$E$1))","v":0},{"$f":"SUMPRODUCT((Réclamations!$B$2:$B$32=$A10)*(Réclamations!$K$2:$K$32=F$2)*(Réclamations!$C$2:$C$32=$E$1))","v":0},{"$f":"SUMPRODUCT((Réclamations!$B$2:$B$32=$A10)*(Réclamations!$K$2:$K$32=G$2)*(Réclamations!$C$2:$C$32=$E$1))","v":0},{"$f":"SUMPRODUCT((Réclamations!$B$2:$B$32=$A10)*(Réclamations!$K$2:$K$32=H$2)*(Réclamations!$C$2:$C$32=$H$1))","v":0},{"$f":"SUMPRODUCT((Réclamations!$B$2:$B$32=$A10)*(Réclamations!$K$2:$K$32=I$2)*(Réclamations!$C$2:$C$32=$H$1))","v":0},{"$f":"SUMPRODUCT((Réclamations!$B$2:$B$32=$A10)*(Réclamations!$K$2:$K$32=J$2)*(Réclamations!$C$2:$C$32=$H$1))","v":0},{"$f":"SUMPRODUCT((Réclamations!$B$2:$B$32=$A10)*(Réclamations!$K$2:$K$32=K$2)*(Réclamations!$C$2:$C$32=$K$1))","v":0},{"$f":"SUMPRODUCT((Réclamations!$B$2:$B$32=$A10)*(Réclamations!$K$2:$K$32=L$2)*(Réclamations!$C$2:$C$32=$K$1))","v":0},{"$f":"SUMPRODUCT((Réclamations!$B$2:$B$32=$A10)*(Réclamations!$K$2:$K$32=M$2)*(Réclamations!$C$2:$C$32=$K$1))","v":0},{"$f":"SUMPRODUCT((Réclamations!$B$2:$B$32=$A10)*(Réclamations!$K$2:$K$32=N$2)*(Réclamations!$C$2:$C$32=$N$1))","v":0},{"$f":"SUMPRODUCT((Réclamations!$B$2:$B$32=$A10)*(Réclamations!$K$2:$K$32=O$2)*(Réclamations!$C$2:$C$32=$N$1))","v":0},{"$f":"SUMPRODUCT((Réclamations!$B$2:$B$32=$A10)*(Réclamations!$K$2:$K$32=P$2)*(Réclamations!$C$2:$C$32=$N$1))","v":0},{"$f":"SUMPRODUCT((Réclamations!$B$2:$B$32=$A10)*(Réclamations!$K$2:$K$32=Q$2)*(Réclamations!$C$2:$C$32=$Q$1))","v":0},{"$f":"SUMPRODUCT((Réclamations!$B$2:$B$32=$A10)*(Réclamations!$K$2:$K$32=R$2)*(Réclamations!$C$2:$C$32=$Q$1))","v":0},{"$f":"SUMPRODUCT((Réclamations!$B$2:$B$32=$A10)*(Réclamations!$K$2:$K$32=S$2)*(Réclamations!$C$2:$C$32=$Q$1))","v":0},{"$f":"SUMPRODUCT((Réclamations!$B$2:$B$32=$A10)*(Réclamations!$K$2:$K$32=T$2)*(Réclamations!$C$2:$C$32=$T$1))","v":0},{"$f":"SUMPRODUCT((Réclamations!$B$2:$B$32=$A10)*(Réclamations!$K$2:$K$32=U$2)*(Réclamations!$C$2:$C$32=$T$1))","v":0},{"$f":"SUMPRODUCT((Réclamations!$B$2:$B$32=$A10)*(Réclamations!$K$2:$K$32=V$2)*(Réclamations!$C$2:$C$32=$T$1))","v":0},{"$f":"SUMPRODUCT((Réclamations!$B$2:$B$32=$A10)*(Réclamations!$K$2:$K$32=W$2)*(Réclamations!$C$2:$C$32=$W$1))","v":0},{"$f":"SUMPRODUCT((Réclamations!$B$2:$B$32=$A10)*(Réclamations!$K$2:$K$32=X$2)*(Réclamations!$C$2:$C$32=$W$1))","v":0},{"$f":"SUMPRODUCT((Réclamations!$B$2:$B$32=$A10)*(Réclamations!$K$2:$K$32=Y$2)*(Réclamations!$C$2:$C$32=$W$1))","v":0},{"$f":"SUMPRODUCT((Réclamations!$B$2:$B$32=$A10)*(Réclamations!$K$2:$K$32=Z$2)*(Réclamations!$C$2:$C$32=$Z$1))","v":0},{"$f":"SUMPRODUCT((Réclamations!$B$2:$B$32=$A10)*(Réclamations!$K$2:$K$32=AA$2)*(Réclamations!$C$2:$C$32=$Z$1))","v":0},{"$f":"SUMPRODUCT((Réclamations!$B$2:$B$32=$A10)*(Réclamations!$K$2:$K$32=AB$2)*(Réclamations!$C$2:$C$32=$Z$1))","v":0},{"$f":"SUMPRODUCT((Réclamations!$B$2:$B$32=$A10)*(Réclamations!$K$2:$K$32=AC$2)*(Réclamations!$C$2:$C$32=$AC$1))","v":0},{"$f":"SUMPRODUCT((Réclamations!$B$2:$B$32=$A10)*(Réclamations!$K$2:$K$32=AD$2)*(Réclamations!$C$2:$C$32=$AC$1))","v":0},{"$f":"SUMPRODUCT((Réclamations!$B$2:$B$32=$A10)*(Réclamations!$K$2:$K$32=AE$2)*(Réclamations!$C$2:$C$32=$AC$1))","v":0},{"$f":"SUMPRODUCT((Réclamations!$B$2:$B$32=$A10)*(Réclamations!$K$2:$K$32=AF$2)*(Réclamations!$C$2:$C$32=$AF$1))","v":0},{"$f":"SUMPRODUCT((Réclamations!$B$2:$B$32=$A10)*(Réclamations!$K$2:$K$32=AG$2)*(Réclamations!$C$2:$C$32=$AF$1))","v":0},{"$f":"SUMPRODUCT((Réclamations!$B$2:$B$32=$A10)*(Réclamations!$K$2:$K$32=AH$2)*(Réclamations!$C$2:$C$32=$AF$1))","v":0},{"$f":"SUMPRODUCT((Réclamations!$B$2:$B$32=$A10)*(Réclamations!$K$2:$K$32=AI$2)*(Réclamations!$C$2:$C$32=$AI$1))","v":0},{"$f":"SUMPRODUCT((Réclamations!$B$2:$B$32=$A10)*(Réclamations!$K$2:$K$32=AJ$2)*(Réclamations!$C$2:$C$32=$E$1))","v":0},{"$f":"SUMPRODUCT((Réclamations!$B$2:$B$32=$A10)*(Réclamations!$K$2:$K$32=AK$2)*(Réclamations!$C$2:$C$32=$E$1))","v":0}]
["2018-01-09",{"$f":"SUMPRODUCT((Réclamations!$B$2:$B$32=$A11)*(Réclamations!$K$2:$K$32=B$2)*(Réclamations!$C$2:$C$32=$B$1))","v":0},{"$f":"SUMPRODUCT((Réclamations!$B$2:$B$32=$A11)*(Réclamations!$K$2:$K$32=C$2)*(Réclamations!$C$2:$C$32=$B$1))","v":0},{"$f":"SUMPRODUCT((Réclamations!$B$2:$B$32=$A11)*(Réclamations!$K$2:$K$32=D$2)*(Réclamations!$C$2:$C$32=$B$1))","v":0},{"$f":"SUMPRODUCT((Réclamations!$B$2:$B$32=$A11)*(Réclamations!$K$2:$K$32=E$2)*(Réclamations!$C$2:$C$32=$E$1))","v":0},{"$f":"SUMPRODUCT((Réclamations!$B$2:$B$32=$A11)*(Réclamations!$K$2:$K$32=F$2)*(Réclamations!$C$2:$C$32=$E$1))","v":0},{"$f":"SUMPRODUCT((Réclamations!$B$2:$B$32=$A11)*(Réclamations!$K$2:$K$32=G$2)*(Réclamations!$C$2:$C$32=$E$1))","v":0},{"$f":"SUMPRODUCT((Réclamations!$B$2:$B$32=$A11)*(Réclamations!$K$2:$K$32=H$2)*(Réclamations!$C$2:$C$32=$H$1))","v":0},{"$f":"SUMPRODUCT((Réclamations!$B$2:$B$32=$A11)*(Réclamations!$K$2:$K$32=I$2)*(Réclamations!$C$2:$C$32=$H$1))","v":0},{"$f":"SUMPRODUCT((Réclamations!$B$2:$B$32=$A11)*(Réclamations!$K$2:$K$32=J$2)*(Réclamations!$C$2:$C$32=$H$1))","v":0},{"$f":"SUMPRODUCT((Réclamations!$B$2:$B$32=$A11)*(Réclamations!$K$2:$K$32=K$2)*(Réclamations!$C$2:$C$32=$K$1))","v":0},{"$f":"SUMPRODUCT((Réclamations!$B$2:$B$32=$A11)*(Réclamations!$K$2:$K$32=L$2)*(Réclamations!$C$2:$C$32=$K$1))","v":0},{"$f":"SUMPRODUCT((Réclamations!$B$2:$B$32=$A11)*(Réclamations!$K$2:$K$32=M$2)*(Réclamations!$C$2:$C$32=$K$1))","v":0},{"$f":"SUMPRODUCT((Réclamations!$B$2:$B$32=$A11)*(Réclamations!$K$2:$K$32=N$2)*(Réclamations!$C$2:$C$32=$N$1))","v":0},{"$f":"SUMPRODUCT((Réclamations!$B$2:$B$32=$A11)*(Réclamations!$K$2:$K$32=O$2)*(Réclamations!$C$2:$C$32=$N$1))","v":0},{"$f":"SUMPRODUCT((Réclamations!$B$2:$B$32=$A11)*(Réclamations!$K$2:$K$32=P$2)*(Réclamations!$C$2:$C$32=$N$1))","v":0},{"$f":"SUMPRODUCT((Réclamations!$B$2:$B$32=$A11)*(Réclamations!$K$2:$K$32=Q$2)*(Réclamations!$C$2:$C$32=$Q$1))","v":0},{"$f":"SUMPRODUCT((Réclamations!$B$2:$B$32=$A11)*(Réclamations!$K$2:$K$32=R$2)*(Réclamations!$C$2:$C$32=$Q$1))","v":0},{"$f":"SUMPRODUCT((Réclamations!$B$2:$B$32=$A11)*(Réclamations!$K$2:$K$32=S$2)*(Réclamations!$C$2:$C$32=$Q$1))","v":0},{"$f":"SUMPRODUCT((Réclamations!$B$2:$B$32=$A11)*(Réclamations!$K$2:$K$32=T$2)*(Réclamations!$C$2:$C$32=$T$1))","v":0},{"$f":"SUMPRODUCT((Réclamations!$B$2:$B$32=$A11)*(Réclamations!$K$2:$K$32=U$2)*(Réclamations!$C$2:$C$32=$T$1))","v":0},{"$f":"SUMPRODUCT((Réclamations!$B$2:$B$32=$A11)*(Réclamations!$K$2:$K$32=V$2)*(Réclamations!$C$2:$C$32=$T$1))","v":0},{"$f":"SUMPRODUCT((Réclamations!$B$2:$B$32=$A11)*(Réclamations!$K$2:$K$32=W$2)*(Réclamations!$C$2:$C$32=$W$1))","v":0},{"$f":"SUMPRODUCT((Réclamations!$B$2:$B$32=$A11)*(Réclamations!$K$2:$K$32=X$2)*(Réclamations!$C$2:$C$32=$W$1))","v":0},{"$f":"SUMPRODUCT((Réclamations!$B$2:$B$32=$A11)*(Réclamations!$K$2:$K$32=Y$2)*(Réclamations!$C$2:$C$32=$W$1))","v":0},{"$f":"SUMPRODUCT((Réclamations!$B$2:$B$32=$A11)*(Réclamations!$K$2:$K$32=Z$2)*(Réclamations!$C$2:$C$32=$Z$1))","v":0},{"$f":"SUMPRODUCT((Réclamations!$B$2:$B$32=$A11)*(Réclamations!$K$2:$K$32=AA$2)*(Réclamations!$C$2:$C$32=$Z$1))","v":0},{"$f":"SUMPRODUCT((Réclamations!$B$2:$B$32=$A11)*(Réclamations!$K$2:$K$32=AB$2)*(Réclamations!$C$2:$C$32=$Z$1))","v":0},{"$f":"SUMPRODUCT((Réclamations!$B$2:$B$32=$A11)*(Réclamations!$K$2:$K$32=AC$2)*(Réclamations!$C$2:$C$32=$AC$1))","v":0},{"$f":"SUMPRODUCT((Réclamations!$B$2:$B$32=$A11)*(Réclamations!$K$2:$K$32=AD$2)*(Réclamations!$C$2:$C$32=$AC$1))","v":0},{"$f":"SUMPRODUCT((Réclamations!$B$2:$B$32=$A11)*(Réclamations!$K$2:$K$32=AE$2)*(Réclamations!$C$2:$C$32=$AC$1))","v":0},{"$f":"SUMPRODUCT((Réclamations!$B$2:$B$32=$A11)*(Réclamations!$K$2:$K$32=AF$2)*(Réclamations!$C$2:$C$32=$AF$1))","v":0},{"$f":"SUMPRODUCT((Réclamations!$B$2:$B$32=$A11)*(Réclamations!$K$2:$K$32=AG$2)*(Réclamations!$C$2:$C$32=$AF$1))","v":0},{"$f":"SUMPRODUCT((Réclamations!$B$2:$B$32=$A11)*(Réclamations!$K$2:$K$32=AH$2)*(Réclamations!$C$2:$C$32=$AF$1))","v":0},{"$f":"SUMPRODUCT((Réclamations!$B$2:$B$32=$A11)*(Réclamations!$K$2:$K$32=AI$2)*(Réclamations!$C$2:$C$32=$AI$1))","v":0},{"$f":"SUMPRODUCT((Réclamations!$B$2:$B$32=$A11)*(Réclamations!$K$2:$K$32=AJ$2)*(Réclamations!$C$2:$C$32=$E$1))","v":0},{"$f":"SUMPRODUCT((Réclamations!$B$2:$B$32=$A11)*(Réclamations!$K$2:$K$32=AK$2)*(Réclamations!$C$2:$C$32=$E$1))","v":0}]
["2018-01-10",{"$f":"SUMPRODUCT((Réclamations!$B$2:$B$32=$A12)*(Réclamations!$K$2:$K$32=B$2)*(Réclamations!$C$2:$C$32=$B$1))","v":0},{"$f":"SUMPRODUCT((Réclamations!$B$2:$B$32=$A12)*(Réclamations!$K$2:$K$32=C$2)*(Réclamations!$C$2:$C$32=$B$1))","v":0},{"$f":"SUMPRODUCT((Réclamations!$B$2:$B$32=$A12)*(Réclamations!$K$2:$K$32=D$2)*(Réclamations!$C$2:$C$32=$B$1))","v":6},{"$f":"SUMPRODUCT((Réclamations!$B$2:$B$32=$A12)*(Réclamations!$K$2:$K$32=E$2)*(Réclamations!$C$2:$C$32=$E$1))","v":1},{"$f":"SUMPRODUCT((Réclamations!$B$2:$B$32=$A12)*(Réclamations!$K$2:$K$32=F$2)*(Réclamations!$C$2:$C$32=$E$1))","v":0},{"$f":"SUMPRODUCT((Réclamations!$B$2:$B$32=$A12)*(Réclamations!$K$2:$K$32=G$2)*(Réclamations!$C$2:$C$32=$E$1))","v":1},{"$f":"SUMPRODUCT((Réclamations!$B$2:$B$32=$A12)*(Réclamations!$K$2:$K$32=H$2)*(Réclamations!$C$2:$C$32=$H$1))","v":1},{"$f":"SUMPRODUCT((Réclamations!$B$2:$B$32=$A12)*(Réclamations!$K$2:$K$32=I$2)*(Réclamations!$C$2:$C$32=$H$1))","v":0},{"$f":"SUMPRODUCT((Réclamations!$B$2:$B$32=$A12)*(Réclamations!$K$2:$K$32=J$2)*(Réclamations!$C$2:$C$32=$H$1))","v":0},{"$f":"SUMPRODUCT((Réclamations!$B$2:$B$32=$A12)*(Réclamations!$K$2:$K$32=K$2)*(Réclamations!$C$2:$C$32=$K$1))","v":1},{"$f":"SUMPRODUCT((Réclamations!$B$2:$B$32=$A12)*(Réclamations!$K$2:$K$32=L$2)*(Réclamations!$C$2:$C$32=$K$1))","v":0},{"$f":"SUMPRODUCT((Réclamations!$B$2:$B$32=$A12)*(Réclamations!$K$2:$K$32=M$2)*(Réclamations!$C$2:$C$32=$K$1))","v":0},{"$f":"SUMPRODUCT((Réclamations!$B$2:$B$32=$A12)*(Réclamations!$K$2:$K$32=N$2)*(Réclamations!$C$2:$C$32=$N$1))","v":1},{"$f":"SUMPRODUCT((Réclamations!$B$2:$B$32=$A12)*(Réclamations!$K$2:$K$32=O$2)*(Réclamations!$C$2:$C$32=$N$1))","v":0},{"$f":"SUMPRODUCT((Réclamations!$B$2:$B$32=$A12)*(Réclamations!$K$2:$K$32=P$2)*(Réclamations!$C$2:$C$32=$N$1))","v":0},{"$f":"SUMPRODUCT((Réclamations!$B$2:$B$32=$A12)*(Réclamations!$K$2:$K$32=Q$2)*(Réclamations!$C$2:$C$32=$Q$1))","v":0},{"$f":"SUMPRODUCT((Réclamations!$B$2:$B$32=$A12)*(Réclamations!$K$2:$K$32=R$2)*(Réclamations!$C$2:$C$32=$Q$1))","v":0},{"$f":"SUMPRODUCT((Réclamations!$B$2:$B$32=$A12)*(Réclamations!$K$2:$K$32=S$2)*(Réclamations!$C$2:$C$32=$Q$1))","v":0},{"$f":"SUMPRODUCT((Réclamations!$B$2:$B$32=$A12)*(Réclamations!$K$2:$K$32=T$2)*(Réclamations!$C$2:$C$32=$T$1))","v":0},{"$f":"SUMPRODUCT((Réclamations!$B$2:$B$32=$A12)*(Réclamations!$K$2:$K$32=U$2)*(Réclamations!$C$2:$C$32=$T$1))","v":0},{"$f":"SUMPRODUCT((Réclamations!$B$2:$B$32=$A12)*(Réclamations!$K$2:$K$32=V$2)*(Réclamations!$C$2:$C$32=$T$1))","v":1},{"$f":"SUMPRODUCT((Réclamations!$B$2:$B$32=$A12)*(Réclamations!$K$2:$K$32=W$2)*(Réclamations!$C$2:$C$32=$W$1))","v":1},{"$f":"SUMPRODUCT((Réclamations!$B$2:$B$32=$A12)*(Réclamations!$K$2:$K$32=X$2)*(Réclamations!$C$2:$C$32=$W$1))","v":0},{"$f":"SUMPRODUCT((Réclamations!$B$2:$B$32=$A12)*(Réclamations!$K$2:$K$32=Y$2)*(Réclamations!$C$2:$C$32=$W$1))","v":0},{"$f":"SUMPRODUCT((Réclamations!$B$2:$B$32=$A12)*(Réclamations!$K$2:$K$32=Z$2)*(Réclamations!$C$2:$C$32=$Z$1))","v":1},{"$f":"SUMPRODUCT((Réclamations!$B$2:$B$32=$A12)*(Réclamations!$K$2:$K$32=AA$2)*(Réclamations!$C$2:$C$32=$Z$1))","v":0},{"$f":"SUMPRODUCT((Réclamations!$B$2:$B$32=$A12)*(Réclamations!$K$2:$K$32=AB$2)*(Réclamations!$C$2:$C$32=$Z$1))","v":0},{"$f":"SUMPRODUCT((Réclamations!$B$2:$B$32=$A12)*(Réclamations!$K$2:$K$32=AC$2)*(Réclamations!$C$2:$C$32=$AC$1))","v":0},{"$f":"SUMPRODUCT((Réclamations!$B$2:$B$32=$A12)*(Réclamations!$K$2:$K$32=AD$2)*(Réclamations!$C$2:$C$32=$AC$1))","v":0},{"$f":"SUMPRODUCT((Réclamations!$B$2:$B$32=$A12)*(Réclamations!$K$2:$K$32=AE$2)*(Réclamations!$C$2:$C$32=$AC$1))","v":0},{"$f":"SUMPRODUCT((Réclamations!$B$2:$B$32=$A12)*(Réclamations!$K$2:$K$32=AF$2)*(Réclamations!$C$2:$C$32=$AF$1))","v":0},{"$f":"SUMPRODUCT((Réclamations!$B$2:$B$32=$A12)*(Réclamations!$K$2:$K$32=AG$2)*(Réclamations!$C$2:$C$32=$AF$1))","v":0},{"$f":"SUMPRODUCT((Réclamations!$B$2:$B$32=$A12)*(Réclamations!$K$2:$K$32=AH$2)*(Réclamations!$C$2:$C$32=$AF$1))","v":0},{"$f":"SUMPRODUCT((Réclamations!$B$2:$B$32=$A12)*(Réclamations!$K$2:$K$32=AI$2)*(Réclamations!$C$2:$C$32=$AI$1))","v":0},{"$f":"SUMPRODUCT((Réclamations!$B$2:$B$32=$A12)*(Réclamations!$K$2:$K$32=AJ$2)*(Réclamations!$C$2:$C$32=$E$1))","v":0},{"$f":"SUMPRODUCT((Réclamations!$B$2:$B$32=$A12)*(Réclamations!$K$2:$K$32=AK$2)*(Réclamations!$C$2:$C$32=$E$1))","v":1}]
["2018-01-11",{"$f":"SUMPRODUCT((Réclamations!$B$2:$B$32=$A13)*(Réclamations!$K$2:$K$32=B$2)*(Réclamations!$C$2:$C$32=$B$1))","v":0},{"$f":"SUMPRODUCT((Réclamations!$B$2:$B$32=$A13)*(Réclamations!$K$2:$K$32=C$2)*(Réclamations!$C$2:$C$32=$B$1))","v":0},{"$f":"SUMPRODUCT((Réclamations!$B$2:$B$32=$A13)*(Réclamations!$K$2:$K$32=D$2)*(Réclamations!$C$2:$C$32=$B$1))","v":0},{"$f":"SUMPRODUCT((Réclamations!$B$2:$B$32=$A13)*(Réclamations!$K$2:$K$32=E$2)*(Réclamations!$C$2:$C$32=$E$1))","v":0},{"$f":"SUMPRODUCT((Réclamations!$B$2:$B$32=$A13)*(Réclamations!$K$2:$K$32=F$2)*(Réclamations!$C$2:$C$32=$E$1))","v":0},{"$f":"SUMPRODUCT((Réclamations!$B$2:$B$32=$A13)*(Réclamations!$K$2:$K$32=G$2)*(Réclamations!$C$2:$C$32=$E$1))","v":0},{"$f":"SUMPRODUCT((Réclamations!$B$2:$B$32=$A13)*(Réclamations!$K$2:$K$32=H$2)*(Réclamations!$C$2:$C$32=$H$1))","v":0},{"$f":"SUMPRODUCT((Réclamations!$B$2:$B$32=$A13)*(Réclamations!$K$2:$K$32=I$2)*(Réclamations!$C$2:$C$32=$H$1))","v":0},{"$f":"SUMPRODUCT((Réclamations!$B$2:$B$32=$A13)*(Réclamations!$K$2:$K$32=J$2)*(Réclamations!$C$2:$C$32=$H$1))","v":0},{"$f":"SUMPRODUCT((Réclamations!$B$2:$B$32=$A13)*(Réclamations!$K$2:$K$32=K$2)*(Réclamations!$C$2:$C$32=$K$1))","v":0},{"$f":"SUMPRODUCT((Réclamations!$B$2:$B$32=$A13)*(Réclamations!$K$2:$K$32=L$2)*(Réclamations!$C$2:$C$32=$K$1))","v":1},{"$f":"SUMPRODUCT((Réclamations!$B$2:$B$32=$A13)*(Réclamations!$K$2:$K$32=M$2)*(Réclamations!$C$2:$C$32=$K$1))","v":0},{"$f":"SUMPRODUCT((Réclamations!$B$2:$B$32=$A13)*(Réclamations!$K$2:$K$32=N$2)*(Réclamations!$C$2:$C$32=$N$1))","v":0},{"$f":"SUMPRODUCT((Réclamations!$B$2:$B$32=$A13)*(Réclamations!$K$2:$K$32=O$2)*(Réclamations!$C$2:$C$32=$N$1))","v":0},{"$f":"SUMPRODUCT((Réclamations!$B$2:$B$32=$A13)*(Réclamations!$K$2:$K$32=P$2)*(Réclamations!$C$2:$C$32=$N$1))","v":0},{"$f":"SUMPRODUCT((Réclamations!$B$2:$B$32=$A13)*(Réclamations!$K$2:$K$32=Q$2)*(Réclamations!$C$2:$C$32=$Q$1))","v":0},{"$f":"SUMPRODUCT((Réclamations!$B$2:$B$32=$A13)*(Réclamations!$K$2:$K$32=R$2)*(Réclamations!$C$2:$C$32=$Q$1))","v":0},{"$f":"SUMPRODUCT((Réclamations!$B$2:$B$32=$A13)*(Réclamations!$K$2:$K$32=S$2)*(Réclamations!$C$2:$C$32=$Q$1))","v":0},{"$f":"SUMPRODUCT((Réclamations!$B$2:$B$32=$A13)*(Réclamations!$K$2:$K$32=T$2)*(Réclamations!$C$2:$C$32=$T$1))","v":0},{"$f":"SUMPRODUCT((Réclamations!$B$2:$B$32=$A13)*(Réclamations!$K$2:$K$32=U$2)*(Réclamations!$C$2:$C$32=$T$1))","v":0},{"$f":"SUMPRODUCT((Réclamations!$B$2:$B$32=$A13)*(Réclamations!$K$2:$K$32=V$2)*(Réclamations!$C$2:$C$32=$T$1))","v":0},{"$f":"SUMPRODUCT((Réclamations!$B$2:$B$32=$A13)*(Réclamations!$K$2:$K$32=W$2)*(Réclamations!$C$2:$C$32=$W$1))","v":0},{"$f":"SUMPRODUCT((Réclamations!$B$2:$B$32=$A13)*(Réclamations!$K$2:$K$32=X$2)*(Réclamations!$C$2:$C$32=$W$1))","v":0},{"$f":"SUMPRODUCT((Réclamations!$B$2:$B$32=$A13)*(Réclamations!$K$2:$K$32=Y$2)*(Réclamations!$C$2:$C$32=$W$1))","v":0},{"$f":"SUMPRODUCT((Réclamations!$B$2:$B$32=$A13)*(Réclamations!$K$2:$K$32=Z$2)*(Réclamations!$C$2:$C$32=$Z$1))","v":0},{"$f":"SUMPRODUCT((Réclamations!$B$2:$B$32=$A13)*(Réclamations!$K$2:$K$32=AA$2)*(Réclamations!$C$2:$C$32=$Z$1))","v":0},{"$f":"SUMPRODUCT((Réclamations!$B$2:$B$32=$A13)*(Réclamations!$K$2:$K$32=AB$2)*(Réclamations!$C$2:$C$32=$Z$1))","v":0},{"$f":"SUMPRODUCT((Réclamations!$B$2:$B$32=$A13)*(Réclamations!$K$2:$K$32=AC$2)*(Réclamations!$C$2:$C$32=$AC$1))","v":0},{"$f":"SUMPRODUCT((Réclamations!$B$2:$B$32=$A13)*(Réclamations!$K$2:$K$32=AD$2)*(Réclamations!$C$2:$C$32=$AC$1))","v":0},{"$f":"SUMPRODUCT((Réclamations!$B$2:$B$32=$A13)*(Réclamations!$K$2:$K$32=AE$2)*(Réclamations!$C$2:$C$32=$AC$1))","v":0},{"$f":"SUMPRODUCT((Réclamations!$B$2:$B$32=$A13)*(Réclamations!$K$2:$K$32=AF$2)*(Réclamations!$C$2:$C$32=$AF$1))","v":0},{"$f":"SUMPRODUCT((Réclamations!$B$2:$B$32=$A13)*(Réclamations!$K$2:$K$32=AG$2)*(Réclamations!$C$2:$C$32=$AF$1))","v":0},{"$f":"SUMPRODUCT((Réclamations!$B$2:$B$32=$A13)*(Réclamations!$K$2:$K$32=AH$2)*(Réclamations!$C$2:$C$32=$AF$1))","v":0},{"$f":"SUMPRODUCT((Réclamations!$B$2:$B$32=$A13)*(Réclamations!$K$2:$K$32=AI$2)*(Réclamations!$C$2:$C$32=$AI$1))","v":0},{"$f":"SUMPRODUCT((Réclamations!$B$2:$B$32=$A13)*(Réclamations!$K$2:$K$32=AJ$2)*(Réclamations!$C$2:$C$32=$E$1))","v":0},{"$f":"SUMPRODUCT((Réclamations!$B$2:$B$32=$A13)*(Réclamations!$K$2:$K$32=AK$2)*(Réclamations!$C$2:$C$32=$E$1))","v":0}]
["2018-01-12",{"$f":"SUMPRODUCT((Réclamations!$B$2:$B$32=$A14)*(Réclamations!$K$2:$K$32=B$2)*(Réclamations!$C$2:$C$32=$B$1))","v":0},{"$f":"SUMPRODUCT((Réclamations!$B$2:$B$32=$A14)*(Réclamations!$K$2:$K$32=C$2)*(Réclamations!$C$2:$C$32=$B$1))","v":0},{"$f":"SUMPRODUCT((Réclamations!$B$2:$B$32=$A14)*(Réclamations!$K$2:$K$32=D$2)*(Réclamations!$C$2:$C$32=$B$1))","v":0},{"$f":"SUMPRODUCT((Réclamations!$B$2:$B$32=$A14)*(Réclamations!$K$2:$K$32=E$2)*(Réclamations!$C$2:$C$32=$E$1))","v":0},{"$f":"SUMPRODUCT((Réclamations!$B$2:$B$32=$A14)*(Réclamations!$K$2:$K$32=F$2)*(Réclamations!$C$2:$C$32=$E$1))","v":0},{"$f":"SUMPRODUCT((Réclamations!$B$2:$B$32=$A14)*(Réclamations!$K$2:$K$32=G$2)*(Réclamations!$C$2:$C$32=$E$1))","v":0},{"$f":"SUMPRODUCT((Réclamations!$B$2:$B$32=$A14)*(Réclamations!$K$2:$K$32=H$2)*(Réclamations!$C$2:$C$32=$H$1))","v":0},{"$f":"SUMPRODUCT((Réclamations!$B$2:$B$32=$A14)*(Réclamations!$K$2:$K$32=I$2)*(Réclamations!$C$2:$C$32=$H$1))","v":0},{"$f":"SUMPRODUCT((Réclamations!$B$2:$B$32=$A14)*(Réclamations!$K$2:$K$32=J$2)*(Réclamations!$C$2:$C$32=$H$1))","v":0},{"$f":"SUMPRODUCT((Réclamations!$B$2:$B$32=$A14)*(Réclamations!$K$2:$K$32=K$2)*(Réclamations!$C$2:$C$32=$K$1))","v":0},{"$f":"SUMPRODUCT((Réclamations!$B$2:$B$32=$A14)*(Réclamations!$K$2:$K$32=L$2)*(Réclamations!$C$2:$C$32=$K$1))","v":1},{"$f":"SUMPRODUCT((Réclamations!$B$2:$B$32=$A14)*(Réclamations!$K$2:$K$32=M$2)*(Réclamations!$C$2:$C$32=$K$1))","v":0},{"$f":"SUMPRODUCT((Réclamations!$B$2:$B$32=$A14)*(Réclamations!$K$2:$K$32=N$2)*(Réclamations!$C$2:$C$32=$N$1))","v":0},{"$f":"SUMPRODUCT((Réclamations!$B$2:$B$32=$A14)*(Réclamations!$K$2:$K$32=O$2)*(Réclamations!$C$2:$C$32=$N$1))","v":0},{"$f":"SUMPRODUCT((Réclamations!$B$2:$B$32=$A14)*(Réclamations!$K$2:$K$32=P$2)*(Réclamations!$C$2:$C$32=$N$1))","v":0},{"$f":"SUMPRODUCT((Réclamations!$B$2:$B$32=$A14)*(Réclamations!$K$2:$K$32=Q$2)*(Réclamations!$C$2:$C$32=$Q$1))","v":0},{"$f":"SUMPRODUCT((Réclamations!$B$2:$B$32=$A14)*(Réclamations!$K$2:$K$32=R$2)*(Réclamations!$C$2:$C$32=$Q$1))","v":0},{"$f":"SUMPRODUCT((Réclamations!$B$2:$B$32=$A14)*(Réclamations!$K$2:$K$32=S$2)*(Réclamations!$C$2:$C$32=$Q$1))","v":0},{"$f":"SUMPRODUCT((Réclamations!$B$2:$B$32=$A14)*(Réclamations!$K$2:$K$32=T$2)*(Réclamations!$C$2:$C$32=$T$1))","v":0},{"$f":"SUMPRODUCT((Réclamations!$B$2:$B$32=$A14)*(Réclamations!$K$2:$K$32=U$2)*(Réclamations!$C$2:$C$32=$T$1))","v":0},{"$f":"SUMPRODUCT((Réclamations!$B$2:$B$32=$A14)*(Réclamations!$K$2:$K$32=V$2)*(Réclamations!$C$2:$C$32=$T$1))","v":0},{"$f":"SUMPRODUCT((Réclamations!$B$2:$B$32=$A14)*(Réclamations!$K$2:$K$32=W$2)*(Réclamations!$C$2:$C$32=$W$1))","v":0},{"$f":"SUMPRODUCT((Réclamations!$B$2:$B$32=$A14)*(Réclamations!$K$2:$K$32=X$2)*(Réclamations!$C$2:$C$32=$W$1))","v":0},{"$f":"SUMPRODUCT((Réclamations!$B$2:$B$32=$A14)*(Réclamations!$K$2:$K$32=Y$2)*(Réclamations!$C$2:$C$32=$W$1))","v":0},{"$f":"SUMPRODUCT((Réclamations!$B$2:$B$32=$A14)*(Réclamations!$K$2:$K$32=Z$2)*(Réclamations!$C$2:$C$32=$Z$1))","v":0},{"$f":"SUMPRODUCT((Réclamations!$B$2:$B$32=$A14)*(Réclamations!$K$2:$K$32=AA$2)*(Réclamations!$C$2:$C$32=$Z$1))","v":0},{"$f":"SUMPRODUCT((Réclamations!$B$2:$B$32=$A14)*(Réclamations!$K$2:$K$32=AB$2)*(Réclamations!$C$2:$C$32=$Z$1))","v":0},{"$f":"SUMPRODUCT((Réclamations!$B$2:$B$32=$A14)*(Réclamations!$K$2:$K$32=AC$2)*(Réclamations!$C$2:$C$32=$AC$1))","v":0},{"$f":"SUMPRODUCT((Réclamations!$B$2:$B$32=$A14)*(Réclamations!$K$2:$K$32=AD$2)*(Réclamations!$C$2:$C$32=$AC$1))","v":0},{"$f":"SUMPRODUCT((Réclamations!$B$2:$B$32=$A14)*(Réclamations!$K$2:$K$32=AE$2)*(Réclamations!$C$2:$C$32=$AC$1))","v":0},{"$f":"SUMPRODUCT((Réclamations!$B$2:$B$32=$A14)*(Réclamations!$K$2:$K$32=AF$2)*(Réclamations!$C$2:$C$32=$AF$1))","v":0},{"$f":"SUMPRODUCT((Réclamations!$B$2:$B$32=$A14)*(Réclamations!$K$2:$K$32=AG$2)*(Réclamations!$C$2:$C$32=$AF$1))","v":0},{"$f":"SUMPRODUCT((Réclamations!$B$2:$B$32=$A14)*(Réclamations!$K$2:$K$32=AH$2)*(Réclamations!$C$2:$C$32=$AF$1))","v":0},{"$f":"SUMPRODUCT((Réclamations!$B$2:$B$32=$A14)*(Réclamations!$K$2:$K$32=AI$2)*(Réclamations!$C$2:$C$32=$AI$1))","v":0},{"$f":"SUMPRODUCT((Réclamations!$B$2:$B$32=$A14)*(Réclamations!$K$2:$K$32=AJ$2)*(Réclamations!$C$2:$C$32=$E$1))","v":0},{"$f":"SUMPRODUCT((Réclamations!$B$2:$B$32=$A14)*(Réclamations!$K$2:$K$32=AK$2)*(Réclamations!$C$2:$C$32=$E$1))","v":0}]
["2018-01-13",{"$f":"SUMPRODUCT((Réclamations!$B$2:$B$32=$A15)*(Réclamations!$K$2:$K$32=B$2)*(Réclamations!$C$2:$C$32=$B$1))","v":0},{"$f":"SUMPRODUCT((Réclamations!$B$2:$B$32=$A15)*(Réclamations!$K$2:$K$32=C$2)*(Réclamations!$C$2:$C$32=$B$1))","v":0},{"$f":"SUMPRODUCT((Réclamations!$B$2:$B$32=$A15)*(Réclamations!$K$2:$K$32=D$2)*(Réclamations!$C$2:$C$32=$B$1))","v":0},{"$f":"SUMPRODUCT((Réclamations!$B$2:$B$32=$A15)*(Réclamations!$K$2:$K$32=E$2)*(Réclamations!$C$2:$C$32=$E$1))","v":0},{"$f":"SUMPRODUCT((Réclamations!$B$2:$B$32=$A15)*(Réclamations!$K$2:$K$32=F$2)*(Réclamations!$C$2:$C$32=$E$1))","v":0},{"$f":"SUMPRODUCT((Réclamations!$B$2:$B$32=$A15)*(Réclamations!$K$2:$K$32=G$2)*(Réclamations!$C$2:$C$32=$E$1))","v":0},{"$f":"SUMPRODUCT((Réclamations!$B$2:$B$32=$A15)*(Réclamations!$K$2:$K$32=H$2)*(Réclamations!$C$2:$C$32=$H$1))","v":0},{"$f":"SUMPRODUCT((Réclamations!$B$2:$B$32=$A15)*(Réclamations!$K$2:$K$32=I$2)*(Réclamations!$C$2:$C$32=$H$1))","v":0},{"$f":"SUMPRODUCT((Réclamations!$B$2:$B$32=$A15)*(Réclamations!$K$2:$K$32=J$2)*(Réclamations!$C$2:$C$32=$H$1))","v":0},{"$f":"SUMPRODUCT((Réclamations!$B$2:$B$32=$A15)*(Réclamations!$K$2:$K$32=K$2)*(Réclamations!$C$2:$C$32=$K$1))","v":0},{"$f":"SUMPRODUCT((Réclamations!$B$2:$B$32=$A15)*(Réclamations!$K$2:$K$32=L$2)*(Réclamations!$C$2:$C$32=$K$1))","v":1},{"$f":"SUMPRODUCT((Réclamations!$B$2:$B$32=$A15)*(Réclamations!$K$2:$K$32=M$2)*(Réclamations!$C$2:$C$32=$K$1))","v":0},{"$f":"SUMPRODUCT((Réclamations!$B$2:$B$32=$A15)*(Réclamations!$K$2:$K$32=N$2)*(Réclamations!$C$2:$C$32=$N$1))","v":0},{"$f":"SUMPRODUCT((Réclamations!$B$2:$B$32=$A15)*(Réclamations!$K$2:$K$32=O$2)*(Réclamations!$C$2:$C$32=$N$1))","v":0},{"$f":"SUMPRODUCT((Réclamations!$B$2:$B$32=$A15)*(Réclamations!$K$2:$K$32=P$2)*(Réclamations!$C$2:$C$32=$N$1))","v":0},{"$f":"SUMPRODUCT((Réclamations!$B$2:$B$32=$A15)*(Réclamations!$K$2:$K$32=Q$2)*(Réclamations!$C$2:$C$32=$Q$1))","v":0},{"$f":"SUMPRODUCT((Réclamations!$B$2:$B$32=$A15)*(Réclamations!$K$2:$K$32=R$2)*(Réclamations!$C$2:$C$32=$Q$1))","v":0},{"$f":"SUMPRODUCT((Réclamations!$B$2:$B$32=$A15)*(Réclamations!$K$2:$K$32=S$2)*(Réclamations!$C$2:$C$32=$Q$1))","v":0},{"$f":"SUMPRODUCT((Réclamations!$B$2:$B$32=$A15)*(Réclamations!$K$2:$K$32=T$2)*(Réclamations!$C$2:$C$32=$T$1))","v":0},{"$f":"SUMPRODUCT((Réclamations!$B$2:$B$32=$A15)*(Réclamations!$K$2:$K$32=U$2)*(Réclamations!$C$2:$C$32=$T$1))","v":0},{"$f":"SUMPRODUCT((Réclamations!$B$2:$B$32=$A15)*(Réclamations!$K$2:$K$32=V$2)*(Réclamations!$C$2:$C$32=$T$1))","v":0},{"$f":"SUMPRODUCT((Réclamations!$B$2:$B$32=$A15)*(Réclamations!$K$2:$K$32=W$2)*(Réclamations!$C$2:$C$32=$W$1))","v":0},{"$f":"SUMPRODUCT((Réclamations!$B$2:$B$32=$A15)*(Réclamations!$K$2:$K$32=X$2)*(Réclamations!$C$2:$C$32=$W$1))","v":0},{"$f":"SUMPRODUCT((Réclamations!$B$2:$B$32=$A15)*(Réclamations!$K$2:$K$32=Y$2)*(Réclamations!$C$2:$C$32=$W$1))","v":0},{"$f":"SUMPRODUCT((Réclamations!$B$2:$B$32=$A15)*(Réclamations!$K$2:$K$32=Z$2)*(Réclamations!$C$2:$C$32=$Z$1))","v":0},{"$f":"SUMPRODUCT((Réclamations!$B$2:$B$32=$A15)*(Réclamations!$K$2:$K$32=AA$2)*(Réclamations!$C$2:$C$32=$Z$1))","v":0},{"$f":"SUMPRODUCT((Réclamations!$B$2:$B$32=$A15)*(Réclamations!$K$2:$K$32=AB$2)*(Réclamations!$C$2:$C$32=$Z$1))","v":0},{"$f":"SUMPRODUCT((Réclamations!$B$2:$B$32=$A15)*(Réclamations!$K$2:$K$32=AC$2)*(Réclamations!$C$2:$C$32=$AC$1))","v":0},{"$f":"SUMPRODUCT((Réclamations!$B$2:$B$32=$A15)*(Réclamations!$K$2:$K$32=AD$2)*(Réclamations!$C$2:$C$32=$AC$1))","v":0},{"$f":"SUMPRODUCT((Réclamations!$B$2:$B$32=$A15)*(Réclamations!$K$2:$K$32=AE$2)*(Réclamations!$C$2:$C$32=$AC$1))","v":0},{"$f":"SUMPRODUCT((Réclamations!$B$2:$B$32=$A15)*(Réclamations!$K$2:$K$32=AF$2)*(Réclamations!$C$2:$C$32=$AF$1))","v":0},{"$f":"SUMPRODUCT((Réclamations!$B$2:$B$32=$A15)*(Réclamations!$K$2:$K$32=AG$2)*(Réclamations!$C$2:$C$32=$AF$1))","v":0},{"$f":"SUMPRODUCT((Réclamations!$B$2:$B$32=$A15)*(Réclamations!$K$2:$K$32=AH$2)*(Réclamations!$C$2:$C$32=$AF$1))","v":0},{"$f":"SUMPRODUCT((Réclamations!$B$2:$B$32=$A15)*(Réclamations!$K$2:$K$32=AI$2)*(Réclamations!$C$2:$C$32=$AI$1))","v":0},{"$f":"SUMPRODUCT((Réclamations!$B$2:$B$32=$A15)*(Réclamations!$K$2:$K$32=AJ$2)*(Réclamations!$C$2:$C$32=$E$1))","v":0},{"$f":"SUMPRODUCT((Réclamations!$B$2:$B$32=$A15)*(Réclamations!$K$2:$K$32=AK$2)*(Réclamations!$C$2:$C$32=$E$1))","v":0}]
["2018-01-14",{"$f":"SUMPRODUCT((Réclamations!$B$2:$B$32=$A16)*(Réclamations!$K$2:$K$32=B$2)*(Réclamations!$C$2:$C$32=$B$1))","v":0},{"$f":"SUMPRODUCT((Réclamations!$B$2:$B$32=$A16)*(Réclamations!$K$2:$K$32=C$2)*(Réclamations!$C$2:$C$32=$B$1))","v":0},{"$f":"SUMPRODUCT((Réclamations!$B$2:$B$32=$A16)*(Réclamations!$K$2:$K$32=D$2)*(Réclamations!$C$2:$C$32=$B$1))","v":0},{"$f":"SUMPRODUCT((Réclamations!$B$2:$B$32=$A16)*(Réclamations!$K$2:$K$32=E$2)*(Réclamations!$C$2:$C$32=$E$1))","v":0},{"$f":"SUMPRODUCT((Réclamations!$B$2:$B$32=$A16)*(Réclamations!$K$2:$K$32=F$2)*(Réclamations!$C$2:$C$32=$E$1))","v":0},{"$f":"SUMPRODUCT((Réclamations!$B$2:$B$32=$A16)*(Réclamations!$K$2:$K$32=G$2)*(Réclamations!$C$2:$C$32=$E$1))","v":0},{"$f":"SUMPRODUCT((Réclamations!$B$2:$B$32=$A16)*(Réclamations!$K$2:$K$32=H$2)*(Réclamations!$C$2:$C$32=$H$1))","v":0},{"$f":"SUMPRODUCT((Réclamations!$B$2:$B$32=$A16)*(Réclamations!$K$2:$K$32=I$2)*(Réclamations!$C$2:$C$32=$H$1))","v":0},{"$f":"SUMPRODUCT((Réclamations!$B$2:$B$32=$A16)*(Réclamations!$K$2:$K$32=J$2)*(Réclamations!$C$2:$C$32=$H$1))","v":0},{"$f":"SUMPRODUCT((Réclamations!$B$2:$B$32=$A16)*(Réclamations!$K$2:$K$32=K$2)*(Réclamations!$C$2:$C$32=$K$1))","v":0},{"$f":"SUMPRODUCT((Réclamations!$B$2:$B$32=$A16)*(Réclamations!$K$2:$K$32=L$2)*(Réclamations!$C$2:$C$32=$K$1))","v":1},{"$f":"SUMPRODUCT((Réclamations!$B$2:$B$32=$A16)*(Réclamations!$K$2:$K$32=M$2)*(Réclamations!$C$2:$C$32=$K$1))","v":0},{"$f":"SUMPRODUCT((Réclamations!$B$2:$B$32=$A16)*(Réclamations!$K$2:$K$32=N$2)*(Réclamations!$C$2:$C$32=$N$1))","v":0},{"$f":"SUMPRODUCT((Réclamations!$B$2:$B$32=$A16)*(Réclamations!$K$2:$K$32=O$2)*(Réclamations!$C$2:$C$32=$N$1))","v":0},{"$f":"SUMPRODUCT((Réclamations!$B$2:$B$32=$A16)*(Réclamations!$K$2:$K$32=P$2)*(Réclamations!$C$2:$C$32=$N$1))","v":0},{"$f":"SUMPRODUCT((Réclamations!$B$2:$B$32=$A16)*(Réclamations!$K$2:$K$32=Q$2)*(Réclamations!$C$2:$C$32=$Q$1))","v":0},{"$f":"SUMPRODUCT((Réclamations!$B$2:$B$32=$A16)*(Réclamations!$K$2:$K$32=R$2)*(Réclamations!$C$2:$C$32=$Q$1))","v":0},{"$f":"SUMPRODUCT((Réclamations!$B$2:$B$32=$A16)*(Réclamations!$K$2:$K$32=S$2)*(Réclamations!$C$2:$C$32=$Q$1))","v":0},{"$f":"SUMPRODUCT((Réclamations!$B$2:$B$32=$A16)*(Réclamations!$K$2:$K$32=T$2)*(Réclamations!$C$2:$C$32=$T$1))","v":0},{"$f":"SUMPRODUCT((Réclamations!$B$2:$B$32=$A16)*(Réclamations!$K$2:$K$32=U$2)*(Réclamations!$C$2:$C$32=$T$1))","v":0},{"$f":"SUMPRODUCT((Réclamations!$B$2:$B$32=$A16)*(Réclamations!$K$2:$K$32=V$2)*(Réclamations!$C$2:$C$32=$T$1))","v":0},{"$f":"SUMPRODUCT((Réclamations!$B$2:$B$32=$A16)*(Réclamations!$K$2:$K$32=W$2)*(Réclamations!$C$2:$C$32=$W$1))","v":0},{"$f":"SUMPRODUCT((Réclamations!$B$2:$B$32=$A16)*(Réclamations!$K$2:$K$32=X$2)*(Réclamations!$C$2:$C$32=$W$1))","v":0},{"$f":"SUMPRODUCT((Réclamations!$B$2:$B$32=$A16)*(Réclamations!$K$2:$K$32=Y$2)*(Réclamations!$C$2:$C$32=$W$1))","v":0},{"$f":"SUMPRODUCT((Réclamations!$B$2:$B$32=$A16)*(Réclamations!$K$2:$K$32=Z$2)*(Réclamations!$C$2:$C$32=$Z$1))","v":0},{"$f":"SUMPRODUCT((Réclamations!$B$2:$B$32=$A16)*(Réclamations!$K$2:$K$32=AA$2)*(Réclamations!$C$2:$C$32=$Z$1))","v":0},{"$f":"SUMPRODUCT((Réclamations!$B$2:$B$32=$A16)*(Réclamations!$K$2:$K$32=AB$2)*(Réclamations!$C$2:$C$32=$Z$1))","v":0},{"$f":"SUMPRODUCT((Réclamations!$B$2:$B$32=$A16)*(Réclamations!$K$2:$K$32=AC$2)*(Réclamations!$C$2:$C$32=$AC$1))","v":0},{"$f":"SUMPRODUCT((Réclamations!$B$2:$B$32=$A16)*(Réclamations!$K$2:$K$32=AD$2)*(Réclamations!$C$2:$C$32=$AC$1))","v":0},{"$f":"SUMPRODUCT((Réclamations!$B$2:$B$32=$A16)*(Réclamations!$K$2:$K$32=AE$2)*(Réclamations!$C$2:$C$32=$AC$1))","v":0},{"$f":"SUMPRODUCT((Réclamations!$B$2:$B$32=$A16)*(Réclamations!$K$2:$K$32=AF$2)*(Réclamations!$C$2:$C$32=$AF$1))","v":0},{"$f":"SUMPRODUCT((Réclamations!$B$2:$B$32=$A16)*(Réclamations!$K$2:$K$32=AG$2)*(Réclamations!$C$2:$C$32=$AF$1))","v":0},{"$f":"SUMPRODUCT((Réclamations!$B$2:$B$32=$A16)*(Réclamations!$K$2:$K$32=AH$2)*(Réclamations!$C$2:$C$32=$AF$1))","v":0},{"$f":"SUMPRODUCT((Réclamations!$B$2:$B$32=$A16)*(Réclamations!$K$2:$K$32=AI$2)*(Réclamations!$C$2:$C$32=$AI$1))","v":0},{"$f":"SUMPRODUCT((Réclamations!$B$2:$B$32=$A16)*(Réclamations!$K$2:$K$32=AJ$2)*(Réclamations!$C$2:$C$32=$E$1))","v":0},{"$f":"SUMPRODUCT((Réclamations!$B$2:$B$32=$A16)*(Réclamations!$K$2:$K$32=AK$2)*(Réclamations!$C$2:$C$32=$E$1))","v":0}]
["2018-01-15",{"$f":"SUMPRODUCT((Réclamations!$B$2:$B$32=$A17)*(Réclamations!$K$2:$K$32=B$2)*(Réclamations!$C$2:$C$32=$B$1))","v":0},{"$f":"SUMPRODUCT((Réclamations!$B$2:$B$32=$A17)*(Réclamations!$K$2:$K$32=C$2)*(Réclamations!$C$2:$C$32=$B$1))","v":0},{"$f":"SUMPRODUCT((Réclamations!$B$2:$B$32=$A17)*(Réclamations!$K$2:$K$32=D$2)*(Réclamations!$C$2:$C$32=$B$1))","v":0},{"$f":"SUMPRODUCT((Réclamations!$B$2:$B$32=$A17)*(Réclamations!$K$2:$K$32=E$2)*(Réclamations!$C$2:$C$32=$E$1))","v":0},{"$f":"SUMPRODUCT((Réclamations!$B$2:$B$32=$A17)*(Réclamations!$K$2:$K$32=F$2)*(Réclamations!$C$2:$C$32=$E$1))","v":0},{"$f":"SUMPRODUCT((Réclamations!$B$2:$B$32=$A17)*(Réclamations!$K$2:$K$32=G$2)*(Réclamations!$C$2:$C$32=$E$1))","v":0},{"$f":"SUMPRODUCT((Réclamations!$B$2:$B$32=$A17)*(Réclamations!$K$2:$K$32=H$2)*(Réclamations!$C$2:$C$32=$H$1))","v":0},{"$f":"SUMPRODUCT((Réclamations!$B$2:$B$32=$A17)*(Réclamations!$K$2:$K$32=I$2)*(Réclamations!$C$2:$C$32=$H$1))","v":0},{"$f":"SUMPRODUCT((Réclamations!$B$2:$B$32=$A17)*(Réclamations!$K$2:$K$32=J$2)*(Réclamations!$C$2:$C$32=$H$1))","v":0},{"$f":"SUMPRODUCT((Réclamations!$B$2:$B$32=$A17)*(Réclamations!$K$2:$K$32=K$2)*(Réclamations!$C$2:$C$32=$K$1))","v":1},{"$f":"SUMPRODUCT((Réclamations!$B$2:$B$32=$A17)*(Réclamations!$K$2:$K$32=L$2)*(Réclamations!$C$2:$C$32=$K$1))","v":0},{"$f":"SUMPRODUCT((Réclamations!$B$2:$B$32=$A17)*(Réclamations!$K$2:$K$32=M$2)*(Réclamations!$C$2:$C$32=$K$1))","v":0},{"$f":"SUMPRODUCT((Réclamations!$B$2:$B$32=$A17)*(Réclamations!$K$2:$K$32=N$2)*(Réclamations!$C$2:$C$32=$N$1))","v":0},{"$f":"SUMPRODUCT((Réclamations!$B$2:$B$32=$A17)*(Réclamations!$K$2:$K$32=O$2)*(Réclamations!$C$2:$C$32=$N$1))","v":0},{"$f":"SUMPRODUCT((Réclamations!$B$2:$B$32=$A17)*(Réclamations!$K$2:$K$32=P$2)*(Réclamations!$C$2:$C$32=$N$1))","v":0},{"$f":"SUMPRODUCT((Réclamations!$B$2:$B$32=$A17)*(Réclamations!$K$2:$K$32=Q$2)*(Réclamations!$C$2:$C$32=$Q$1))","v":0},{"$f":"SUMPRODUCT((Réclamations!$B$2:$B$32=$A17)*(Réclamations!$K$2:$K$32=R$2)*(Réclamations!$C$2:$C$32=$Q$1))","v":0},{"$f":"SUMPRODUCT((Réclamations!$B$2:$B$32=$A17)*(Réclamations!$K$2:$K$32=S$2)*(Réclamations!$C$2:$C$32=$Q$1))","v":0},{"$f":"SUMPRODUCT((Réclamations!$B$2:$B$32=$A17)*(Réclamations!$K$2:$K$32=T$2)*(Réclamations!$C$2:$C$32=$T$1))","v":0},{"$f":"SUMPRODUCT((Réclamations!$B$2:$B$32=$A17)*(Réclamations!$K$2:$K$32=U$2)*(Réclamations!$C$2:$C$32=$T$1))","v":0},{"$f":"SUMPRODUCT((Réclamations!$B$2:$B$32=$A17)*(Réclamations!$K$2:$K$32=V$2)*(Réclamations!$C$2:$C$32=$T$1))","v":0},{"$f":"SUMPRODUCT((Réclamations!$B$2:$B$32=$A17)*(Réclamations!$K$2:$K$32=W$2)*(Réclamations!$C$2:$C$32=$W$1))","v":0},{"$f":"SUMPRODUCT((Réclamations!$B$2:$B$32=$A17)*(Réclamations!$K$2:$K$32=X$2)*(Réclamations!$C$2:$C$32=$W$1))","v":0},{"$f":"SUMPRODUCT((Réclamations!$B$2:$B$32=$A17)*(Réclamations!$K$2:$K$32=Y$2)*(Réclamations!$C$2:$C$32=$W$1))","v":0},{"$f":"SUMPRODUCT((Réclamations!$B$2:$B$32=$A17)*(Réclamations!$K$2:$K$32=Z$2)*(Réclamations!$C$2:$C$32=$Z$1))","v":0},{"$f":"SUMPRODUCT((Réclamations!$B$2:$B$32=$A17)*(Réclamations!$K$2:$K$32=AA$2)*(Réclamations!$C$2:$C$32=$Z$1))","v":0},{"$f":"SUMPRODUCT((Réclamations!$B$2:$B$32=$A17)*(Réclamations!$K$2:$K$32=AB$2)*(Réclamations!$C$2:$C$32=$Z$1))","v":0},{"$f":"SUMPRODUCT((Réclamations!$B$2:$B$32=$A17)*(Réclamations!$K$2:$K$32=AC$2)*(Réclamations!$C$2:$C$32=$AC$1))","v":0},{"$f":"SUMPRODUCT((Réclamations!$B$2:$B$32=$A17)*(Réclamations!$K$2:$K$32=AD$2)*(Réclamations!$C$2:$C$32=$AC$1))","v":0},{"$f":"SUMPRODUCT((Réclamations!$B$2:$B$32=$A17)*(Réclamations!$K$2:$K$32=AE$2)*(Réclamations!$C$2:$C$32=$AC$1))","v":0},{"$f":"SUMPRODUCT((Réclamations!$B$2:$B$32=$A17)*(Réclamations!$K$2:$K$32=AF$2)*(Réclamations!$C$2:$C$32=$AF$1))","v":0},{"$f":"SUMPRODUCT((Réclamations!$B$2:$B$32=$A17)*(Réclamations!$K$2:$K$32=AG$2)*(Réclamations!$C$2:$C$32=$AF$1))","v":0},{"$f":"SUMPRODUCT((Réclamations!$B$2:$B$32=$A17)*(Réclamations!$K$2:$K$32=AH$2)*(Réclamations!$C$2:$C$32=$AF$1))","v":0},{"$f":"SUMPRODUCT((Réclamations!$B$2:$B$32=$A17)*(Réclamations!$K$2:$K$32=AI$2)*(Réclamations!$C$2:$C$32=$AI$1))","v":0},{"$f":"SUMPRODUCT((Réclamations!$B$2:$B$32=$A17)*(Réclamations!$K$2:$K$32=AJ$2)*(Réclamations!$C$2:$C$32=$E$1))","v":0},{"$f":"SUMPRODUCT((Réclamations!$B$2:$B$32=$A17)*(Réclamations!$K$2:$K$32=AK$2)*(Réclamations!$C$2:$C$32=$E$1))","v":0}]
["2018-01-16",{"$f":"SUMPRODUCT((Réclamations!$B$2:$B$32=$A18)*(Réclamations!$K$2:$K$32=B$2)*(Réclamations!$C$2:$C$32=$B$1))","v":0},{"$f":"SUMPRODUCT((Réclamations!$B$2:$B$32=$A18)*(Réclamations!$K$2:$K$32=C$2)*(Réclamations!$C$2:$C$32=$B$1))","v":0},{"$f":"SUMPRODUCT((Réclamations!$B$2:$B$32=$A18)*(Réclamations!$K$2:$K$32=D$2)*(Réclamations!$C$2:$C$32=$B$1))","v":0},{"$f":"SUMPRODUCT((Réclamations!$B$2:$B$32=$A18)*(Réclamations!$K$2:$K$32=E$2)*(Réclamations!$C$2:$C$32=$E$1))","v":0},{"$f":"SUMPRODUCT((Réclamations!$B$2:$B$32=$A18)*(Réclamations!$K$2:$K$32=F$2)*(Réclamations!$C$2:$C$32=$E$1))","v":0},{"$f":"SUMPRODUCT((Réclamations!$B$2:$B$32=$A18)*(Réclamations!$K$2:$K$32=G$2)*(Réclamations!$C$2:$C$32=$E$1))","v":0},{"$f":"SUMPRODUCT((Réclamations!$B$2:$B$32=$A18)*(Réclamations!$K$2:$K$32=H$2)*(Réclamations!$C$2:$C$32=$H$1))","v":0},{"$f":"SUMPRODUCT((Réclamations!$B$2:$B$32=$A18)*(Réclamations!$K$2:$K$32=I$2)*(Réclamations!$C$2:$C$32=$H$1))","v":0},{"$f":"SUMPRODUCT((Réclamations!$B$2:$B$32=$A18)*(Réclamations!$K$2:$K$32=J$2)*(Réclamations!$C$2:$C$32=$H$1))","v":0},{"$f":"SUMPRODUCT((Réclamations!$B$2:$B$32=$A18)*(Réclamations!$K$2:$K$32=K$2)*(Réclamations!$C$2:$C$32=$K$1))","v":1},{"$f":"SUMPRODUCT((Réclamations!$B$2:$B$32=$A18)*(Réclamations!$K$2:$K$32=L$2)*(Réclamations!$C$2:$C$32=$K$1))","v":0},{"$f":"SUMPRODUCT((Réclamations!$B$2:$B$32=$A18)*(Réclamations!$K$2:$K$32=M$2)*(Réclamations!$C$2:$C$32=$K$1))","v":0},{"$f":"SUMPRODUCT((Réclamations!$B$2:$B$32=$A18)*(Réclamations!$K$2:$K$32=N$2)*(Réclamations!$C$2:$C$32=$N$1))","v":0},{"$f":"SUMPRODUCT((Réclamations!$B$2:$B$32=$A18)*(Réclamations!$K$2:$K$32=O$2)*(Réclamations!$C$2:$C$32=$N$1))","v":0},{"$f":"SUMPRODUCT((Réclamations!$B$2:$B$32=$A18)*(Réclamations!$K$2:$K$32=P$2)*(Réclamations!$C$2:$C$32=$N$1))","v":0},{"$f":"SUMPRODUCT((Réclamations!$B$2:$B$32=$A18)*(Réclamations!$K$2:$K$32=Q$2)*(Réclamations!$C$2:$C$32=$Q$1))","v":0},{"$f":"SUMPRODUCT((Réclamations!$B$2:$B$32=$A18)*(Réclamations!$K$2:$K$32=R$2)*(Réclamations!$C$2:$C$32=$Q$1))","v":0},{"$f":"SUMPRODUCT((Réclamations!$B$2:$B$32=$A18)*(Réclamations!$K$2:$K$32=S$2)*(Réclamations!$C$2:$C$32=$Q$1))","v":0},{"$f":"SUMPRODUCT((Réclamations!$B$2:$B$32=$A18)*(Réclamations!$K$2:$K$32=T$2)*(Réclamations!$C$2:$C$32=$T$1))","v":0},{"$f":"SUMPRODUCT((Réclamations!$B$2:$B$32=$A18)*(Réclamations!$K$2:$K$32=U$2)*(Réclamations!$C$2:$C$32=$T$1))","v":0},{"$f":"SUMPRODUCT((Réclamations!$B$2:$B$32=$A18)*(Réclamations!$K$2:$K$32=V$2)*(Réclamations!$C$2:$C$32=$T$1))","v":0},{"$f":"SUMPRODUCT((Réclamations!$B$2:$B$32=$A18)*(Réclamations!$K$2:$K$32=W$2)*(Réclamations!$C$2:$C$32=$W$1))","v":0},{"$f":"SUMPRODUCT((Réclamations!$B$2:$B$32=$A18)*(Réclamations!$K$2:$K$32=X$2)*(Réclamations!$C$2:$C$32=$W$1))","v":0},{"$f":"SUMPRODUCT((Réclamations!$B$2:$B$32=$A18)*(Réclamations!$K$2:$K$32=Y$2)*(Réclamations!$C$2:$C$32=$W$1))","v":0},{"$f":"SUMPRODUCT((Réclamations!$B$2:$B$32=$A18)*(Réclamations!$K$2:$K$32=Z$2)*(Réclamations!$C$2:$C$32=$Z$1))","v":0},{"$f":"SUMPRODUCT((Réclamations!$B$2:$B$32=$A18)*(Réclamations!$K$2:$K$32=AA$2)*(Réclamations!$C$2:$C$32=$Z$1))","v":0},{"$f":"SUMPRODUCT((Réclamations!$B$2:$B$32=$A18)*(Réclamations!$K$2:$K$32=AB$2)*(Réclamations!$C$2:$C$32=$Z$1))","v":0},{"$f":"SUMPRODUCT((Réclamations!$B$2:$B$32=$A18)*(Réclamations!$K$2:$K$32=AC$2)*(Réclamations!$C$2:$C$32=$AC$1))","v":0},{"$f":"SUMPRODUCT((Réclamations!$B$2:$B$32=$A18)*(Réclamations!$K$2:$K$32=AD$2)*(Réclamations!$C$2:$C$32=$AC$1))","v":0},{"$f":"SUMPRODUCT((Réclamations!$B$2:$B$32=$A18)*(Réclamations!$K$2:$K$32=AE$2)*(Réclamations!$C$2:$C$32=$AC$1))","v":0},{"$f":"SUMPRODUCT((Réclamations!$B$2:$B$32=$A18)*(Réclamations!$K$2:$K$32=AF$2)*(Réclamations!$C$2:$C$32=$AF$1))","v":0},{"$f":"SUMPRODUCT((Réclamations!$B$2:$B$32=$A18)*(Réclamations!$K$2:$K$32=AG$2)*(Réclamations!$C$2:$C$32=$AF$1))","v":0},{"$f":"SUMPRODUCT((Réclamations!$B$2:$B$32=$A18)*(Réclamations!$K$2:$K$32=AH$2)*(Réclamations!$C$2:$C$32=$AF$1))","v":0},{"$f":"SUMPRODUCT((Réclamations!$B$2:$B$32=$A18)*(Réclamations!$K$2:$K$32=AI$2)*(Réclamations!$C$2:$C$32=$AI$1))","v":0},{"$f":"SUMPRODUCT((Réclamations!$B$2:$B$32=$A18)*(Réclamations!$K$2:$K$32=AJ$2)*(Réclamations!$C$2:$C$32=$E$1))","v":0},{"$f":"SUMPRODUCT((Réclamations!$B$2:$B$32=$A18)*(Réclamations!$K$2:$K$32=AK$2)*(Réclamations!$C$2:$C$32=$E$1))","v":0}]
["2018-01-17",{"$f":"SUMPRODUCT((Réclamations!$B$2:$B$32=$A19)*(Réclamations!$K$2:$K$32=B$2)*(Réclamations!$C$2:$C$32=$B$1))","v":0},{"$f":"SUMPRODUCT((Réclamations!$B$2:$B$32=$A19)*(Réclamations!$K$2:$K$32=C$2)*(Réclamations!$C$2:$C$32=$B$1))","v":0},{"$f":"SUMPRODUCT((Réclamations!$B$2:$B$32=$A19)*(Réclamations!$K$2:$K$32=D$2)*(Réclamations!$C$2:$C$32=$B$1))","v":0},{"$f":"SUMPRODUCT((Réclamations!$B$2:$B$32=$A19)*(Réclamations!$K$2:$K$32=E$2)*(Réclamations!$C$2:$C$32=$E$1))","v":0},{"$f":"SUMPRODUCT((Réclamations!$B$2:$B$32=$A19)*(Réclamations!$K$2:$K$32=F$2)*(Réclamations!$C$2:$C$32=$E$1))","v":0},{"$f":"SUMPRODUCT((Réclamations!$B$2:$B$32=$A19)*(Réclamations!$K$2:$K$32=G$2)*(Réclamations!$C$2:$C$32=$E$1))","v":0},{"$f":"SUMPRODUCT((Réclamations!$B$2:$B$32=$A19)*(Réclamations!$K$2:$K$32=H$2)*(Réclamations!$C$2:$C$32=$H$1))","v":0},{"$f":"SUMPRODUCT((Réclamations!$B$2:$B$32=$A19)*(Réclamations!$K$2:$K$32=I$2)*(Réclamations!$C$2:$C$32=$H$1))","v":0},{"$f":"SUMPRODUCT((Réclamations!$B$2:$B$32=$A19)*(Réclamations!$K$2:$K$32=J$2)*(Réclamations!$C$2:$C$32=$H$1))","v":0},{"$f":"SUMPRODUCT((Réclamations!$B$2:$B$32=$A19)*(Réclamations!$K$2:$K$32=K$2)*(Réclamations!$C$2:$C$32=$K$1))","v":1},{"$f":"SUMPRODUCT((Réclamations!$B$2:$B$32=$A19)*(Réclamations!$K$2:$K$32=L$2)*(Réclamations!$C$2:$C$32=$K$1))","v":0},{"$f":"SUMPRODUCT((Réclamations!$B$2:$B$32=$A19)*(Réclamations!$K$2:$K$32=M$2)*(Réclamations!$C$2:$C$32=$K$1))","v":0},{"$f":"SUMPRODUCT((Réclamations!$B$2:$B$32=$A19)*(Réclamations!$K$2:$K$32=N$2)*(Réclamations!$C$2:$C$32=$N$1))","v":0},{"$f":"SUMPRODUCT((Réclamations!$B$2:$B$32=$A19)*(Réclamations!$K$2:$K$32=O$2)*(Réclamations!$C$2:$C$32=$N$1))","v":0},{"$f":"SUMPRODUCT((Réclamations!$B$2:$B$32=$A19)*(Réclamations!$K$2:$K$32=P$2)*(Réclamations!$C$2:$C$32=$N$1))","v":0},{"$f":"SUMPRODUCT((Réclamations!$B$2:$B$32=$A19)*(Réclamations!$K$2:$K$32=Q$2)*(Réclamations!$C$2:$C$32=$Q$1))","v":0},{"$f":"SUMPRODUCT((Réclamations!$B$2:$B$32=$A19)*(Réclamations!$K$2:$K$32=R$2)*(Réclamations!$C$2:$C$32=$Q$1))","v":0},{"$f":"SUMPRODUCT((Réclamations!$B$2:$B$32=$A19)*(Réclamations!$K$2:$K$32=S$2)*(Réclamations!$C$2:$C$32=$Q$1))","v":0},{"$f":"SUMPRODUCT((Réclamations!$B$2:$B$32=$A19)*(Réclamations!$K$2:$K$32=T$2)*(Réclamations!$C$2:$C$32=$T$1))","v":0},{"$f":"SUMPRODUCT((Réclamations!$B$2:$B$32=$A19)*(Réclamations!$K$2:$K$32=U$2)*(Réclamations!$C$2:$C$32=$T$1))","v":0},{"$f":"SUMPRODUCT((Réclamations!$B$2:$B$32=$A19)*(Réclamations!$K$2:$K$32=V$2)*(Réclamations!$C$2:$C$32=$T$1))","v":0},{"$f":"SUMPRODUCT((Réclamations!$B$2:$B$32=$A19)*(Réclamations!$K$2:$K$32=W$2)*(Réclamations!$C$2:$C$32=$W$1))","v":0},{"$f":"SUMPRODUCT((Réclamations!$B$2:$B$32=$A19)*(Réclamations!$K$2:$K$32=X$2)*(Réclamations!$C$2:$C$32=$W$1))","v":0},{"$f":"SUMPRODUCT((Réclamations!$B$2:$B$32=$A19)*(Réclamations!$K$2:$K$32=Y$2)*(Réclamations!$C$2:$C$32=$W$1))","v":0},{"$f":"SUMPRODUCT((Réclamations!$B$2:$B$32=$A19)*(Réclamations!$K$2:$K$32=Z$2)*(Réclamations!$C$2:$C$32=$Z$1))","v":0},{"$f":"SUMPRODUCT((Réclamations!$B$2:$B$32=$A19)*(Réclamations!$K$2:$K$32=AA$2)*(Réclamations!$C$2:$C$32=$Z$1))","v":0},{"$f":"SUMPRODUCT((Réclamations!$B$2:$B$32=$A19)*(Réclamations!$K$2:$K$32=AB$2)*(Réclamations!$C$2:$C$32=$Z$1))","v":0},{"$f":"SUMPRODUCT((Réclamations!$B$2:$B$32=$A19)*(Réclamations!$K$2:$K$32=AC$2)*(Réclamations!$C$2:$C$32=$AC$1))","v":0},{"$f":"SUMPRODUCT((Réclamations!$B$2:$B$32=$A19)*(Réclamations!$K$2:$K$32=AD$2)*(Réclamations!$C$2:$C$32=$AC$1))","v":0},{"$f":"SUMPRODUCT((Réclamations!$B$2:$B$32=$A19)*(Réclamations!$K$2:$K$32=AE$2)*(Réclamations!$C$2:$C$32=$AC$1))","v":0},{"$f":"SUMPRODUCT((Réclamations!$B$2:$B$32=$A19)*(Réclamations!$K$2:$K$32=AF$2)*(Réclamations!$C$2:$C$32=$AF$1))","v":0},{"$f":"SUMPRODUCT((Réclamations!$B$2:$B$32=$A19)*(Réclamations!$K$2:$K$32=AG$2)*(Réclamations!$C$2:$C$32=$AF$1))","v":0},{"$f":"SUMPRODUCT((Réclamations!$B$2:$B$32=$A19)*(Réclamations!$K$2:$K$32=AH$2)*(Réclamations!$C$2:$C$32=$AF$1))","v":0},{"$f":"SUMPRODUCT((Réclamations!$B$2:$B$32=$A19)*(Réclamations!$K$2:$K$32=AI$2)*(Réclamations!$C$2:$C$32=$AI$1))","v":0},{"$f":"SUMPRODUCT((Réclamations!$B$2:$B$32=$A19)*(Réclamations!$K$2:$K$32=AJ$2)*(Réclamations!$C$2:$C$32=$E$1))","v":0},{"$f":"SUMPRODUCT((Réclamations!$B$2:$B$32=$A19)*(Réclamations!$K$2:$K$32=AK$2)*(Réclamations!$C$2:$C$32=$E$1))","v":0}]
["2018-01-18",{"$f":"SUMPRODUCT((Réclamations!$B$2:$B$32=$A20)*(Réclamations!$K$2:$K$32=B$2)*(Réclamations!$C$2:$C$32=$B$1))","v":0},{"$f":"SUMPRODUCT((Réclamations!$B$2:$B$32=$A20)*(Réclamations!$K$2:$K$32=C$2)*(Réclamations!$C$2:$C$32=$B$1))","v":0},{"$f":"SUMPRODUCT((Réclamations!$B$2:$B$32=$A20)*(Réclamations!$K$2:$K$32=D$2)*(Réclamations!$C$2:$C$32=$B$1))","v":0},{"$f":"SUMPRODUCT((Réclamations!$B$2:$B$32=$A20)*(Réclamations!$K$2:$K$32=E$2)*(Réclamations!$C$2:$C$32=$E$1))","v":0},{"$f":"SUMPRODUCT((Réclamations!$B$2:$B$32=$A20)*(Réclamations!$K$2:$K$32=F$2)*(Réclamations!$C$2:$C$32=$E$1))","v":0},{"$f":"SUMPRODUCT((Réclamations!$B$2:$B$32=$A20)*(Réclamations!$K$2:$K$32=G$2)*(Réclamations!$C$2:$C$32=$E$1))","v":0},{"$f":"SUMPRODUCT((Réclamations!$B$2:$B$32=$A20)*(Réclamations!$K$2:$K$32=H$2)*(Réclamations!$C$2:$C$32=$H$1))","v":0},{"$f":"SUMPRODUCT((Réclamations!$B$2:$B$32=$A20)*(Réclamations!$K$2:$K$32=I$2)*(Réclamations!$C$2:$C$32=$H$1))","v":0},{"$f":"SUMPRODUCT((Réclamations!$B$2:$B$32=$A20)*(Réclamations!$K$2:$K$32=J$2)*(Réclamations!$C$2:$C$32=$H$1))","v":0},{"$f":"SUMPRODUCT((Réclamations!$B$2:$B$32=$A20)*(Réclamations!$K$2:$K$32=K$2)*(Réclamations!$C$2:$C$32=$K$1))","v":1},{"$f":"SUMPRODUCT((Réclamations!$B$2:$B$32=$A20)*(Réclamations!$K$2:$K$32=L$2)*(Réclamations!$C$2:$C$32=$K$1))","v":0},{"$f":"SUMPRODUCT((Réclamations!$B$2:$B$32=$A20)*(Réclamations!$K$2:$K$32=M$2)*(Réclamations!$C$2:$C$32=$K$1))","v":0},{"$f":"SUMPRODUCT((Réclamations!$B$2:$B$32=$A20)*(Réclamations!$K$2:$K$32=N$2)*(Réclamations!$C$2:$C$32=$N$1))","v":0},{"$f":"SUMPRODUCT((Réclamations!$B$2:$B$32=$A20)*(Réclamations!$K$2:$K$32=O$2)*(Réclamations!$C$2:$C$32=$N$1))","v":0},{"$f":"SUMPRODUCT((Réclamations!$B$2:$B$32=$A20)*(Réclamations!$K$2:$K$32=P$2)*(Réclamations!$C$2:$C$32=$N$1))","v":0},{"$f":"SUMPRODUCT((Réclamations!$B$2:$B$32=$A20)*(Réclamations!$K$2:$K$32=Q$2)*(Réclamations!$C$2:$C$32=$Q$1))","v":0},{"$f":"SUMPRODUCT((Réclamations!$B$2:$B$32=$A20)*(Réclamations!$K$2:$K$32=R$2)*(Réclamations!$C$2:$C$32=$Q$1))","v":0},{"$f":"SUMPRODUCT((Réclamations!$B$2:$B$32=$A20)*(Réclamations!$K$2:$K$32=S$2)*(Réclamations!$C$2:$C$32=$Q$1))","v":0},{"$f":"SUMPRODUCT((Réclamations!$B$2:$B$32=$A20)*(Réclamations!$K$2:$K$32=T$2)*(Réclamations!$C$2:$C$32=$T$1))","v":0},{"$f":"SUMPRODUCT((Réclamations!$B$2:$B$32=$A20)*(Réclamations!$K$2:$K$32=U$2)*(Réclamations!$C$2:$C$32=$T$1))","v":0},{"$f":"SUMPRODUCT((Réclamations!$B$2:$B$32=$A20)*(Réclamations!$K$2:$K$32=V$2)*(Réclamations!$C$2:$C$32=$T$1))","v":0},{"$f":"SUMPRODUCT((Réclamations!$B$2:$B$32=$A20)*(Réclamations!$K$2:$K$32=W$2)*(Réclamations!$C$2:$C$32=$W$1))","v":0},{"$f":"SUMPRODUCT((Réclamations!$B$2:$B$32=$A20)*(Réclamations!$K$2:$K$32=X$2)*(Réclamations!$C$2:$C$32=$W$1))","v":0},{"$f":"SUMPRODUCT((Réclamations!$B$2:$B$32=$A20)*(Réclamations!$K$2:$K$32=Y$2)*(Réclamations!$C$2:$C$32=$W$1))","v":0},{"$f":"SUMPRODUCT((Réclamations!$B$2:$B$32=$A20)*(Réclamations!$K$2:$K$32=Z$2)*(Réclamations!$C$2:$C$32=$Z$1))","v":0},{"$f":"SUMPRODUCT((Réclamations!$B$2:$B$32=$A20)*(Réclamations!$K$2:$K$32=AA$2)*(Réclamations!$C$2:$C$32=$Z$1))","v":0},{"$f":"SUMPRODUCT((Réclamations!$B$2:$B$32=$A20)*(Réclamations!$K$2:$K$32=AB$2)*(Réclamations!$C$2:$C$32=$Z$1))","v":0},{"$f":"SUMPRODUCT((Réclamations!$B$2:$B$32=$A20)*(Réclamations!$K$2:$K$32=AC$2)*(Réclamations!$C$2:$C$32=$AC$1))","v":0},{"$f":"SUMPRODUCT((Réclamations!$B$2:$B$32=$A20)*(Réclamations!$K$2:$K$32=AD$2)*(Réclamations!$C$2:$C$32=$AC$1))","v":0},{"$f":"SUMPRODUCT((Réclamations!$B$2:$B$32=$A20)*(Réclamations!$K$2:$K$32=AE$2)*(Réclamations!$C$2:$C$32=$AC$1))","v":0},{"$f":"SUMPRODUCT((Réclamations!$B$2:$B$32=$A20)*(Réclamations!$K$2:$K$32=AF$2)*(Réclamations!$C$2:$C$32=$AF$1))","v":0},{"$f":"SUMPRODUCT((Réclamations!$B$2:$B$32=$A20)*(Réclamations!$K$2:$K$32=AG$2)*(Réclamations!$C$2:$C$32=$AF$1))","v":0},{"$f":"SUMPRODUCT((Réclamations!$B$2:$B$32=$A20)*(Réclamations!$K$2:$K$32=AH$2)*(Réclamations!$C$2:$C$32=$AF$1))","v":0},{"$f":"SUMPRODUCT((Réclamations!$B$2:$B$32=$A20)*(Réclamations!$K$2:$K$32=AI$2)*(Réclamations!$C$2:$C$32=$AI$1))","v":0},{"$f":"SUMPRODUCT((Réclamations!$B$2:$B$32=$A20)*(Réclamations!$K$2:$K$32=AJ$2)*(Réclamations!$C$2:$C$32=$E$1))","v":0},{"$f":"SUMPRODUCT((Réclamations!$B$2:$B$32=$A20)*(Réclamations!$K$2:$K$32=AK$2)*(Réclamations!$C$2:$C$32=$E$1))","v":0}]
["2018-01-19",{"$f":"SUMPRODUCT((Réclamations!$B$2:$B$32=$A21)*(Réclamations!$K$2:$K$32=B$2)*(Réclamations!$C$2:$C$32=$B$1))","v":0},{"$f":"SUMPRODUCT((Réclamations!$B$2:$B$32=$A21)*(Réclamations!$K$2:$K$32=C$2)*(Réclamations!$C$2:$C$32=$B$1))","v":0},{"$f":"SUMPRODUCT((Réclamations!$B$2:$B$32=$A21)*(Réclamations!$K$2:$K$32=D$2)*(Réclamations!$C$2:$C$32=$B$1))","v":0},{"$f":"SUMPRODUCT((Réclamations!$B$2:$B$32=$A21)*(Réclamations!$K$2:$K$32=E$2)*(Réclamations!$C$2:$C$32=$E$1))","v":0},{"$f":"SUMPRODUCT((Réclamations!$B$2:$B$32=$A21)*(Réclamations!$K$2:$K$32=F$2)*(Réclamations!$C$2:$C$32=$E$1))","v":0},{"$f":"SUMPRODUCT((Réclamations!$B$2:$B$32=$A21)*(Réclamations!$K$2:$K$32=G$2)*(Réclamations!$C$2:$C$32=$E$1))","v":0},{"$f":"SUMPRODUCT((Réclamations!$B$2:$B$32=$A21)*(Réclamations!$K$2:$K$32=H$2)*(Réclamations!$C$2:$C$32=$H$1))","v":0},{"$f":"SUMPRODUCT((Réclamations!$B$2:$B$32=$A21)*(Réclamations!$K$2:$K$32=I$2)*(Réclamations!$C$2:$C$32=$H$1))","v":0},{"$f":"SUMPRODUCT((Réclamations!$B$2:$B$32=$A21)*(Réclamations!$K$2:$K$32=J$2)*(Réclamations!$C$2:$C$32=$H$1))","v":0},{"$f":"SUMPRODUCT((Réclamations!$B$2:$B$32=$A21)*(Réclamations!$K$2:$K$32=K$2)*(Réclamations!$C$2:$C$32=$K$1))","v":0},{"$f":"SUMPRODUCT((Réclamations!$B$2:$B$32=$A21)*(Réclamations!$K$2:$K$32=L$2)*(Réclamations!$C$2:$C$32=$K$1))","v":0},{"$f":"SUMPRODUCT((Réclamations!$B$2:$B$32=$A21)*(Réclamations!$K$2:$K$32=M$2)*(Réclamations!$C$2:$C$32=$K$1))","v":0},{"$f":"SUMPRODUCT((Réclamations!$B$2:$B$32=$A21)*(Réclamations!$K$2:$K$32=N$2)*(Réclamations!$C$2:$C$32=$N$1))","v":0},{"$f":"SUMPRODUCT((Réclamations!$B$2:$B$32=$A21)*(Réclamations!$K$2:$K$32=O$2)*(Réclamations!$C$2:$C$32=$N$1))","v":0},{"$f":"SUMPRODUCT((Réclamations!$B$2:$B$32=$A21)*(Réclamations!$K$2:$K$32=P$2)*(Réclamations!$C$2:$C$32=$N$1))","v":0},{"$f":"SUMPRODUCT((Réclamations!$B$2:$B$32=$A21)*(Réclamations!$K$2:$K$32=Q$2)*(Réclamations!$C$2:$C$32=$Q$1))","v":0},{"$f":"SUMPRODUCT((Réclamations!$B$2:$B$32=$A21)*(Réclamations!$K$2:$K$32=R$2)*(Réclamations!$C$2:$C$32=$Q$1))","v":0},{"$f":"SUMPRODUCT((Réclamations!$B$2:$B$32=$A21)*(Réclamations!$K$2:$K$32=S$2)*(Réclamations!$C$2:$C$32=$Q$1))","v":0},{"$f":"SUMPRODUCT((Réclamations!$B$2:$B$32=$A21)*(Réclamations!$K$2:$K$32=T$2)*(Réclamations!$C$2:$C$32=$T$1))","v":0},{"$f":"SUMPRODUCT((Réclamations!$B$2:$B$32=$A21)*(Réclamations!$K$2:$K$32=U$2)*(Réclamations!$C$2:$C$32=$T$1))","v":0},{"$f":"SUMPRODUCT((Réclamations!$B$2:$B$32=$A21)*(Réclamations!$K$2:$K$32=V$2)*(Réclamations!$C$2:$C$32=$T$1))","v":0},{"$f":"SUMPRODUCT((Réclamations!$B$2:$B$32=$A21)*(Réclamations!$K$2:$K$32=W$2)*(Réclamations!$C$2:$C$32=$W$1))","v":0},{"$f":"SUMPRODUCT((Réclamations!$B$2:$B$32=$A21)*(Réclamations!$K$2:$K$32=X$2)*(Réclamations!$C$2:$C$32=$W$1))","v":0},{"$f":"SUMPRODUCT((Réclamations!$B$2:$B$32=$A21)*(Réclamations!$K$2:$K$32=Y$2)*(Réclamations!$C$2:$C$32=$W$1))","v":0},{"$f":"SUMPRODUCT((Réclamations!$B$2:$B$32=$A21)*(Réclamations!$K$2:$K$32=Z$2)*(Réclamations!$C$2:$C$32=$Z$1))","v":0},{"$f":"SUMPRODUCT((Réclamations!$B$2:$B$32=$A21)*(Réclamations!$K$2:$K$32=AA$2)*(Réclamations!$C$2:$C$32=$Z$1))","v":0},{"$f":"SUMPRODUCT((Réclamations!$B$2:$B$32=$A21)*(Réclamations!$K$2:$K$32=AB$2)*(Réclamations!$C$2:$C$32=$Z$1))","v":0},{"$f":"SUMPRODUCT((Réclamations!$B$2:$B$32=$A21)*(Réclamations!$K$2:$K$32=AC$2)*(Réclamations!$C$2:$C$32=$AC$1))","v":0},{"$f":"SUMPRODUCT((Réclamations!$B$2:$B$32=$A21)*(Réclamations!$K$2:$K$32=AD$2)*(Réclamations!$C$2:$C$32=$AC$1))","v":0},{"$f":"SUMPRODUCT((Réclamations!$B$2:$B$32=$A21)*(Réclamations!$K$2:$K$32=AE$2)*(Réclamations!$C$2:$C$32=$AC$1))","v":0},{"$f":"SUMPRODUCT((Réclamations!$B$2:$B$32=$A21)*(Réclamations!$K$2:$K$32=AF$2)*(Réclamations!$C$2:$C$32=$AF$1))","v":0},{"$f":"SUMPRODUCT((Réclamations!$B$2:$B$32=$A21)*(Réclamations!$K$2:$K$32=AG$2)*(Réclamations!$C$2:$C$32=$AF$1))","v":0},{"$f":"SUMPRODUCT((Réclamations!$B$2:$B$32=$A21)*(Réclamations!$K$2:$K$32=AH$2)*(Réclamations!$C$2:$C$32=$AF$1))","v":0},{"$f":"SUMPRODUCT((Réclamations!$B$2:$B$32=$A21)*(Réclamations!$K$2:$K$32=AI$2)*(Réclamations!$C$2:$C$32=$AI$1))","v":0},{"$f":"SUMPRODUCT((Réclamations!$B$2:$B$32=$A21)*(Réclamations!$K$2:$K$32=AJ$2)*(Réclamations!$C$2:$C$32=$E$1))","v":0},{"$f":"SUMPRODUCT((Réclamations!$B$2:$B$32=$A21)*(Réclamations!$K$2:$K$32=AK$2)*(Réclamations!$C$2:$C$32=$E$1))","v":0}]
["2018-01-20",{"$f":"SUMPRODUCT((Réclamations!$B$2:$B$32=$A22)*(Réclamations!$K$2:$K$32=B$2)*(Réclamations!$C$2:$C$32=$B$1))","v":0},{"$f":"SUMPRODUCT((Réclamations!$B$2:$B$32=$A22)*(Réclamations!$K$2:$K$32=C$2)*(Réclamations!$C$2:$C$32=$B$1))","v":0},{"$f":"SUMPRODUCT((Réclamations!$B$2:$B$32=$A22)*(Réclamations!$K$2:$K$32=D$2)*(Réclamations!$C$2:$C$32=$B$1))","v":0},{"$f":"SUMPRODUCT((Réclamations!$B$2:$B$32=$A22)*(Réclamations!$K$2:$K$32=E$2)*(Réclamations!$C$2:$C$32=$E$1))","v":0},{"$f":"SUMPRODUCT((Réclamations!$B$2:$B$32=$A22)*(Réclamations!$K$2:$K$32=F$2)*(Réclamations!$C$2:$C$32=$E$1))","v":0},{"$f":"SUMPRODUCT((Réclamations!$B$2:$B$32=$A22)*(Réclamations!$K$2:$K$32=G$2)*(Réclamations!$C$2:$C$32=$E$1))","v":0},{"$f":"SUMPRODUCT((Réclamations!$B$2:$B$32=$A22)*(Réclamations!$K$2:$K$32=H$2)*(Réclamations!$C$2:$C$32=$H$1))","v":0},{"$f":"SUMPRODUCT((Réclamations!$B$2:$B$32=$A22)*(Réclamations!$K$2:$K$32=I$2)*(Réclamations!$C$2:$C$32=$H$1))","v":0},{"$f":"SUMPRODUCT((Réclamations!$B$2:$B$32=$A22)*(Réclamations!$K$2:$K$32=J$2)*(Réclamations!$C$2:$C$32=$H$1))","v":0},{"$f":"SUMPRODUCT((Réclamations!$B$2:$B$32=$A22)*(Réclamations!$K$2:$K$32=K$2)*(Réclamations!$C$2:$C$32=$K$1))","v":0},{"$f":"SUMPRODUCT((Réclamations!$B$2:$B$32=$A22)*(Réclamations!$K$2:$K$32=L$2)*(Réclamations!$C$2:$C$32=$K$1))","v":0},{"$f":"SUMPRODUCT((Réclamations!$B$2:$B$32=$A22)*(Réclamations!$K$2:$K$32=M$2)*(Réclamations!$C$2:$C$32=$K$1))","v":0},{"$f":"SUMPRODUCT((Réclamations!$B$2:$B$32=$A22)*(Réclamations!$K$2:$K$32=N$2)*(Réclamations!$C$2:$C$32=$N$1))","v":0},{"$f":"SUMPRODUCT((Réclamations!$B$2:$B$32=$A22)*(Réclamations!$K$2:$K$32=O$2)*(Réclamations!$C$2:$C$32=$N$1))","v":0},{"$f":"SUMPRODUCT((Réclamations!$B$2:$B$32=$A22)*(Réclamations!$K$2:$K$32=P$2)*(Réclamations!$C$2:$C$32=$N$1))","v":0},{"$f":"SUMPRODUCT((Réclamations!$B$2:$B$32=$A22)*(Réclamations!$K$2:$K$32=Q$2)*(Réclamations!$C$2:$C$32=$Q$1))","v":0},{"$f":"SUMPRODUCT((Réclamations!$B$2:$B$32=$A22)*(Réclamations!$K$2:$K$32=R$2)*(Réclamations!$C$2:$C$32=$Q$1))","v":0},{"$f":"SUMPRODUCT((Réclamations!$B$2:$B$32=$A22)*(Réclamations!$K$2:$K$32=S$2)*(Réclamations!$C$2:$C$32=$Q$1))","v":0},{"$f":"SUMPRODUCT((Réclamations!$B$2:$B$32=$A22)*(Réclamations!$K$2:$K$32=T$2)*(Réclamations!$C$2:$C$32=$T$1))","v":0},{"$f":"SUMPRODUCT((Réclamations!$B$2:$B$32=$A22)*(Réclamations!$K$2:$K$32=U$2)*(Réclamations!$C$2:$C$32=$T$1))","v":0},{"$f":"SUMPRODUCT((Réclamations!$B$2:$B$32=$A22)*(Réclamations!$K$2:$K$32=V$2)*(Réclamations!$C$2:$C$32=$T$1))","v":0},{"$f":"SUMPRODUCT((Réclamations!$B$2:$B$32=$A22)*(Réclamations!$K$2:$K$32=W$2)*(Réclamations!$C$2:$C$32=$W$1))","v":0},{"$f":"SUMPRODUCT((Réclamations!$B$2:$B$32=$A22)*(Réclamations!$K$2:$K$32=X$2)*(Réclamations!$C$2:$C$32=$W$1))","v":0},{"$f":"SUMPRODUCT((Réclamations!$B$2:$B$32=$A22)*(Réclamations!$K$2:$K$32=Y$2)*(Réclamations!$C$2:$C$32=$W$1))","v":0},{"$f":"SUMPRODUCT((Réclamations!$B$2:$B$32=$A22)*(Réclamations!$K$2:$K$32=Z$2)*(Réclamations!$C$2:$C$32=$Z$1))","v":0},{"$f":"SUMPRODUCT((Réclamations!$B$2:$B$32=$A22)*(Réclamations!$K$2:$K$32=AA$2)*(Réclamations!$C$2:$C$32=$Z$1))","v":0},{"$f":"SUMPRODUCT((Réclamations!$B$2:$B$32=$A22)*(Réclamations!$K$2:$K$32=AB$2)*(Réclamations!$C$2:$C$32=$Z$1))","v":0},{"$f":"SUMPRODUCT((Réclamations!$B$2:$B$32=$A22)*(Réclamations!$K$2:$K$32=AC$2)*(Réclamations!$C$2:$C$32=$AC$1))","v":0},{"$f":"SUMPRODUCT((Réclamations!$B$2:$B$32=$A22)*(Réclamations!$K$2:$K$32=AD$2)*(Réclamations!$C$2:$C$32=$AC$1))","v":0},{"$f":"SUMPRODUCT((Réclamations!$B$2:$B$32=$A22)*(Réclamations!$K$2:$K$32=AE$2)*(Réclamations!$C$2:$C$32=$AC$1))","v":0},{"$f":"SUMPRODUCT((Réclamations!$B$2:$B$32=$A22)*(Réclamations!$K$2:$K$32=AF$2)*(Réclamations!$C$2:$C$32=$AF$1))","v":0},{"$f":"SUMPRODUCT((Réclamations!$B$2:$B$32=$A22)*(Réclamations!$K$2:$K$32=AG$2)*(Réclamations!$C$2:$C$32=$AF$1))","v":0},{"$f":"SUMPRODUCT((Réclamations!$B$2:$B$32=$A22)*(Réclamations!$K$2:$K$32=AH$2)*(Réclamations!$C$2:$C$32=$AF$1))","v":0},{"$f":"SUMPRODUCT((Réclamations!$B$2:$B$32=$A22)*(Réclamations!$K$2:$K$32=AI$2)*(Réclamations!$C$2:$C$32=$AI$1))","v":0},{"$f":"SUMPRODUCT((Réclamations!$B$2:$B$32=$A22)*(Réclamations!$K$2:$K$32=AJ$2)*(Réclamations!$C$2:$C$32=$E$1))","v":0},{"$f":"SUMPRODUCT((Réclamations!$B$2:$B$32=$A22)*(Réclamations!$K$2:$K$32=AK$2)*(Réclamations!$C$2:$C$32=$E$1))","v":0}]
["2018-01-21",{"$f":"SUMPRODUCT((Réclamations!$B$2:$B$32=$A23)*(Réclamations!$K$2:$K$32=B$2)*(Réclamations!$C$2:$C$32=$B$1))","v":0},{"$f":"SUMPRODUCT((Réclamations!$B$2:$B$32=$A23)*(Réclamations!$K$2:$K$32=C$2)*(Réclamations!$C$2:$C$32=$B$1))","v":0},{"$f":"SUMPRODUCT((Réclamations!$B$2:$B$32=$A23)*(Réclamations!$K$2:$K$32=D$2)*(Réclamations!$C$2:$C$32=$B$1))","v":0},{"$f":"SUMPRODUCT((Réclamations!$B$2:$B$32=$A23)*(Réclamations!$K$2:$K$32=E$2)*(Réclamations!$C$2:$C$32=$E$1))","v":0},{"$f":"SUMPRODUCT((Réclamations!$B$2:$B$32=$A23)*(Réclamations!$K$2:$K$32=F$2)*(Réclamations!$C$2:$C$32=$E$1))","v":0},{"$f":"SUMPRODUCT((Réclamations!$B$2:$B$32=$A23)*(Réclamations!$K$2:$K$32=G$2)*(Réclamations!$C$2:$C$32=$E$1))","v":0},{"$f":"SUMPRODUCT((Réclamations!$B$2:$B$32=$A23)*(Réclamations!$K$2:$K$32=H$2)*(Réclamations!$C$2:$C$32=$H$1))","v":0},{"$f":"SUMPRODUCT((Réclamations!$B$2:$B$32=$A23)*(Réclamations!$K$2:$K$32=I$2)*(Réclamations!$C$2:$C$32=$H$1))","v":0},{"$f":"SUMPRODUCT((Réclamations!$B$2:$B$32=$A23)*(Réclamations!$K$2:$K$32=J$2)*(Réclamations!$C$2:$C$32=$H$1))","v":0},{"$f":"SUMPRODUCT((Réclamations!$B$2:$B$32=$A23)*(Réclamations!$K$2:$K$32=K$2)*(Réclamations!$C$2:$C$32=$K$1))","v":0},{"$f":"SUMPRODUCT((Réclamations!$B$2:$B$32=$A23)*(Réclamations!$K$2:$K$32=L$2)*(Réclamations!$C$2:$C$32=$K$1))","v":0},{"$f":"SUMPRODUCT((Réclamations!$B$2:$B$32=$A23)*(Réclamations!$K$2:$K$32=M$2)*(Réclamations!$C$2:$C$32=$K$1))","v":0},{"$f":"SUMPRODUCT((Réclamations!$B$2:$B$32=$A23)*(Réclamations!$K$2:$K$32=N$2)*(Réclamations!$C$2:$C$32=$N$1))","v":0},{"$f":"SUMPRODUCT((Réclamations!$B$2:$B$32=$A23)*(Réclamations!$K$2:$K$32=O$2)*(Réclamations!$C$2:$C$32=$N$1))","v":0},{"$f":"SUMPRODUCT((Réclamations!$B$2:$B$32=$A23)*(Réclamations!$K$2:$K$32=P$2)*(Réclamations!$C$2:$C$32=$N$1))","v":0},{"$f":"SUMPRODUCT((Réclamations!$B$2:$B$32=$A23)*(Réclamations!$K$2:$K$32=Q$2)*(Réclamations!$C$2:$C$32=$Q$1))","v":0},{"$f":"SUMPRODUCT((Réclamations!$B$2:$B$32=$A23)*(Réclamations!$K$2:$K$32=R$2)*(Réclamations!$C$2:$C$32=$Q$1))","v":0},{"$f":"SUMPRODUCT((Réclamations!$B$2:$B$32=$A23)*(Réclamations!$K$2:$K$32=S$2)*(Réclamations!$C$2:$C$32=$Q$1))","v":0},{"$f":"SUMPRODUCT((Réclamations!$B$2:$B$32=$A23)*(Réclamations!$K$2:$K$32=T$2)*(Réclamations!$C$2:$C$32=$T$1))","v":0},{"$f":"SUMPRODUCT((Réclamations!$B$2:$B$32=$A23)*(Réclamations!$K$2:$K$32=U$2)*(Réclamations!$C$2:$C$32=$T$1))","v":0},{"$f":"SUMPRODUCT((Réclamations!$B$2:$B$32=$A23)*(Réclamations!$K$2:$K$32=V$2)*(Réclamations!$C$2:$C$32=$T$1))","v":0},{"$f":"SUMPRODUCT((Réclamations!$B$2:$B$32=$A23)*(Réclamations!$K$2:$K$32=W$2)*(Réclamations!$C$2:$C$32=$W$1))","v":0},{"$f":"SUMPRODUCT((Réclamations!$B$2:$B$32=$A23)*(Réclamations!$K$2:$K$32=X$2)*(Réclamations!$C$2:$C$32=$W$1))","v":0},{"$f":"SUMPRODUCT((Réclamations!$B$2:$B$32=$A23)*(Réclamations!$K$2:$K$32=Y$2)*(Réclamations!$C$2:$C$32=$W$1))","v":0},{"$f":"SUMPRODUCT((Réclamations!$B$2:$B$32=$A23)*(Réclamations!$K$2:$K$32=Z$2)*(Réclamations!$C$2:$C$32=$Z$1))","v":0},{"$f":"SUMPRODUCT((Réclamations!$B$2:$B$32=$A23)*(Réclamations!$K$2:$K$32=AA$2)*(Réclamations!$C$2:$C$32=$Z$1))","v":0},{"$f":"SUMPRODUCT((Réclamations!$B$2:$B$32=$A23)*(Réclamations!$K$2:$K$32=AB$2)*(Réclamations!$C$2:$C$32=$Z$1))","v":0},{"$f":"SUMPRODUCT((Réclamations!$B$2:$B$32=$A23)*(Réclamations!$K$2:$K$32=AC$2)*(Réclamations!$C$2:$C$32=$AC$1))","v":0},{"$f":"SUMPRODUCT((Réclamations!$B$2:$B$32=$A23)*(Réclamations!$K$2:$K$32=AD$2)*(Réclamations!$C$2:$C$32=$AC$1))","v":0},{"$f":"SUMPRODUCT((Réclamations!$B$2:$B$32=$A23)*(Réclamations!$K$2:$K$32=AE$2)*(Réclamations!$C$2:$C$32=$AC$1))","v":0},{"$f":"SUMPRODUCT((Réclamations!$B$2:$B$32=$A23)*(Réclamations!$K$2:$K$32=AF$2)*(Réclamations!$C$2:$C$32=$AF$1))","v":0},{"$f":"SUMPRODUCT((Réclamations!$B$2:$B$32=$A23)*(Réclamations!$K$2:$K$32=AG$2)*(Réclamations!$C$2:$C$32=$AF$1))","v":0},{"$f":"SUMPRODUCT((Réclamations!$B$2:$B$32=$A23)*(Réclamations!$K$2:$K$32=AH$2)*(Réclamations!$C$2:$C$32=$AF$1))","v":0},{"$f":"SUMPRODUCT((Réclamations!$B$2:$B$32=$A23)*(Réclamations!$K$2:$K$32=AI$2)*(Réclamations!$C$2:$C$32=$AI$1))","v":0},{"$f":"SUMPRODUCT((Réclamations!$B$2:$B$32=$A23)*(Réclamations!$K$2:$K$32=AJ$2)*(Réclamations!$C$2:$C$32=$E$1))","v":0},{"$f":"SUMPRODUCT((Réclamations!$B$2:$B$32=$A23)*(Réclamations!$K$2:$K$32=AK$2)*(Réclamations!$C$2:$C$32=$E$1))","v":0}]
["2018-01-22",{"$f":"SUMPRODUCT((Réclamations!$B$2:$B$32=$A24)*(Réclamations!$K$2:$K$32=B$2)*(Réclamations!$C$2:$C$32=$B$1))","v":0},{"$f":"SUMPRODUCT((Réclamations!$B$2:$B$32=$A24)*(Réclamations!$K$2:$K$32=C$2)*(Réclamations!$C$2:$C$32=$B$1))","v":0},{"$f":"SUMPRODUCT((Réclamations!$B$2:$B$32=$A24)*(Réclamations!$K$2:$K$32=D$2)*(Réclamations!$C$2:$C$32=$B$1))","v":0},{"$f":"SUMPRODUCT((Réclamations!$B$2:$B$32=$A24)*(Réclamations!$K$2:$K$32=E$2)*(Réclamations!$C$2:$C$32=$E$1))","v":0},{"$f":"SUMPRODUCT((Réclamations!$B$2:$B$32=$A24)*(Réclamations!$K$2:$K$32=F$2)*(Réclamations!$C$2:$C$32=$E$1))","v":0},{"$f":"SUMPRODUCT((Réclamations!$B$2:$B$32=$A24)*(Réclamations!$K$2:$K$32=G$2)*(Réclamations!$C$2:$C$32=$E$1))","v":0},{"$f":"SUMPRODUCT((Réclamations!$B$2:$B$32=$A24)*(Réclamations!$K$2:$K$32=H$2)*(Réclamations!$C$2:$C$32=$H$1))","v":0},{"$f":"SUMPRODUCT((Réclamations!$B$2:$B$32=$A24)*(Réclamations!$K$2:$K$32=I$2)*(Réclamations!$C$2:$C$32=$H$1))","v":0},{"$f":"SUMPRODUCT((Réclamations!$B$2:$B$32=$A24)*(Réclamations!$K$2:$K$32=J$2)*(Réclamations!$C$2:$C$32=$H$1))","v":0},{"$f":"SUMPRODUCT((Réclamations!$B$2:$B$32=$A24)*(Réclamations!$K$2:$K$32=K$2)*(Réclamations!$C$2:$C$32=$K$1))","v":0},{"$f":"SUMPRODUCT((Réclamations!$B$2:$B$32=$A24)*(Réclamations!$K$2:$K$32=L$2)*(Réclamations!$C$2:$C$32=$K$1))","v":0},{"$f":"SUMPRODUCT((Réclamations!$B$2:$B$32=$A24)*(Réclamations!$K$2:$K$32=M$2)*(Réclamations!$C$2:$C$32=$K$1))","v":0},{"$f":"SUMPRODUCT((Réclamations!$B$2:$B$32=$A24)*(Réclamations!$K$2:$K$32=N$2)*(Réclamations!$C$2:$C$32=$N$1))","v":0},{"$f":"SUMPRODUCT((Réclamations!$B$2:$B$32=$A24)*(Réclamations!$K$2:$K$32=O$2)*(Réclamations!$C$2:$C$32=$N$1))","v":0},{"$f":"SUMPRODUCT((Réclamations!$B$2:$B$32=$A24)*(Réclamations!$K$2:$K$32=P$2)*(Réclamations!$C$2:$C$32=$N$1))","v":0},{"$f":"SUMPRODUCT((Réclamations!$B$2:$B$32=$A24)*(Réclamations!$K$2:$K$32=Q$2)*(Réclamations!$C$2:$C$32=$Q$1))","v":0},{"$f":"SUMPRODUCT((Réclamations!$B$2:$B$32=$A24)*(Réclamations!$K$2:$K$32=R$2)*(Réclamations!$C$2:$C$32=$Q$1))","v":0},{"$f":"SUMPRODUCT((Réclamations!$B$2:$B$32=$A24)*(Réclamations!$K$2:$K$32=S$2)*(Réclamations!$C$2:$C$32=$Q$1))","v":0},{"$f":"SUMPRODUCT((Réclamations!$B$2:$B$32=$A24)*(Réclamations!$K$2:$K$32=T$2)*(Réclamations!$C$2:$C$32=$T$1))","v":0},{"$f":"SUMPRODUCT((Réclamations!$B$2:$B$32=$A24)*(Réclamations!$K$2:$K$32=U$2)*(Réclamations!$C$2:$C$32=$T$1))","v":0},{"$f":"SUMPRODUCT((Réclamations!$B$2:$B$32=$A24)*(Réclamations!$K$2:$K$32=V$2)*(Réclamations!$C$2:$C$32=$T$1))","v":0},{"$f":"SUMPRODUCT((Réclamations!$B$2:$B$32=$A24)*(Réclamations!$K$2:$K$32=W$2)*(Réclamations!$C$2:$C$32=$W$1))","v":0},{"$f":"SUMPRODUCT((Réclamations!$B$2:$B$32=$A24)*(Réclamations!$K$2:$K$32=X$2)*(Réclamations!$C$2:$C$32=$W$1))","v":0},{"$f":"SUMPRODUCT((Réclamations!$B$2:$B$32=$A24)*(Réclamations!$K$2:$K$32=Y$2)*(Réclamations!$C$2:$C$32=$W$1))","v":0},{"$f":"SUMPRODUCT((Réclamations!$B$2:$B$32=$A24)*(Réclamations!$K$2:$K$32=Z$2)*(Réclamations!$C$2:$C$32=$Z$1))","v":0},{"$f":"SUMPRODUCT((Réclamations!$B$2:$B$32=$A24)*(Réclamations!$K$2:$K$32=AA$2)*(Réclamations!$C$2:$C$32=$Z$1))","v":0},{"$f":"SUMPRODUCT((Réclamations!$B$2:$B$32=$A24)*(Réclamations!$K$2:$K$32=AB$2)*(Réclamations!$C$2:$C$32=$Z$1))","v":0},{"$f":"SUMPRODUCT((Réclamations!$B$2:$B$32=$A24)*(Réclamations!$K$2:$K$32=AC$2)*(Réclamations!$C$2:$C$32=$AC$1))","v":0},{"$f":"SUMPRODUCT((Réclamations!$B$2:$B$32=$A24)*(Réclamations!$K$2:$K$32=AD$2)*(Réclamations!$C$2:$C$32=$AC$1))","v":0},{"$f":"SUMPRODUCT((Réclamations!$B$2:$B$32=$A24)*(Réclamations!$K$2:$K$32=AE$2)*(Réclamations!$C$2:$C$32=$AC$1))","v":0},{"$f":"SUMPRODUCT((Réclamations!$B$2:$B$32=$A24)*(Réclamations!$K$2:$K$32=AF$2)*(Réclamations!$C$2:$C$32=$AF$1))","v":0},{"$f":"SUMPRODUCT((Réclamations!$B$2:$B$32=$A24)*(Réclamations!$K$2:$K$32=AG$2)*(Réclamations!$C$2:$C$32=$AF$1))","v":0},{"$f":"SUMPRODUCT((Réclamations!$B$2:$B$32=$A24)*(Réclamations!$K$2:$K$32=AH$2)*(Réclamations!$C$2:$C$32=$AF$1))","v":0},{"$f":"SUMPRODUCT((Réclamations!$B$2:$B$32=$A24)*(Réclamations!$K$2:$K$32=AI$2)*(Réclamations!$C$2:$C$32=$AI$1))","v":0},{"$f":"SUMPRODUCT((Réclamations!$B$2:$B$32=$A24)*(Réclamations!$K$2:$K$32=AJ$2)*(Réclamations!$C$2:$C$32=$E$1))","v":0},{"$f":"SUMPRODUCT((Réclamations!$B$2:$B$32=$A24)*(Réclamations!$K$2:$K$32=AK$2)*(Réclamations!$C$2:$C$32=$E$1))","v":0}]
["2018-01-23",{"$f":"SUMPRODUCT((Réclamations!$B$2:$B$32=$A25)*(Réclamations!$K$2:$K$32=B$2)*(Réclamations!$C$2:$C$32=$B$1))","v":0},{"$f":"SUMPRODUCT((Réclamations!$B$2:$B$32=$A25)*(Réclamations!$K$2:$K$32=C$2)*(Réclamations!$C$2:$C$32=$B$1))","v":0},{"$f":"SUMPRODUCT((Réclamations!$B$2:$B$32=$A25)*(Réclamations!$K$2:$K$32=D$2)*(Réclamations!$C$2:$C$32=$B$1))","v":0},{"$f":"SUMPRODUCT((Réclamations!$B$2:$B$32=$A25)*(Réclamations!$K$2:$K$32=E$2)*(Réclamations!$C$2:$C$32=$E$1))","v":0},{"$f":"SUMPRODUCT((Réclamations!$B$2:$B$32=$A25)*(Réclamations!$K$2:$K$32=F$2)*(Réclamations!$C$2:$C$32=$E$1))","v":0},{"$f":"SUMPRODUCT((Réclamations!$B$2:$B$32=$A25)*(Réclamations!$K$2:$K$32=G$2)*(Réclamations!$C$2:$C$32=$E$1))","v":0},{"$f":"SUMPRODUCT((Réclamations!$B$2:$B$32=$A25)*(Réclamations!$K$2:$K$32=H$2)*(Réclamations!$C$2:$C$32=$H$1))","v":0},{"$f":"SUMPRODUCT((Réclamations!$B$2:$B$32=$A25)*(Réclamations!$K$2:$K$32=I$2)*(Réclamations!$C$2:$C$32=$H$1))","v":0},{"$f":"SUMPRODUCT((Réclamations!$B$2:$B$32=$A25)*(Réclamations!$K$2:$K$32=J$2)*(Réclamations!$C$2:$C$32=$H$1))","v":0},{"$f":"SUMPRODUCT((Réclamations!$B$2:$B$32=$A25)*(Réclamations!$K$2:$K$32=K$2)*(Réclamations!$C$2:$C$32=$K$1))","v":0},{"$f":"SUMPRODUCT((Réclamations!$B$2:$B$32=$A25)*(Réclamations!$K$2:$K$32=L$2)*(Réclamations!$C$2:$C$32=$K$1))","v":0},{"$f":"SUMPRODUCT((Réclamations!$B$2:$B$32=$A25)*(Réclamations!$K$2:$K$32=M$2)*(Réclamations!$C$2:$C$32=$K$1))","v":0},{"$f":"SUMPRODUCT((Réclamations!$B$2:$B$32=$A25)*(Réclamations!$K$2:$K$32=N$2)*(Réclamations!$C$2:$C$32=$N$1))","v":0},{"$f":"SUMPRODUCT((Réclamations!$B$2:$B$32=$A25)*(Réclamations!$K$2:$K$32=O$2)*(Réclamations!$C$2:$C$32=$N$1))","v":0},{"$f":"SUMPRODUCT((Réclamations!$B$2:$B$32=$A25)*(Réclamations!$K$2:$K$32=P$2)*(Réclamations!$C$2:$C$32=$N$1))","v":0},{"$f":"SUMPRODUCT((Réclamations!$B$2:$B$32=$A25)*(Réclamations!$K$2:$K$32=Q$2)*(Réclamations!$C$2:$C$32=$Q$1))","v":0},{"$f":"SUMPRODUCT((Réclamations!$B$2:$B$32=$A25)*(Réclamations!$K$2:$K$32=R$2)*(Réclamations!$C$2:$C$32=$Q$1))","v":0},{"$f":"SUMPRODUCT((Réclamations!$B$2:$B$32=$A25)*(Réclamations!$K$2:$K$32=S$2)*(Réclamations!$C$2:$C$32=$Q$1))","v":0},{"$f":"SUMPRODUCT((Réclamations!$B$2:$B$32=$A25)*(Réclamations!$K$2:$K$32=T$2)*(Réclamations!$C$2:$C$32=$T$1))","v":0},{"$f":"SUMPRODUCT((Réclamations!$B$2:$B$32=$A25)*(Réclamations!$K$2:$K$32=U$2)*(Réclamations!$C$2:$C$32=$T$1))","v":0},{"$f":"SUMPRODUCT((Réclamations!$B$2:$B$32=$A25)*(Réclamations!$K$2:$K$32=V$2)*(Réclamations!$C$2:$C$32=$T$1))","v":0},{"$f":"SUMPRODUCT((Réclamations!$B$2:$B$32=$A25)*(Réclamations!$K$2:$K$32=W$2)*(Réclamations!$C$2:$C$32=$W$1))","v":0},{"$f":"SUMPRODUCT((Réclamations!$B$2:$B$32=$A25)*(Réclamations!$K$2:$K$32=X$2)*(Réclamations!$C$2:$C$32=$W$1))","v":0},{"$f":"SUMPRODUCT((Réclamations!$B$2:$B$32=$A25)*(Réclamations!$K$2:$K$32=Y$2)*(Réclamations!$C$2:$C$32=$W$1))","v":0},{"$f":"SUMPRODUCT((Réclamations!$B$2:$B$32=$A25)*(Réclamations!$K$2:$K$32=Z$2)*(Réclamations!$C$2:$C$32=$Z$1))","v":0},{"$f":"SUMPRODUCT((Réclamations!$B$2:$B$32=$A25)*(Réclamations!$K$2:$K$32=AA$2)*(Réclamations!$C$2:$C$32=$Z$1))","v":0},{"$f":"SUMPRODUCT((Réclamations!$B$2:$B$32=$A25)*(Réclamations!$K$2:$K$32=AB$2)*(Réclamations!$C$2:$C$32=$Z$1))","v":0},{"$f":"SUMPRODUCT((Réclamations!$B$2:$B$32=$A25)*(Réclamations!$K$2:$K$32=AC$2)*(Réclamations!$C$2:$C$32=$AC$1))","v":0},{"$f":"SUMPRODUCT((Réclamations!$B$2:$B$32=$A25)*(Réclamations!$K$2:$K$32=AD$2)*(Réclamations!$C$2:$C$32=$AC$1))","v":0},{"$f":"SUMPRODUCT((Réclamations!$B$2:$B$32=$A25)*(Réclamations!$K$2:$K$32=AE$2)*(Réclamations!$C$2:$C$32=$AC$1))","v":0},{"$f":"SUMPRODUCT((Réclamations!$B$2:$B$32=$A25)*(Réclamations!$K$2:$K$32=AF$2)*(Réclamations!$C$2:$C$32=$AF$1))","v":0},{"$f":"SUMPRODUCT((Réclamations!$B$2:$B$32=$A25)*(Réclamations!$K$2:$K$32=AG$2)*(Réclamations!$C$2:$C$32=$AF$1))","v":0},{"$f":"SUMPRODUCT((Réclamations!$B$2:$B$32=$A25)*(Réclamations!$K$2:$K$32=AH$2)*(Réclamations!$C$2:$C$32=$AF$1))","v":0},{"$f":"SUMPRODUCT((Réclamations!$B$2:$B$32=$A25)*(Réclamations!$K$2:$K$32=AI$2)*(Réclamations!$C$2:$C$32=$AI$1))","v":0},{"$f":"SUMPRODUCT((Réclamations!$B$2:$B$32=$A25)*(Réclamations!$K$2:$K$32=AJ$2)*(Réclamations!$C$2:$C$32=$E$1))","v":0},{"$f":"SUMPRODUCT((Réclamations!$B$2:$B$32=$A25)*(Réclamations!$K$2:$K$32=AK$2)*(Réclamations!$C$2:$C$32=$E$1))","v":0}]
["2018-01-24",{"$f":"SUMPRODUCT((Réclamations!$B$2:$B$32=$A26)*(Réclamations!$K$2:$K$32=B$2)*(Réclamations!$C$2:$C$32=$B$1))","v":0},{"$f":"SUMPRODUCT((Réclamations!$B$2:$B$32=$A26)*(Réclamations!$K$2:$K$32=C$2)*(Réclamations!$C$2:$C$32=$B$1))","v":0},{"$f":"SUMPRODUCT((Réclamations!$B$2:$B$32=$A26)*(Réclamations!$K$2:$K$32=D$2)*(Réclamations!$C$2:$C$32=$B$1))","v":0},{"$f":"SUMPRODUCT((Réclamations!$B$2:$B$32=$A26)*(Réclamations!$K$2:$K$32=E$2)*(Réclamations!$C$2:$C$32=$E$1))","v":0},{"$f":"SUMPRODUCT((Réclamations!$B$2:$B$32=$A26)*(Réclamations!$K$2:$K$32=F$2)*(Réclamations!$C$2:$C$32=$E$1))","v":0},{"$f":"SUMPRODUCT((Réclamations!$B$2:$B$32=$A26)*(Réclamations!$K$2:$K$32=G$2)*(Réclamations!$C$2:$C$32=$E$1))","v":0},{"$f":"SUMPRODUCT((Réclamations!$B$2:$B$32=$A26)*(Réclamations!$K$2:$K$32=H$2)*(Réclamations!$C$2:$C$32=$H$1))","v":0},{"$f":"SUMPRODUCT((Réclamations!$B$2:$B$32=$A26)*(Réclamations!$K$2:$K$32=I$2)*(Réclamations!$C$2:$C$32=$H$1))","v":0},{"$f":"SUMPRODUCT((Réclamations!$B$2:$B$32=$A26)*(Réclamations!$K$2:$K$32=J$2)*(Réclamations!$C$2:$C$32=$H$1))","v":0},{"$f":"SUMPRODUCT((Réclamations!$B$2:$B$32=$A26)*(Réclamations!$K$2:$K$32=K$2)*(Réclamations!$C$2:$C$32=$K$1))","v":0},{"$f":"SUMPRODUCT((Réclamations!$B$2:$B$32=$A26)*(Réclamations!$K$2:$K$32=L$2)*(Réclamations!$C$2:$C$32=$K$1))","v":0},{"$f":"SUMPRODUCT((Réclamations!$B$2:$B$32=$A26)*(Réclamations!$K$2:$K$32=M$2)*(Réclamations!$C$2:$C$32=$K$1))","v":0},{"$f":"SUMPRODUCT((Réclamations!$B$2:$B$32=$A26)*(Réclamations!$K$2:$K$32=N$2)*(Réclamations!$C$2:$C$32=$N$1))","v":0},{"$f":"SUMPRODUCT((Réclamations!$B$2:$B$32=$A26)*(Réclamations!$K$2:$K$32=O$2)*(Réclamations!$C$2:$C$32=$N$1))","v":0},{"$f":"SUMPRODUCT((Réclamations!$B$2:$B$32=$A26)*(Réclamations!$K$2:$K$32=P$2)*(Réclamations!$C$2:$C$32=$N$1))","v":0},{"$f":"SUMPRODUCT((Réclamations!$B$2:$B$32=$A26)*(Réclamations!$K$2:$K$32=Q$2)*(Réclamations!$C$2:$C$32=$Q$1))","v":0},{"$f":"SUMPRODUCT((Réclamations!$B$2:$B$32=$A26)*(Réclamations!$K$2:$K$32=R$2)*(Réclamations!$C$2:$C$32=$Q$1))","v":0},{"$f":"SUMPRODUCT((Réclamations!$B$2:$B$32=$A26)*(Réclamations!$K$2:$K$32=S$2)*(Réclamations!$C$2:$C$32=$Q$1))","v":0},{"$f":"SUMPRODUCT((Réclamations!$B$2:$B$32=$A26)*(Réclamations!$K$2:$K$32=T$2)*(Réclamations!$C$2:$C$32=$T$1))","v":0},{"$f":"SUMPRODUCT((Réclamations!$B$2:$B$32=$A26)*(Réclamations!$K$2:$K$32=U$2)*(Réclamations!$C$2:$C$32=$T$1))","v":0},{"$f":"SUMPRODUCT((Réclamations!$B$2:$B$32=$A26)*(Réclamations!$K$2:$K$32=V$2)*(Réclamations!$C$2:$C$32=$T$1))","v":0},{"$f":"SUMPRODUCT((Réclamations!$B$2:$B$32=$A26)*(Réclamations!$K$2:$K$32=W$2)*(Réclamations!$C$2:$C$32=$W$1))","v":0},{"$f":"SUMPRODUCT((Réclamations!$B$2:$B$32=$A26)*(Réclamations!$K$2:$K$32=X$2)*(Réclamations!$C$2:$C$32=$W$1))","v":0},{"$f":"SUMPRODUCT((Réclamations!$B$2:$B$32=$A26)*(Réclamations!$K$2:$K$32=Y$2)*(Réclamations!$C$2:$C$32=$W$1))","v":0},{"$f":"SUMPRODUCT((Réclamations!$B$2:$B$32=$A26)*(Réclamations!$K$2:$K$32=Z$2)*(Réclamations!$C$2:$C$32=$Z$1))","v":0},{"$f":"SUMPRODUCT((Réclamations!$B$2:$B$32=$A26)*(Réclamations!$K$2:$K$32=AA$2)*(Réclamations!$C$2:$C$32=$Z$1))","v":0},{"$f":"SUMPRODUCT((Réclamations!$B$2:$B$32=$A26)*(Réclamations!$K$2:$K$32=AB$2)*(Réclamations!$C$2:$C$32=$Z$1))","v":0},{"$f":"SUMPRODUCT((Réclamations!$B$2:$B$32=$A26)*(Réclamations!$K$2:$K$32=AC$2)*(Réclamations!$C$2:$C$32=$AC$1))","v":0},{"$f":"SUMPRODUCT((Réclamations!$B$2:$B$32=$A26)*(Réclamations!$K$2:$K$32=AD$2)*(Réclamations!$C$2:$C$32=$AC$1))","v":0},{"$f":"SUMPRODUCT((Réclamations!$B$2:$B$32=$A26)*(Réclamations!$K$2:$K$32=AE$2)*(Réclamations!$C$2:$C$32=$AC$1))","v":0},{"$f":"SUMPRODUCT((Réclamations!$B$2:$B$32=$A26)*(Réclamations!$K$2:$K$32=AF$2)*(Réclamations!$C$2:$C$32=$AF$1))","v":0},{"$f":"SUMPRODUCT((Réclamations!$B$2:$B$32=$A26)*(Réclamations!$K$2:$K$32=AG$2)*(Réclamations!$C$2:$C$32=$AF$1))","v":0},{"$f":"SUMPRODUCT((Réclamations!$B$2:$B$32=$A26)*(Réclamations!$K$2:$K$32=AH$2)*(Réclamations!$C$2:$C$32=$AF$1))","v":0},{"$f":"SUMPRODUCT((Réclamations!$B$2:$B$32=$A26)*(Réclamations!$K$2:$K$32=AI$2)*(Réclamations!$C$2:$C$32=$AI$1))","v":0},{"$f":"SUMPRODUCT((Réclamations!$B$2:$B$32=$A26)*(Réclamations!$K$2:$K$32=AJ$2)*(Réclamations!$C$2:$C$32=$E$1))","v":0},{"$f":"SUMPRODUCT((Réclamations!$B$2:$B$32=$A26)*(Réclamations!$K$2:$K$32=AK$2)*(Réclamations!$C$2:$C$32=$E$1))","v":0}]
["2018-01-25",{"$f":"SUMPRODUCT((Réclamations!$B$2:$B$32=$A27)*(Réclamations!$K$2:$K$32=B$2)*(Réclamations!$C$2:$C$32=$B$1))","v":0},{"$f":"SUMPRODUCT((Réclamations!$B$2:$B$32=$A27)*(Réclamations!$K$2:$K$32=C$2)*(Réclamations!$C$2:$C$32=$B$1))","v":0},{"$f":"SUMPRODUCT((Réclamations!$B$2:$B$32=$A27)*(Réclamations!$K$2:$K$32=D$2)*(Réclamations!$C$2:$C$32=$B$1))","v":0},{"$f":"SUMPRODUCT((Réclamations!$B$2:$B$32=$A27)*(Réclamations!$K$2:$K$32=E$2)*(Réclamations!$C$2:$C$32=$E$1))","v":0},{"$f":"SUMPRODUCT((Réclamations!$B$2:$B$32=$A27)*(Réclamations!$K$2:$K$32=F$2)*(Réclamations!$C$2:$C$32=$E$1))","v":0},{"$f":"SUMPRODUCT((Réclamations!$B$2:$B$32=$A27)*(Réclamations!$K$2:$K$32=G$2)*(Réclamations!$C$2:$C$32=$E$1))","v":0},{"$f":"SUMPRODUCT((Réclamations!$B$2:$B$32=$A27)*(Réclamations!$K$2:$K$32=H$2)*(Réclamations!$C$2:$C$32=$H$1))","v":0},{"$f":"SUMPRODUCT((Réclamations!$B$2:$B$32=$A27)*(Réclamations!$K$2:$K$32=I$2)*(Réclamations!$C$2:$C$32=$H$1))","v":0},{"$f":"SUMPRODUCT((Réclamations!$B$2:$B$32=$A27)*(Réclamations!$K$2:$K$32=J$2)*(Réclamations!$C$2:$C$32=$H$1))","v":0},{"$f":"SUMPRODUCT((Réclamations!$B$2:$B$32=$A27)*(Réclamations!$K$2:$K$32=K$2)*(Réclamations!$C$2:$C$32=$K$1))","v":0},{"$f":"SUMPRODUCT((Réclamations!$B$2:$B$32=$A27)*(Réclamations!$K$2:$K$32=L$2)*(Réclamations!$C$2:$C$32=$K$1))","v":0},{"$f":"SUMPRODUCT((Réclamations!$B$2:$B$32=$A27)*(Réclamations!$K$2:$K$32=M$2)*(Réclamations!$C$2:$C$32=$K$1))","v":0},{"$f":"SUMPRODUCT((Réclamations!$B$2:$B$32=$A27)*(Réclamations!$K$2:$K$32=N$2)*(Réclamations!$C$2:$C$32=$N$1))","v":0},{"$f":"SUMPRODUCT((Réclamations!$B$2:$B$32=$A27)*(Réclamations!$K$2:$K$32=O$2)*(Réclamations!$C$2:$C$32=$N$1))","v":0},{"$f":"SUMPRODUCT((Réclamations!$B$2:$B$32=$A27)*(Réclamations!$K$2:$K$32=P$2)*(Réclamations!$C$2:$C$32=$N$1))","v":0},{"$f":"SUMPRODUCT((Réclamations!$B$2:$B$32=$A27)*(Réclamations!$K$2:$K$32=Q$2)*(Réclamations!$C$2:$C$32=$Q$1))","v":0},{"$f":"SUMPRODUCT((Réclamations!$B$2:$B$32=$A27)*(Réclamations!$K$2:$K$32=R$2)*(Réclamations!$C$2:$C$32=$Q$1))","v":0},{"$f":"SUMPRODUCT((Réclamations!$B$2:$B$32=$A27)*(Réclamations!$K$2:$K$32=S$2)*(Réclamations!$C$2:$C$32=$Q$1))","v":0},{"$f":"SUMPRODUCT((Réclamations!$B$2:$B$32=$A27)*(Réclamations!$K$2:$K$32=T$2)*(Réclamations!$C$2:$C$32=$T$1))","v":0},{"$f":"SUMPRODUCT((Réclamations!$B$2:$B$32=$A27)*(Réclamations!$K$2:$K$32=U$2)*(Réclamations!$C$2:$C$32=$T$1))","v":0},{"$f":"SUMPRODUCT((Réclamations!$B$2:$B$32=$A27)*(Réclamations!$K$2:$K$32=V$2)*(Réclamations!$C$2:$C$32=$T$1))","v":0},{"$f":"SUMPRODUCT((Réclamations!$B$2:$B$32=$A27)*(Réclamations!$K$2:$K$32=W$2)*(Réclamations!$C$2:$C$32=$W$1))","v":0},{"$f":"SUMPRODUCT((Réclamations!$B$2:$B$32=$A27)*(Réclamations!$K$2:$K$32=X$2)*(Réclamations!$C$2:$C$32=$W$1))","v":0},{"$f":"SUMPRODUCT((Réclamations!$B$2:$B$32=$A27)*(Réclamations!$K$2:$K$32=Y$2)*(Réclamations!$C$2:$C$32=$W$1))","v":0},{"$f":"SUMPRODUCT((Réclamations!$B$2:$B$32=$A27)*(Réclamations!$K$2:$K$32=Z$2)*(Réclamations!$C$2:$C$32=$Z$1))","v":0},{"$f":"SUMPRODUCT((Réclamations!$B$2:$B$32=$A27)*(Réclamations!$K$2:$K$32=AA$2)*(Réclamations!$C$2:$C$32=$Z$1))","v":0},{"$f":"SUMPRODUCT((Réclamations!$B$2:$B$32=$A27)*(Réclamations!$K$2:$K$32=AB$2)*(Réclamations!$C$2:$C$32=$Z$1))","v":0},{"$f":"SUMPRODUCT((Réclamations!$B$2:$B$32=$A27)*(Réclamations!$K$2:$K$32=AC$2)*(Réclamations!$C$2:$C$32=$AC$1))","v":0},{"$f":"SUMPRODUCT((Réclamations!$B$2:$B$32=$A27)*(Réclamations!$K$2:$K$32=AD$2)*(Réclamations!$C$2:$C$32=$AC$1))","v":0},{"$f":"SUMPRODUCT((Réclamations!$B$2:$B$32=$A27)*(Réclamations!$K$2:$K$32=AE$2)*(Réclamations!$C$2:$C$32=$AC$1))","v":0},{"$f":"SUMPRODUCT((Réclamations!$B$2:$B$32=$A27)*(Réclamations!$K$2:$K$32=AF$2)*(Réclamations!$C$2:$C$32=$AF$1))","v":0},{"$f":"SUMPRODUCT((Réclamations!$B$2:$B$32=$A27)*(Réclamations!$K$2:$K$32=AG$2)*(Réclamations!$C$2:$C$32=$AF$1))","v":0},{"$f":"SUMPRODUCT((Réclamations!$B$2:$B$32=$A27)*(Réclamations!$K$2:$K$32=AH$2)*(Réclamations!$C$2:$C$32=$AF$1))","v":0},{"$f":"SUMPRODUCT((Réclamations!$B$2:$B$32=$A27)*(Réclamations!$K$2:$K$32=AI$2)*(Réclamations!$C$2:$C$32=$AI$1))","v":0},{"$f":"SUMPRODUCT((Réclamations!$B$2:$B$32=$A27)*(Réclamations!$K$2:$K$32=AJ$2)*(Réclamations!$C$2:$C$32=$E$1))","v":0},{"$f":"SUMPRODUCT((Réclamations!$B$2:$B$32=$A27)*(Réclamations!$K$2:$K$32=AK$2)*(Réclamations!$C$2:$C$32=$E$1))","v":0}]
["2018-01-26",{"$f":"SUMPRODUCT((Réclamations!$B$2:$B$32=$A28)*(Réclamations!$K$2:$K$32=B$2)*(Réclamations!$C$2:$C$32=$B$1))","v":0},{"$f":"SUMPRODUCT((Réclamations!$B$2:$B$32=$A28)*(Réclamations!$K$2:$K$32=C$2)*(Réclamations!$C$2:$C$32=$B$1))","v":0},{"$f":"SUMPRODUCT((Réclamations!$B$2:$B$32=$A28)*(Réclamations!$K$2:$K$32=D$2)*(Réclamations!$C$2:$C$32=$B$1))","v":0},{"$f":"SUMPRODUCT((Réclamations!$B$2:$B$32=$A28)*(Réclamations!$K$2:$K$32=E$2)*(Réclamations!$C$2:$C$32=$E$1))","v":0},{"$f":"SUMPRODUCT((Réclamations!$B$2:$B$32=$A28)*(Réclamations!$K$2:$K$32=F$2)*(Réclamations!$C$2:$C$32=$E$1))","v":0},{"$f":"SUMPRODUCT((Réclamations!$B$2:$B$32=$A28)*(Réclamations!$K$2:$K$32=G$2)*(Réclamations!$C$2:$C$32=$E$1))","v":0},{"$f":"SUMPRODUCT((Réclamations!$B$2:$B$32=$A28)*(Réclamations!$K$2:$K$32=H$2)*(Réclamations!$C$2:$C$32=$H$1))","v":0},{"$f":"SUMPRODUCT((Réclamations!$B$2:$B$32=$A28)*(Réclamations!$K$2:$K$32=I$2)*(Réclamations!$C$2:$C$32=$H$1))","v":0},{"$f":"SUMPRODUCT((Réclamations!$B$2:$B$32=$A28)*(Réclamations!$K$2:$K$32=J$2)*(Réclamations!$C$2:$C$32=$H$1))","v":0},{"$f":"SUMPRODUCT((Réclamations!$B$2:$B$32=$A28)*(Réclamations!$K$2:$K$32=K$2)*(Réclamations!$C$2:$C$32=$K$1))","v":0},{"$f":"SUMPRODUCT((Réclamations!$B$2:$B$32=$A28)*(Réclamations!$K$2:$K$32=L$2)*(Réclamations!$C$2:$C$32=$K$1))","v":0},{"$f":"SUMPRODUCT((Réclamations!$B$2:$B$32=$A28)*(Réclamations!$K$2:$K$32=M$2)*(Réclamations!$C$2:$C$32=$K$1))","v":0},{"$f":"SUMPRODUCT((Réclamations!$B$2:$B$32=$A28)*(Réclamations!$K$2:$K$32=N$2)*(Réclamations!$C$2:$C$32=$N$1))","v":0},{"$f":"SUMPRODUCT((Réclamations!$B$2:$B$32=$A28)*(Réclamations!$K$2:$K$32=O$2)*(Réclamations!$C$2:$C$32=$N$1))","v":0},{"$f":"SUMPRODUCT((Réclamations!$B$2:$B$32=$A28)*(Réclamations!$K$2:$K$32=P$2)*(Réclamations!$C$2:$C$32=$N$1))","v":0},{"$f":"SUMPRODUCT((Réclamations!$B$2:$B$32=$A28)*(Réclamations!$K$2:$K$32=Q$2)*(Réclamations!$C$2:$C$32=$Q$1))","v":0},{"$f":"SUMPRODUCT((Réclamations!$B$2:$B$32=$A28)*(Réclamations!$K$2:$K$32=R$2)*(Réclamations!$C$2:$C$32=$Q$1))","v":0},{"$f":"SUMPRODUCT((Réclamations!$B$2:$B$32=$A28)*(Réclamations!$K$2:$K$32=S$2)*(Réclamations!$C$2:$C$32=$Q$1))","v":0},{"$f":"SUMPRODUCT((Réclamations!$B$2:$B$32=$A28)*(Réclamations!$K$2:$K$32=T$2)*(Réclamations!$C$2:$C$32=$T$1))","v":0},{"$f":"SUMPRODUCT((Réclamations!$B$2:$B$32=$A28)*(Réclamations!$K$2:$K$32=U$2)*(Réclamations!$C$2:$C$32=$T$1))","v":0},{"$f":"SUMPRODUCT((Réclamations!$B$2:$B$32=$A28)*(Réclamations!$K$2:$K$32=V$2)*(Réclamations!$C$2:$C$32=$T$1))","v":0},{"$f":"SUMPRODUCT((Réclamations!$B$2:$B$32=$A28)*(Réclamations!$K$2:$K$32=W$2)*(Réclamations!$C$2:$C$32=$W$1))","v":0},{"$f":"SUMPRODUCT((Réclamations!$B$2:$B$32=$A28)*(Réclamations!$K$2:$K$32=X$2)*(Réclamations!$C$2:$C$32=$W$1))","v":0},{"$f":"SUMPRODUCT((Réclamations!$B$2:$B$32=$A28)*(Réclamations!$K$2:$K$32=Y$2)*(Réclamations!$C$2:$C$32=$W$1))","v":0},{"$f":"SUMPRODUCT((Réclamations!$B$2:$B$32=$A28)*(Réclamations!$K$2:$K$32=Z$2)*(Réclamations!$C$2:$C$32=$Z$1))","v":0},{"$f":"SUMPRODUCT((Réclamations!$B$2:$B$32=$A28)*(Réclamations!$K$2:$K$32=AA$2)*(Réclamations!$C$2:$C$32=$Z$1))","v":0},{"$f":"SUMPRODUCT((Réclamations!$B$2:$B$32=$A28)*(Réclamations!$K$2:$K$32=AB$2)*(Réclamations!$C$2:$C$32=$Z$1))","v":0},{"$f":"SUMPRODUCT((Réclamations!$B$2:$B$32=$A28)*(Réclamations!$K$2:$K$32=AC$2)*(Réclamations!$C$2:$C$32=$AC$1))","v":0},{"$f":"SUMPRODUCT((Réclamations!$B$2:$B$32=$A28)*(Réclamations!$K$2:$K$32=AD$2)*(Réclamations!$C$2:$C$32=$AC$1))","v":0},{"$f":"SUMPRODUCT((Réclamations!$B$2:$B$32=$A28)*(Réclamations!$K$2:$K$32=AE$2)*(Réclamations!$C$2:$C$32=$AC$1))","v":0},{"$f":"SUMPRODUCT((Réclamations!$B$2:$B$32=$A28)*(Réclamations!$K$2:$K$32=AF$2)*(Réclamations!$C$2:$C$32=$AF$1))","v":0},{"$f":"SUMPRODUCT((Réclamations!$B$2:$B$32=$A28)*(Réclamations!$K$2:$K$32=AG$2)*(Réclamations!$C$2:$C$32=$AF$1))","v":0},{"$f":"SUMPRODUCT((Réclamations!$B$2:$B$32=$A28)*(Réclamations!$K$2:$K$32=AH$2)*(Réclamations!$C$2:$C$32=$AF$1))","v":0},{"$f":"SUMPRODUCT((Réclamations!$B$2:$B$32=$A28)*(Réclamations!$K$2:$K$32=AI$2)*(Réclamations!$C$2:$C$32=$AI$1))","v":0},{"$f":"SUMPRODUCT((Réclamations!$B$2:$B$32=$A28)*(Réclamations!$K$2:$K$32=AJ$2)*(Réclamations!$C$2:$C$32=$E$1))","v":0},{"$f":"SUMPRODUCT((Réclamations!$B$2:$B$32=$A28)*(Réclamations!$K$2:$K$32=AK$2)*(Réclamations!$C$2:$C$32=$E$1))","v":0}]
["2018-01-27",{"$f":"SUMPRODUCT((Réclamations!$B$2:$B$32=$A29)*(Réclamations!$K$2:$K$32=B$2)*(Réclamations!$C$2:$C$32=$B$1))","v":0},{"$f":"SUMPRODUCT((Réclamations!$B$2:$B$32=$A29)*(Réclamations!$K$2:$K$32=C$2)*(Réclamations!$C$2:$C$32=$B$1))","v":0},{"$f":"SUMPRODUCT((Réclamations!$B$2:$B$32=$A29)*(Réclamations!$K$2:$K$32=D$2)*(Réclamations!$C$2:$C$32=$B$1))","v":0},{"$f":"SUMPRODUCT((Réclamations!$B$2:$B$32=$A29)*(Réclamations!$K$2:$K$32=E$2)*(Réclamations!$C$2:$C$32=$E$1))","v":0},{"$f":"SUMPRODUCT((Réclamations!$B$2:$B$32=$A29)*(Réclamations!$K$2:$K$32=F$2)*(Réclamations!$C$2:$C$32=$E$1))","v":0},{"$f":"SUMPRODUCT((Réclamations!$B$2:$B$32=$A29)*(Réclamations!$K$2:$K$32=G$2)*(Réclamations!$C$2:$C$32=$E$1))","v":0},{"$f":"SUMPRODUCT((Réclamations!$B$2:$B$32=$A29)*(Réclamations!$K$2:$K$32=H$2)*(Réclamations!$C$2:$C$32=$H$1))","v":0},{"$f":"SUMPRODUCT((Réclamations!$B$2:$B$32=$A29)*(Réclamations!$K$2:$K$32=I$2)*(Réclamations!$C$2:$C$32=$H$1))","v":0},{"$f":"SUMPRODUCT((Réclamations!$B$2:$B$32=$A29)*(Réclamations!$K$2:$K$32=J$2)*(Réclamations!$C$2:$C$32=$H$1))","v":0},{"$f":"SUMPRODUCT((Réclamations!$B$2:$B$32=$A29)*(Réclamations!$K$2:$K$32=K$2)*(Réclamations!$C$2:$C$32=$K$1))","v":0},{"$f":"SUMPRODUCT((Réclamations!$B$2:$B$32=$A29)*(Réclamations!$K$2:$K$32=L$2)*(Réclamations!$C$2:$C$32=$K$1))","v":0},{"$f":"SUMPRODUCT((Réclamations!$B$2:$B$32=$A29)*(Réclamations!$K$2:$K$32=M$2)*(Réclamations!$C$2:$C$32=$K$1))","v":0},{"$f":"SUMPRODUCT((Réclamations!$B$2:$B$32=$A29)*(Réclamations!$K$2:$K$32=N$2)*(Réclamations!$C$2:$C$32=$N$1))","v":0},{"$f":"SUMPRODUCT((Réclamations!$B$2:$B$32=$A29)*(Réclamations!$K$2:$K$32=O$2)*(Réclamations!$C$2:$C$32=$N$1))","v":0},{"$f":"SUMPRODUCT((Réclamations!$B$2:$B$32=$A29)*(Réclamations!$K$2:$K$32=P$2)*(Réclamations!$C$2:$C$32=$N$1))","v":0},{"$f":"SUMPRODUCT((Réclamations!$B$2:$B$32=$A29)*(Réclamations!$K$2:$K$32=Q$2)*(Réclamations!$C$2:$C$32=$Q$1))","v":0},{"$f":"SUMPRODUCT((Réclamations!$B$2:$B$32=$A29)*(Réclamations!$K$2:$K$32=R$2)*(Réclamations!$C$2:$C$32=$Q$1))","v":0},{"$f":"SUMPRODUCT((Réclamations!$B$2:$B$32=$A29)*(Réclamations!$K$2:$K$32=S$2)*(Réclamations!$C$2:$C$32=$Q$1))","v":0},{"$f":"SUMPRODUCT((Réclamations!$B$2:$B$32=$A29)*(Réclamations!$K$2:$K$32=T$2)*(Réclamations!$C$2:$C$32=$T$1))","v":0},{"$f":"SUMPRODUCT((Réclamations!$B$2:$B$32=$A29)*(Réclamations!$K$2:$K$32=U$2)*(Réclamations!$C$2:$C$32=$T$1))","v":0},{"$f":"SUMPRODUCT((Réclamations!$B$2:$B$32=$A29)*(Réclamations!$K$2:$K$32=V$2)*(Réclamations!$C$2:$C$32=$T$1))","v":0},{"$f":"SUMPRODUCT((Réclamations!$B$2:$B$32=$A29)*(Réclamations!$K$2:$K$32=W$2)*(Réclamations!$C$2:$C$32=$W$1))","v":0},{"$f":"SUMPRODUCT((Réclamations!$B$2:$B$32=$A29)*(Réclamations!$K$2:$K$32=X$2)*(Réclamations!$C$2:$C$32=$W$1))","v":0},{"$f":"SUMPRODUCT((Réclamations!$B$2:$B$32=$A29)*(Réclamations!$K$2:$K$32=Y$2)*(Réclamations!$C$2:$C$32=$W$1))","v":0},{"$f":"SUMPRODUCT((Réclamations!$B$2:$B$32=$A29)*(Réclamations!$K$2:$K$32=Z$2)*(Réclamations!$C$2:$C$32=$Z$1))","v":0},{"$f":"SUMPRODUCT((Réclamations!$B$2:$B$32=$A29)*(Réclamations!$K$2:$K$32=AA$2)*(Réclamations!$C$2:$C$32=$Z$1))","v":0},{"$f":"SUMPRODUCT((Réclamations!$B$2:$B$32=$A29)*(Réclamations!$K$2:$K$32=AB$2)*(Réclamations!$C$2:$C$32=$Z$1))","v":0},{"$f":"SUMPRODUCT((Réclamations!$B$2:$B$32=$A29)*(Réclamations!$K$2:$K$32=AC$2)*(Réclamations!$C$2:$C$32=$AC$1))","v":0},{"$f":"SUMPRODUCT((Réclamations!$B$2:$B$32=$A29)*(Réclamations!$K$2:$K$32=AD$2)*(Réclamations!$C$2:$C$32=$AC$1))","v":0},{"$f":"SUMPRODUCT((Réclamations!$B$2:$B$32=$A29)*(Réclamations!$K$2:$K$32=AE$2)*(Réclamations!$C$2:$C$32=$AC$1))","v":0},{"$f":"SUMPRODUCT((Réclamations!$B$2:$B$32=$A29)*(Réclamations!$K$2:$K$32=AF$2)*(Réclamations!$C$2:$C$32=$AF$1))","v":0},{"$f":"SUMPRODUCT((Réclamations!$B$2:$B$32=$A29)*(Réclamations!$K$2:$K$32=AG$2)*(Réclamations!$C$2:$C$32=$AF$1))","v":0},{"$f":"SUMPRODUCT((Réclamations!$B$2:$B$32=$A29)*(Réclamations!$K$2:$K$32=AH$2)*(Réclamations!$C$2:$C$32=$AF$1))","v":0},{"$f":"SUMPRODUCT((Réclamations!$B$2:$B$32=$A29)*(Réclamations!$K$2:$K$32=AI$2)*(Réclamations!$C$2:$C$32=$AI$1))","v":0},{"$f":"SUMPRODUCT((Réclamations!$B$2:$B$32=$A29)*(Réclamations!$K$2:$K$32=AJ$2)*(Réclamations!$C$2:$C$32=$E$1))","v":0},{"$f":"SUMPRODUCT((Réclamations!$B$2:$B$32=$A29)*(Réclamations!$K$2:$K$32=AK$2)*(Réclamations!$C$2:$C$32=$E$1))","v":0}]
["2018-01-28",{"$f":"SUMPRODUCT((Réclamations!$B$2:$B$32=$A30)*(Réclamations!$K$2:$K$32=B$2)*(Réclamations!$C$2:$C$32=$B$1))","v":0},{"$f":"SUMPRODUCT((Réclamations!$B$2:$B$32=$A30)*(Réclamations!$K$2:$K$32=C$2)*(Réclamations!$C$2:$C$32=$B$1))","v":0},{"$f":"SUMPRODUCT((Réclamations!$B$2:$B$32=$A30)*(Réclamations!$K$2:$K$32=D$2)*(Réclamations!$C$2:$C$32=$B$1))","v":0},{"$f":"SUMPRODUCT((Réclamations!$B$2:$B$32=$A30)*(Réclamations!$K$2:$K$32=E$2)*(Réclamations!$C$2:$C$32=$E$1))","v":0},{"$f":"SUMPRODUCT((Réclamations!$B$2:$B$32=$A30)*(Réclamations!$K$2:$K$32=F$2)*(Réclamations!$C$2:$C$32=$E$1))","v":0},{"$f":"SUMPRODUCT((Réclamations!$B$2:$B$32=$A30)*(Réclamations!$K$2:$K$32=G$2)*(Réclamations!$C$2:$C$32=$E$1))","v":0},{"$f":"SUMPRODUCT((Réclamations!$B$2:$B$32=$A30)*(Réclamations!$K$2:$K$32=H$2)*(Réclamations!$C$2:$C$32=$H$1))","v":0},{"$f":"SUMPRODUCT((Réclamations!$B$2:$B$32=$A30)*(Réclamations!$K$2:$K$32=I$2)*(Réclamations!$C$2:$C$32=$H$1))","v":0},{"$f":"SUMPRODUCT((Réclamations!$B$2:$B$32=$A30)*(Réclamations!$K$2:$K$32=J$2)*(Réclamations!$C$2:$C$32=$H$1))","v":0},{"$f":"SUMPRODUCT((Réclamations!$B$2:$B$32=$A30)*(Réclamations!$K$2:$K$32=K$2)*(Réclamations!$C$2:$C$32=$K$1))","v":0},{"$f":"SUMPRODUCT((Réclamations!$B$2:$B$32=$A30)*(Réclamations!$K$2:$K$32=L$2)*(Réclamations!$C$2:$C$32=$K$1))","v":0},{"$f":"SUMPRODUCT((Réclamations!$B$2:$B$32=$A30)*(Réclamations!$K$2:$K$32=M$2)*(Réclamations!$C$2:$C$32=$K$1))","v":0},{"$f":"SUMPRODUCT((Réclamations!$B$2:$B$32=$A30)*(Réclamations!$K$2:$K$32=N$2)*(Réclamations!$C$2:$C$32=$N$1))","v":0},{"$f":"SUMPRODUCT((Réclamations!$B$2:$B$32=$A30)*(Réclamations!$K$2:$K$32=O$2)*(Réclamations!$C$2:$C$32=$N$1))","v":0},{"$f":"SUMPRODUCT((Réclamations!$B$2:$B$32=$A30)*(Réclamations!$K$2:$K$32=P$2)*(Réclamations!$C$2:$C$32=$N$1))","v":0},{"$f":"SUMPRODUCT((Réclamations!$B$2:$B$32=$A30)*(Réclamations!$K$2:$K$32=Q$2)*(Réclamations!$C$2:$C$32=$Q$1))","v":0},{"$f":"SUMPRODUCT((Réclamations!$B$2:$B$32=$A30)*(Réclamations!$K$2:$K$32=R$2)*(Réclamations!$C$2:$C$32=$Q$1))","v":0},{"$f":"SUMPRODUCT((Réclamations!$B$2:$B$32=$A30)*(Réclamations!$K$2:$K$32=S$2)*(Réclamations!$C$2:$C$32=$Q$1))","v":0},{"$f":"SUMPRODUCT((Réclamations!$B$2:$B$32=$A30)*(Réclamations!$K$2:$K$32=T$2)*(Réclamations!$C$2:$C$32=$T$1))","v":0},{"$f":"SUMPRODUCT((Réclamations!$B$2:$B$32=$A30)*(Réclamations!$K$2:$K$32=U$2)*(Réclamations!$C$2:$C$32=$T$1))","v":0},{"$f":"SUMPRODUCT((Réclamations!$B$2:$B$32=$A30)*(Réclamations!$K$2:$K$32=V$2)*(Réclamations!$C$2:$C$32=$T$1))","v":0},{"$f":"SUMPRODUCT((Réclamations!$B$2:$B$32=$A30)*(Réclamations!$K$2:$K$32=W$2)*(Réclamations!$C$2:$C$32=$W$1))","v":0},{"$f":"SUMPRODUCT((Réclamations!$B$2:$B$32=$A30)*(Réclamations!$K$2:$K$32=X$2)*(Réclamations!$C$2:$C$32=$W$1))","v":0},{"$f":"SUMPRODUCT((Réclamations!$B$2:$B$32=$A30)*(Réclamations!$K$2:$K$32=Y$2)*(Réclamations!$C$2:$C$32=$W$1))","v":0},{"$f":"SUMPRODUCT((Réclamations!$B$2:$B$32=$A30)*(Réclamations!$K$2:$K$32=Z$2)*(Réclamations!$C$2:$C$32=$Z$1))","v":0},{"$f":"SUMPRODUCT((Réclamations!$B$2:$B$32=$A30)*(Réclamations!$K$2:$K$32=AA$2)*(Réclamations!$C$2:$C$32=$Z$1))","v":0},{"$f":"SUMPRODUCT((Réclamations!$B$2:$B$32=$A30)*(Réclamations!$K$2:$K$32=AB$2)*(Réclamations!$C$2:$C$32=$Z$1))","v":0},{"$f":"SUMPRODUCT((Réclamations!$B$2:$B$32=$A30)*(Réclamations!$K$2:$K$32=AC$2)*(Réclamations!$C$2:$C$32=$AC$1))","v":0},{"$f":"SUMPRODUCT((Réclamations!$B$2:$B$32=$A30)*(Réclamations!$K$2:$K$32=AD$2)*(Réclamations!$C$2:$C$32=$AC$1))","v":0},{"$f":"SUMPRODUCT((Réclamations!$B$2:$B$32=$A30)*(Réclamations!$K$2:$K$32=AE$2)*(Réclamations!$C$2:$C$32=$AC$1))","v":0},{"$f":"SUMPRODUCT((Réclamations!$B$2:$B$32=$A30)*(Réclamations!$K$2:$K$32=AF$2)*(Réclamations!$C$2:$C$32=$AF$1))","v":0},{"$f":"SUMPRODUCT((Réclamations!$B$2:$B$32=$A30)*(Réclamations!$K$2:$K$32=AG$2)*(Réclamations!$C$2:$C$32=$AF$1))","v":0},{"$f":"SUMPRODUCT((Réclamations!$B$2:$B$32=$A30)*(Réclamations!$K$2:$K$32=AH$2)*(Réclamations!$C$2:$C$32=$AF$1))","v":0},{"$f":"SUMPRODUCT((Réclamations!$B$2:$B$32=$A30)*(Réclamations!$K$2:$K$32=AI$2)*(Réclamations!$C$2:$C$32=$AI$1))","v":0},{"$f":"SUMPRODUCT((Réclamations!$B$2:$B$32=$A30)*(Réclamations!$K$2:$K$32=AJ$2)*(Réclamations!$C$2:$C$32=$E$1))","v":0},{"$f":"SUMPRODUCT((Réclamations!$B$2:$B$32=$A30)*(Réclamations!$K$2:$K$32=AK$2)*(Réclamations!$C$2:$C$32=$E$1))","v":0}]
["2018-01-29",{"$f":"SUMPRODUCT((Réclamations!$B$2:$B$32=$A31)*(Réclamations!$K$2:$K$32=B$2)*(Réclamations!$C$2:$C$32=$B$1))","v":0},{"$f":"SUMPRODUCT((Réclamations!$B$2:$B$32=$A31)*(Réclamations!$K$2:$K$32=C$2)*(Réclamations!$C$2:$C$32=$B$1))","v":0},{"$f":"SUMPRODUCT((Réclamations!$B$2:$B$32=$A31)*(Réclamations!$K$2:$K$32=D$2)*(Réclamations!$C$2:$C$32=$B$1))","v":0},{"$f":"SUMPRODUCT((Réclamations!$B$2:$B$32=$A31)*(Réclamations!$K$2:$K$32=E$2)*(Réclamations!$C$2:$C$32=$E$1))","v":0},{"$f":"SUMPRODUCT((Réclamations!$B$2:$B$32=$A31)*(Réclamations!$K$2:$K$32=F$2)*(Réclamations!$C$2:$C$32=$E$1))","v":0},{"$f":"SUMPRODUCT((Réclamations!$B$2:$B$32=$A31)*(Réclamations!$K$2:$K$32=G$2)*(Réclamations!$C$2:$C$32=$E$1))","v":0},{"$f":"SUMPRODUCT((Réclamations!$B$2:$B$32=$A31)*(Réclamations!$K$2:$K$32=H$2)*(Réclamations!$C$2:$C$32=$H$1))","v":0},{"$f":"SUMPRODUCT((Réclamations!$B$2:$B$32=$A31)*(Réclamations!$K$2:$K$32=I$2)*(Réclamations!$C$2:$C$32=$H$1))","v":0},{"$f":"SUMPRODUCT((Réclamations!$B$2:$B$32=$A31)*(Réclamations!$K$2:$K$32=J$2)*(Réclamations!$C$2:$C$32=$H$1))","v":0},{"$f":"SUMPRODUCT((Réclamations!$B$2:$B$32=$A31)*(Réclamations!$K$2:$K$32=K$2)*(Réclamations!$C$2:$C$32=$K$1))","v":0},{"$f":"SUMPRODUCT((Réclamations!$B$2:$B$32=$A31)*(Réclamations!$K$2:$K$32=L$2)*(Réclamations!$C$2:$C$32=$K$1))","v":0},{"$f":"SUMPRODUCT((Réclamations!$B$2:$B$32=$A31)*(Réclamations!$K$2:$K$32=M$2)*(Réclamations!$C$2:$C$32=$K$1))","v":0},{"$f":"SUMPRODUCT((Réclamations!$B$2:$B$32=$A31)*(Réclamations!$K$2:$K$32=N$2)*(Réclamations!$C$2:$C$32=$N$1))","v":0},{"$f":"SUMPRODUCT((Réclamations!$B$2:$B$32=$A31)*(Réclamations!$K$2:$K$32=O$2)*(Réclamations!$C$2:$C$32=$N$1))","v":0},{"$f":"SUMPRODUCT((Réclamations!$B$2:$B$32=$A31)*(Réclamations!$K$2:$K$32=P$2)*(Réclamations!$C$2:$C$32=$N$1))","v":0},{"$f":"SUMPRODUCT((Réclamations!$B$2:$B$32=$A31)*(Réclamations!$K$2:$K$32=Q$2)*(Réclamations!$C$2:$C$32=$Q$1))","v":0},{"$f":"SUMPRODUCT((Réclamations!$B$2:$B$32=$A31)*(Réclamations!$K$2:$K$32=R$2)*(Réclamations!$C$2:$C$32=$Q$1))","v":0},{"$f":"SUMPRODUCT((Réclamations!$B$2:$B$32=$A31)*(Réclamations!$K$2:$K$32=S$2)*(Réclamations!$C$2:$C$32=$Q$1))","v":0},{"$f":"SUMPRODUCT((Réclamations!$B$2:$B$32=$A31)*(Réclamations!$K$2:$K$32=T$2)*(Réclamations!$C$2:$C$32=$T$1))","v":0},{"$f":"SUMPRODUCT((Réclamations!$B$2:$B$32=$A31)*(Réclamations!$K$2:$K$32=U$2)*(Réclamations!$C$2:$C$32=$T$1))","v":0},{"$f":"SUMPRODUCT((Réclamations!$B$2:$B$32=$A31)*(Réclamations!$K$2:$K$32=V$2)*(Réclamations!$C$2:$C$32=$T$1))","v":0},{"$f":"SUMPRODUCT((Réclamations!$B$2:$B$32=$A31)*(Réclamations!$K$2:$K$32=W$2)*(Réclamations!$C$2:$C$32=$W$1))","v":0},{"$f":"SUMPRODUCT((Réclamations!$B$2:$B$32=$A31)*(Réclamations!$K$2:$K$32=X$2)*(Réclamations!$C$2:$C$32=$W$1))","v":0},{"$f":"SUMPRODUCT((Réclamations!$B$2:$B$32=$A31)*(Réclamations!$K$2:$K$32=Y$2)*(Réclamations!$C$2:$C$32=$W$1))","v":0},{"$f":"SUMPRODUCT((Réclamations!$B$2:$B$32=$A31)*(Réclamations!$K$2:$K$32=Z$2)*(Réclamations!$C$2:$C$32=$Z$1))","v":0},{"$f":"SUMPRODUCT((Réclamations!$B$2:$B$32=$A31)*(Réclamations!$K$2:$K$32=AA$2)*(Réclamations!$C$2:$C$32=$Z$1))","v":0},{"$f":"SUMPRODUCT((Réclamations!$B$2:$B$32=$A31)*(Réclamations!$K$2:$K$32=AB$2)*(Réclamations!$C$2:$C$32=$Z$1))","v":0},{"$f":"SUMPRODUCT((Réclamations!$B$2:$B$32=$A31)*(Réclamations!$K$2:$K$32=AC$2)*(Réclamations!$C$2:$C$32=$AC$1))","v":0},{"$f":"SUMPRODUCT((Réclamations!$B$2:$B$32=$A31)*(Réclamations!$K$2:$K$32=AD$2)*(Réclamations!$C$2:$C$32=$AC$1))","v":0},{"$f":"SUMPRODUCT((Réclamations!$B$2:$B$32=$A31)*(Réclamations!$K$2:$K$32=AE$2)*(Réclamations!$C$2:$C$32=$AC$1))","v":0},{"$f":"SUMPRODUCT((Réclamations!$B$2:$B$32=$A31)*(Réclamations!$K$2:$K$32=AF$2)*(Réclamations!$C$2:$C$32=$AF$1))","v":0},{"$f":"SUMPRODUCT((Réclamations!$B$2:$B$32=$A31)*(Réclamations!$K$2:$K$32=AG$2)*(Réclamations!$C$2:$C$32=$AF$1))","v":0},{"$f":"SUMPRODUCT((Réclamations!$B$2:$B$32=$A31)*(Réclamations!$K$2:$K$32=AH$2)*(Réclamations!$C$2:$C$32=$AF$1))","v":0},{"$f":"SUMPRODUCT((Réclamations!$B$2:$B$32=$A31)*(Réclamations!$K$2:$K$32=AI$2)*(Réclamations!$C$2:$C$32=$AI$1))","v":0},{"$f":"SUMPRODUCT((Réclamations!$B$2:$B$32=$A31)*(Réclamations!$K$2:$K$32=AJ$2)*(Réclamations!$C$2:$C$32=$E$1))","v":0},{"$f":"SUMPRODUCT((Réclamations!$B$2:$B$32=$A31)*(Réclamations!$K$2:$K$32=AK$2)*(Réclamations!$C$2:$C$32=$E$1))","v":0}]
["2018-01-30",{"$f":"SUMPRODUCT((Réclamations!$B$2:$B$32=$A32)*(Réclamations!$K$2:$K$32=B$2)*(Réclamations!$C$2:$C$32=$B$1))","v":0},{"$f":"SUMPRODUCT((Réclamations!$B$2:$B$32=$A32)*(Réclamations!$K$2:$K$32=C$2)*(Réclamations!$C$2:$C$32=$B$1))","v":0},{"$f":"SUMPRODUCT((Réclamations!$B$2:$B$32=$A32)*(Réclamations!$K$2:$K$32=D$2)*(Réclamations!$C$2:$C$32=$B$1))","v":0},{"$f":"SUMPRODUCT((Réclamations!$B$2:$B$32=$A32)*(Réclamations!$K$2:$K$32=E$2)*(Réclamations!$C$2:$C$32=$E$1))","v":0},{"$f":"SUMPRODUCT((Réclamations!$B$2:$B$32=$A32)*(Réclamations!$K$2:$K$32=F$2)*(Réclamations!$C$2:$C$32=$E$1))","v":0},{"$f":"SUMPRODUCT((Réclamations!$B$2:$B$32=$A32)*(Réclamations!$K$2:$K$32=G$2)*(Réclamations!$C$2:$C$32=$E$1))","v":0},{"$f":"SUMPRODUCT((Réclamations!$B$2:$B$32=$A32)*(Réclamations!$K$2:$K$32=H$2)*(Réclamations!$C$2:$C$32=$H$1))","v":0},{"$f":"SUMPRODUCT((Réclamations!$B$2:$B$32=$A32)*(Réclamations!$K$2:$K$32=I$2)*(Réclamations!$C$2:$C$32=$H$1))","v":0},{"$f":"SUMPRODUCT((Réclamations!$B$2:$B$32=$A32)*(Réclamations!$K$2:$K$32=J$2)*(Réclamations!$C$2:$C$32=$H$1))","v":0},{"$f":"SUMPRODUCT((Réclamations!$B$2:$B$32=$A32)*(Réclamations!$K$2:$K$32=K$2)*(Réclamations!$C$2:$C$32=$K$1))","v":0},{"$f":"SUMPRODUCT((Réclamations!$B$2:$B$32=$A32)*(Réclamations!$K$2:$K$32=L$2)*(Réclamations!$C$2:$C$32=$K$1))","v":0},{"$f":"SUMPRODUCT((Réclamations!$B$2:$B$32=$A32)*(Réclamations!$K$2:$K$32=M$2)*(Réclamations!$C$2:$C$32=$K$1))","v":0},{"$f":"SUMPRODUCT((Réclamations!$B$2:$B$32=$A32)*(Réclamations!$K$2:$K$32=N$2)*(Réclamations!$C$2:$C$32=$N$1))","v":0},{"$f":"SUMPRODUCT((Réclamations!$B$2:$B$32=$A32)*(Réclamations!$K$2:$K$32=O$2)*(Réclamations!$C$2:$C$32=$N$1))","v":0},{"$f":"SUMPRODUCT((Réclamations!$B$2:$B$32=$A32)*(Réclamations!$K$2:$K$32=P$2)*(Réclamations!$C$2:$C$32=$N$1))","v":0},{"$f":"SUMPRODUCT((Réclamations!$B$2:$B$32=$A32)*(Réclamations!$K$2:$K$32=Q$2)*(Réclamations!$C$2:$C$32=$Q$1))","v":0},{"$f":"SUMPRODUCT((Réclamations!$B$2:$B$32=$A32)*(Réclamations!$K$2:$K$32=R$2)*(Réclamations!$C$2:$C$32=$Q$1))","v":0},{"$f":"SUMPRODUCT((Réclamations!$B$2:$B$32=$A32)*(Réclamations!$K$2:$K$32=S$2)*(Réclamations!$C$2:$C$32=$Q$1))","v":0},{"$f":"SUMPRODUCT((Réclamations!$B$2:$B$32=$A32)*(Réclamations!$K$2:$K$32=T$2)*(Réclamations!$C$2:$C$32=$T$1))","v":0},{"$f":"SUMPRODUCT((Réclamations!$B$2:$B$32=$A32)*(Réclamations!$K$2:$K$32=U$2)*(Réclamations!$C$2:$C$32=$T$1))","v":0},{"$f":"SUMPRODUCT((Réclamations!$B$2:$B$32=$A32)*(Réclamations!$K$2:$K$32=V$2)*(Réclamations!$C$2:$C$32=$T$1))","v":0},{"$f":"SUMPRODUCT((Réclamations!$B$2:$B$32=$A32)*(Réclamations!$K$2:$K$32=W$2)*(Réclamations!$C$2:$C$32=$W$1))","v":0},{"$f":"SUMPRODUCT((Réclamations!$B$2:$B$32=$A32)*(Réclamations!$K$2:$K$32=X$2)*(Réclamations!$C$2:$C$32=$W$1))","v":0},{"$f":"SUMPRODUCT((Réclamations!$B$2:$B$32=$A32)*(Réclamations!$K$2:$K$32=Y$2)*(Réclamations!$C$2:$C$32=$W$1))","v":0},{"$f":"SUMPRODUCT((Réclamations!$B$2:$B$32=$A32)*(Réclamations!$K$2:$K$32=Z$2)*(Réclamations!$C$2:$C$32=$Z$1))","v":0},{"$f":"SUMPRODUCT((Réclamations!$B$2:$B$32=$A32)*(Réclamations!$K$2:$K$32=AA$2)*(Réclamations!$C$2:$C$32=$Z$1))","v":0},{"$f":"SUMPRODUCT((Réclamations!$B$2:$B$32=$A32)*(Réclamations!$K$2:$K$32=AB$2)*(Réclamations!$C$2:$C$32=$Z$1))","v":0},{"$f":"SUMPRODUCT((Réclamations!$B$2:$B$32=$A32)*(Réclamations!$K$2:$K$32=AC$2)*(Réclamations!$C$2:$C$32=$AC$1))","v":0},{"$f":"SUMPRODUCT((Réclamations!$B$2:$B$32=$A32)*(Réclamations!$K$2:$K$32=AD$2)*(Réclamations!$C$2:$C$32=$AC$1))","v":0},{"$f":"SUMPRODUCT((Réclamations!$B$2:$B$32=$A32)*(Réclamations!$K$2:$K$32=AE$2)*(Réclamations!$C$2:$C$32=$AC$1))","v":0},{"$f":"SUMPRODUCT((Réclamations!$B$2:$B$32=$A32)*(Réclamations!$K$2:$K$32=AF$2)*(Réclamations!$C$2:$C$32=$AF$1))","v":0},{"$f":"SUMPRODUCT((Réclamations!$B$2:$B$32=$A32)*(Réclamations!$K$2:$K$32=AG$2)*(Réclamations!$C$2:$C$32=$AF$1))","v":0},{"$f":"SUMPRODUCT((Réclamations!$B$2:$B$32=$A32)*(Réclamations!$K$2:$K$32=AH$2)*(Réclamations!$C$2:$C$32=$AF$1))","v":0},{"$f":"SUMPRODUCT((Réclamations!$B$2:$B$32=$A32)*(Réclamations!$K$2:$K$32=AI$2)*(Réclamations!$C$2:$C$32=$AI$1))","v":0},{"$f":"SUMPRODUCT((Réclamations!$B$2:$B$32=$A32)*(Réclamations!$K$2:$K$32=AJ$2)*(Réclamations!$C$2:$C$32=$E$1))","v":0},{"$f":"SUMPRODUCT((Réclamations!$B$2:$B$32=$A32)*(Réclamations!$K$2:$K$32=AK$2)*(Réclamations!$C$2:$C$32=$E$1))","v":0}]
["2018-01-31",{"$f":"SUMPRODUCT((Réclamations!$B$2:$B$32=$A33)*(Réclamations!$K$2:$K$32=B$2)*(Réclamations!$C$2:$C$32=$B$1))","v":0},{"$f":"SUMPRODUCT((Réclamations!$B$2:$B$32=$A33)*(Réclamations!$K$2:$K$32=C$2)*(Réclamations!$C$2:$C$32=$B$1))","v":0},{"$f":"SUMPRODUCT((Réclamations!$B$2:$B$32=$A33)*(Réclamations!$K$2:$K$32=D$2)*(Réclamations!$C$2:$C$32=$B$1))","v":0},{"$f":"SUMPRODUCT((Réclamations!$B$2:$B$32=$A33)*(Réclamations!$K$2:$K$32=E$2)*(Réclamations!$C$2:$C$32=$E$1))","v":0},{"$f":"SUMPRODUCT((Réclamations!$B$2:$B$32=$A33)*(Réclamations!$K$2:$K$32=F$2)*(Réclamations!$C$2:$C$32=$E$1))","v":0},{"$f":"SUMPRODUCT((Réclamations!$B$2:$B$32=$A33)*(Réclamations!$K$2:$K$32=G$2)*(Réclamations!$C$2:$C$32=$E$1))","v":0},{"$f":"SUMPRODUCT((Réclamations!$B$2:$B$32=$A33)*(Réclamations!$K$2:$K$32=H$2)*(Réclamations!$C$2:$C$32=$H$1))","v":0},{"$f":"SUMPRODUCT((Réclamations!$B$2:$B$32=$A33)*(Réclamations!$K$2:$K$32=I$2)*(Réclamations!$C$2:$C$32=$H$1))","v":0},{"$f":"SUMPRODUCT((Réclamations!$B$2:$B$32=$A33)*(Réclamations!$K$2:$K$32=J$2)*(Réclamations!$C$2:$C$32=$H$1))","v":0},{"$f":"SUMPRODUCT((Réclamations!$B$2:$B$32=$A33)*(Réclamations!$K$2:$K$32=K$2)*(Réclamations!$C$2:$C$32=$K$1))","v":0},{"$f":"SUMPRODUCT((Réclamations!$B$2:$B$32=$A33)*(Réclamations!$K$2:$K$32=L$2)*(Réclamations!$C$2:$C$32=$K$1))","v":0},{"$f":"SUMPRODUCT((Réclamations!$B$2:$B$32=$A33)*(Réclamations!$K$2:$K$32=M$2)*(Réclamations!$C$2:$C$32=$K$1))","v":0},{"$f":"SUMPRODUCT((Réclamations!$B$2:$B$32=$A33)*(Réclamations!$K$2:$K$32=N$2)*(Réclamations!$C$2:$C$32=$N$1))","v":0},{"$f":"SUMPRODUCT((Réclamations!$B$2:$B$32=$A33)*(Réclamations!$K$2:$K$32=O$2)*(Réclamations!$C$2:$C$32=$N$1))","v":0},{"$f":"SUMPRODUCT((Réclamations!$B$2:$B$32=$A33)*(Réclamations!$K$2:$K$32=P$2)*(Réclamations!$C$2:$C$32=$N$1))","v":0},{"$f":"SUMPRODUCT((Réclamations!$B$2:$B$32=$A33)*(Réclamations!$K$2:$K$32=Q$2)*(Réclamations!$C$2:$C$32=$Q$1))","v":0},{"$f":"SUMPRODUCT((Réclamations!$B$2:$B$32=$A33)*(Réclamations!$K$2:$K$32=R$2)*(Réclamations!$C$2:$C$32=$Q$1))","v":0},{"$f":"SUMPRODUCT((Réclamations!$B$2:$B$32=$A33)*(Réclamations!$K$2:$K$32=S$2)*(Réclamations!$C$2:$C$32=$Q$1))","v":0},{"$f":"SUMPRODUCT((Réclamations!$B$2:$B$32=$A33)*(Réclamations!$K$2:$K$32=T$2)*(Réclamations!$C$2:$C$32=$T$1))","v":0},{"$f":"SUMPRODUCT((Réclamations!$B$2:$B$32=$A33)*(Réclamations!$K$2:$K$32=U$2)*(Réclamations!$C$2:$C$32=$T$1))","v":0},{"$f":"SUMPRODUCT((Réclamations!$B$2:$B$32=$A33)*(Réclamations!$K$2:$K$32=V$2)*(Réclamations!$C$2:$C$32=$T$1))","v":0},{"$f":"SUMPRODUCT((Réclamations!$B$2:$B$32=$A33)*(Réclamations!$K$2:$K$32=W$2)*(Réclamations!$C$2:$C$32=$W$1))","v":0},{"$f":"SUMPRODUCT((Réclamations!$B$2:$B$32=$A33)*(Réclamations!$K$2:$K$32=X$2)*(Réclamations!$C$2:$C$32=$W$1))","v":0},{"$f":"SUMPRODUCT((Réclamations!$B$2:$B$32=$A33)*(Réclamations!$K$2:$K$32=Y$2)*(Réclamations!$C$2:$C$32=$W$1))","v":0},{"$f":"SUMPRODUCT((Réclamations!$B$2:$B$32=$A33)*(Réclamations!$K$2:$K$32=Z$2)*(Réclamations!$C$2:$C$32=$Z$1))","v":0},{"$f":"SUMPRODUCT((Réclamations!$B$2:$B$32=$A33)*(Réclamations!$K$2:$K$32=AA$2)*(Réclamations!$C$2:$C$32=$Z$1))","v":0},{"$f":"SUMPRODUCT((Réclamations!$B$2:$B$32=$A33)*(Réclamations!$K$2:$K$32=AB$2)*(Réclamations!$C$2:$C$32=$Z$1))","v":0},{"$f":"SUMPRODUCT((Réclamations!$B$2:$B$32=$A33)*(Réclamations!$K$2:$K$32=AC$2)*(Réclamations!$C$2:$C$32=$AC$1))","v":0},{"$f":"SUMPRODUCT((Réclamations!$B$2:$B$32=$A33)*(Réclamations!$K$2:$K$32=AD$2)*(Réclamations!$C$2:$C$32=$AC$1))","v":0},{"$f":"SUMPRODUCT((Réclamations!$B$2:$B$32=$A33)*(Réclamations!$K$2:$K$32=AE$2)*(Réclamations!$C$2:$C$32=$AC$1))","v":0},{"$f":"SUMPRODUCT((Réclamations!$B$2:$B$32=$A33)*(Réclamations!$K$2:$K$32=AF$2)*(Réclamations!$C$2:$C$32=$AF$1))","v":0},{"$f":"SUMPRODUCT((Réclamations!$B$2:$B$32=$A33)*(Réclamations!$K$2:$K$32=AG$2)*(Réclamations!$C$2:$C$32=$AF$1))","v":0},{"$f":"SUMPRODUCT((Réclamations!$B$2:$B$32=$A33)*(Réclamations!$K$2:$K$32=AH$2)*(Réclamations!$C$2:$C$32=$AF$1))","v":0},{"$f":"SUMPRODUCT((Réclamations!$B$2:$B$32=$A33)*(Réclamations!$K$2:$K$32=AI$2)*(Réclamations!$C$2:$C$32=$AI$1))","v":0},{"$f":"SUMPRODUCT((Réclamations!$B$2:$B$32=$A33)*(Réclamations!$K$2:$K$32=AJ$2)*(Réclamations!$C$2:$C$32=$E$1))","v":0},{"$f":"SUMPRODUCT((Réclamations!$B$2:$B$32=$A33)*(Réclamations!$K$2:$K$32=AK$2)*(Réclamations!$C$2:$C$32=$E$1))","v":0}]
["Total",{"$f":"SUM(B3:B33)","v":0},{"$f":"SUM(C3:C33)","v":1},7,1,0,1,1,0,0,5,4,0,1,0,0,0,0,0,0,0,1,1,0,0,1,0,0,0,0,0,0,0,0,0,0,1]
["Moyenne",{"$f":"AVERAGE(B3:B33)","v":0},{"$f":"AVERAGE(C3:C33)","v":3.2258064516129031E-2},0.22580645161290322,3.2258064516129031E-2,0,3.2258064516129031E-2,3.2258064516129031E-2,0,0,0.16129032258064516,0.12903225806451613,0,3.2258064516129031E-2,0,0,0,0,0,0,0,3.2258064516129031E-2,3.2258064516129031E-2,0,0,3.2258064516129031E-2,0,0,0,0,0,0,0,0,0,0,3.2258064516129031E-2]
[]
["M-1"]

{"sheet":"Réclamations","index":1,"n_rows":58,"n_cols":18,"rows_kept":58,"cut":false,"hidden":false,"merged":[]}
["Nbre","Date ","Typologie ","Code Réclamation  ","Noms & Prenoms","Customer MSISDN","Services ","Equipements","Ville","Quartier","Requetes","Catégories ","Types","Probleme rencontré","Solution apportée","Date_ Resolution","Delai de resolution","Statuts "]
[1,"2018-01-02","Showroom Akwa",{"$f":"IFERROR(VLOOKUP(Tableau6[[#This Row],[Typologie ]],Tableau1[],2,0),\"\")","v":"SRCSP"},null,null,null,null,null,null,"Plaintes",null,null,null,null,null,{"$f":"IF(Tableau6[[#This Row],[Date_ Resolution]]=\"\",\"\",NETWORKDAYS.INTL(Tableau6[[#This Row],[Date ]],Tableau6[[#This Row],[Date_ Resolution]],11,11)&\" Jr\")","v":""}]
[2,"2018-01-02","Showroom Akwa",{"$f":"IFERROR(VLOOKUP(Tableau6[[#This Row],[Typologie ]],Tableau1[],2,0),\"\")","v":"SRCSP"},null,null,null,null,null,null,"Support_Technique",null,null,null,null,null,{"$f":"IF(Tableau6[[#This Row],[Date_ Resolution]]=\"\",\"\",NETWORKDAYS.INTL(Tableau6[[#This Row],[Date ]],Tableau6[[#This Row],[Date_ Resolution]],11,11)&\" Jr\")","v":""}]
[3,"2018-01-10","Showroom Akwa",{"$f":"IFERROR(VLOOKUP(Tableau6[[#This Row],[Typologie ]],Tableau1[],2,0),\"\")","v":"SRCSP"},null,null,null,null,null,null,"Support_Technique",null,null,null,null,null,{"$f":"IF(Tableau6[[#This Row],[Date_ Resolution]]=\"\",\"\",NETWORKDAYS.INTL(Tableau6[[#This Row],[Date ]],Tableau6[[#This Row],[Date_ Resolution]],11,11)&\" Jr\")","v":""}]
[4,"2018-01-10","Showroom Akwa",{"$f":"IFERROR(VLOOKUP(Tableau6[[#This Row],[Typologie ]],Tableau1[],2,0),\"\")","v":"SRCSP"},null,null,null,null,null,null,"Support_Technique",null,null,null,null,null,{"$f":"IF(Tableau6[[#This Row],[Date_ Resolution]]=\"\",\"\",NETWORKDAYS.INTL(Tableau6[[#This Row],[Date ]],Tableau6[[#This Row],[Date_ Resolution]],11,11)&\" Jr\")","v":""}]
[5,"2018-01-10","Showroom Akwa",{"$f":"IFERROR(VLOOKUP(Tableau6[[#This Row],[Typologie ]],Tableau1[],2,0),\"\")","v":"SRCSP"},null,null,null,null,null,null,"Support_Technique",null,null,null,null,null,{"$f":"IF(Tableau6[[#This Row],[Date_ Resolution]]=\"\",\"\",NETWORKDAYS.INTL(Tableau6[[#This Row],[Date ]],Tableau6[[#This Row],[Date_ Resolution]],11,11)&\" Jr\")","v":""}]
[6,"2018-01-10","Showroom Akwa",{"$f":"IFERROR(VLOOKUP(Tableau6[[#This Row],[Typologie ]],Tableau1[],2,0),\"\")","v":"SRCSP"},null,null,null,null,null,null,"Support_Technique",null,null,null,null,null,{"$f":"IF(Tableau6[[#This Row],[Date_ Resolution]]=\"\",\"\",NETWORKDAYS.INTL(Tableau6[[#This Row],[Date ]],Tableau6[[#This Row],[Date_ Resolution]],11,11)&\" Jr\")","v":""}]
[7,"2018-01-10","Showroom Akwa",{"$f":"IFERROR(VLOOKUP(Tableau6[[#This Row],[Typologie ]],Tableau1[],2,0),\"\")","v":"SRCSP"},null,null,null,null,null,null,"Support_Technique",null,null,null,null,null,{"$f":"IF(Tableau6[[#This Row],[Date_ Resolution]]=\"\",\"\",NETWORKDAYS.INTL(Tableau6[[#This Row],[Date ]],Tableau6[[#This Row],[Date_ Resolution]],11,11)&\" Jr\")","v":""}]
[8,"2018-01-10","Showroom Bafoussam",{"$f":"IFERROR(VLOOKUP(Tableau6[[#This Row],[Typologie ]],Tableau1[],2,0),\"\")","v":"SRBAF"},null,null,null,null,null,null,"Support_Technique",null,null,null,null,null,{"$f":"IF(Tableau6[[#This Row],[Date_ Resolution]]=\"\",\"\",NETWORKDAYS.INTL(Tableau6[[#This Row],[Date ]],Tableau6[[#This Row],[Date_ Resolution]],11,11)&\" Jr\")","v":""}]
[9,"2018-01-10","Front Office ",{"$f":"IFERROR(VLOOKUP(Tableau6[[#This Row],[Typologie ]],Tableau1[],2,0),\"\")","v":"RCFRO"},null,null,null,null,null,null,"Plaintes",null,null,null,null,null,{"$f":"IF(Tableau6[[#This Row],[Date_ Resolution]]=\"\",\"\",NETWORKDAYS.INTL(Tableau6[[#This Row],[Date ]],Tableau6[[#This Row],[Date_ Resolution]],11,11)&\" Jr\")","v":""}]
[10,"2018-01-10","Front Office ",{"$f":"IFERROR(VLOOKUP(Tableau6[[#This Row],[Typologie ]],Tableau1[],2,0),\"\")","v":"RCFRO"},null,null,null,null,null,null,"Plaintes",null,null,null,null,null,{"$f":"IF(Tableau6[[#This Row],[Date_ Resolution]]=\"\",\"\",NETWORKDAYS.INTL(Tableau6[[#This Row],[Date ]],Tableau6[[#This Row],[Date_ Resolution]],11,11)&\" Jr\")","v":""}]
[11,"2018-01-10","Front Office ",{"$f":"IFERROR(VLOOKUP(Tableau6[[#This Row],[Typologie ]],Tableau1[],2,0),\"\")","v":"RCFRO"},null,null,null,null,null,null,"Plaintes",null,null,null,null,null,{"$f":"IF(Tableau6[[#This Row],[Date_ Resolution]]=\"\",\"\",NETWORKDAYS.INTL(Tableau6[[#This Row],[Date ]],Tableau6[[#This Row],[Date_ Resolution]],11,11)&\" Jr\")","v":""}]
[12,"2018-01-10","Back Office ",{"$f":"IFERROR(VLOOKUP(Tableau6[[#This Row],[Typologie ]],Tableau1[],2,0),\"\")","v":"RCBAO"},null,null,null,null,null,null,"Informations ",null,null,null,null,null,{"$f":"IF(Tableau6[[#This Row],[Date_ Resolution]]=\"\",\"\",NETWORKDAYS.INTL(Tableau6[[#This Row],[Date ]],Tableau6[[#This Row],[Date_ Resolution]],11,11)&\" Jr\")","v":""}]
[13,"2018-01-10","Direction Générale",{"$f":"IFERROR(VLOOKUP(Tableau6[[#This Row],[Typologie ]],Tableau1[],2,0),\"\")","v":"RCDG"},null,null,null,null,null,null,"Plaintes",null,null,null,null,null,{"$f":"IF(Tableau6[[#This Row],[Date_ Resolution]]=\"\",\"\",NETWORKDAYS.INTL(Tableau6[[#This Row],[Date ]],Tableau6[[#This Row],[Date_ Resolution]],11,11)&\" Jr\")","v":""}]
[14,"2018-01-10","Front Office ",{"$f":"IFERROR(VLOOKUP(Tableau6[[#This Row],[Typologie ]],Tableau1[],2,0),\"\")","v":"RCFRO"},null,null,null,null,null,null,"Informations ",null,null,null,null,null,{"$f":"IF(Tableau6[[#This Row],[Date_ Resolution]]=\"\",\"\",NETWORKDAYS.INTL(Tableau6[[#This Row],[Date ]],Tableau6[[#This Row],[Date_ Resolution]],11,11)&\" Jr\")","v":""}]
[15,"2018-01-10","Shop Bastos",{"$f":"IFERROR(VLOOKUP(Tableau6[[#This Row],[Typologie ]],Tableau1[],2,0),\"\")","v":"SSBAS"},null,null,null,null,null,null,"Support_Technique",null,null,null,null,null,{"$f":"IF(Tableau6[[#This Row],[Date_ Resolution]]=\"\",\"\",NETWORKDAYS.INTL(Tableau6[[#This Row],[Date ]],Tableau6[[#This Row],[Date_ Resolution]],11,11)&\" Jr\")","v":""}]
[16,"2018-01-10","Shop Essos",{"$f":"IFERROR(VLOOKUP(Tableau6[[#This Row],[Typologie ]],Tableau1[],2,0),\"\")","v":"SSESS"},null,null,null,null,null,null,"Informations ",null,null,null,null,null,{"$f":"IF(Tableau6[[#This Row],[Date_ Resolution]]=\"\",\"\",NETWORKDAYS.INTL(Tableau6[[#This Row],[Date ]],Tableau6[[#This Row],[Date_ Resolution]],11,11)&\" Jr\")","v":""}]
[17,"2018-01-10","Shop Peyrissac",{"$f":"IFERROR(VLOOKUP(Tableau6[[#This Row],[Typologie ]],Tableau1[],2,0),\"\")","v":"SSPEY"},null,null,null,null,null,null,"Informations ",null,null,null,null,null,{"$f":"IF(Tableau6[[#This Row],[Date_ Resolution]]=\"\",\"\",NETWORKDAYS.INTL(Tableau6[[#This Row],[Date ]],Tableau6[[#This Row],[Date_ Resolution]],11,11)&\" Jr\")","v":""}]
[18,"2018-01-10","Showroom Akwa",{"$f":"IFERROR(VLOOKUP(Tableau6[[#This Row],[Typologie ]],Tableau1[],2,0),\"\")","v":"SRCSP"},null,null,null,null,null,null,"Support_Technique",null,null,null,null,null,{"$f":"IF(Tableau6[[#This Row],[Date_ Resolution]]=\"\",\"\",NETWORKDAYS.INTL(Tableau6[[#This Row],[Date ]],Tableau6[[#This Row],[Date_ Resolution]],11,11)&\" Jr\")","v":""}]
[19,"2018-01-10","Showroom Bafoussam",{"$f":"IFERROR(VLOOKUP(Tableau6[[#This Row],[Typologie ]],Tableau1[],2,0),\"\")","v":"SRBAF"},null,null,null,null,null,null,"Informations ",null,null,null,null,null,{"$f":"IF(Tableau6[[#This Row],[Date_ Resolution]]=\"\",\"\",NETWORKDAYS.INTL(Tableau6[[#This Row],[Date ]],Tableau6[[#This Row],[Date_ Resolution]],11,11)&\" Jr\")","v":""}]
[20,"2018-01-10","Showroom Bonamoussadi",{"$f":"IFERROR(VLOOKUP(Tableau6[[#This Row],[Typologie ]],Tableau1[],2,0),\"\")","v":"SRBDI"},null,null,null,null,null,null,"Informations ",null,null,null,null,null,{"$f":"IF(Tableau6[[#This Row],[Date_ Resolution]]=\"\",\"\",NETWORKDAYS.INTL(Tableau6[[#This Row],[Date ]],Tableau6[[#This Row],[Date_ Resolution]],11,11)&\" Jr\")","v":""}]
[21,"2018-01-10","Showroom Bonanjo",{"$f":"IFERROR(VLOOKUP(Tableau6[[#This Row],[Typologie ]],Tableau1[],2,0),\"\")","v":"SRDHL"},null,null,null,null,null,null,"Informations ",null,null,null,null,null,{"$f":"IF(Tableau6[[#This Row],[Date_ Resolution]]=\"\",\"\",NETWORKDAYS.INTL(Tableau6[[#This Row],[Date ]],Tableau6[[#This Row],[Date_ Resolution]],11,11)&\" Jr\")","v":""}]
[22,"2018-01-10","Showroom Garoua ",{"$f":"IFERROR(VLOOKUP(Tableau6[[#This Row],[Typologie ]],Tableau1[],2,0),\"\")","v":"SRGAR"},null,null,null,null,null,null,"Informations ",null,null,null,null,null,{"$f":"IF(Tableau6[[#This Row],[Date_ Resolution]]=\"\",\"\",NETWORKDAYS.INTL(Tableau6[[#This Row],[Date ]],Tableau6[[#This Row],[Date_ Resolution]],11,11)&\" Jr\")","v":""}]
[23,"2018-01-10","Showroom Yaounde",{"$f":"IFERROR(VLOOKUP(Tableau6[[#This Row],[Typologie ]],Tableau1[],2,0),\"\")","v":"SRAVK"},null,null,null,null,null,null,"Informations ",null,null,null,null,null,{"$f":"IF(Tableau6[[#This Row],[Date_ Resolution]]=\"\",\"\",NETWORKDAYS.INTL(Tableau6[[#This Row],[Date ]],Tableau6[[#This Row],[Date_ Resolution]],11,11)&\" Jr\")","v":""}]
[24,"2018-01-11","Showroom Bonamoussadi",{"$f":"IFERROR(VLOOKUP(Tableau6[[#This Row],[Typologie ]],Tableau1[],2,0),\"\")","v":"SRBDI"},null,null,null,null,null,null,"Plaintes",null,null,null,null,null,{"$f":"IF(Tableau6[[#This Row],[Date_ Resolution]]=\"\",\"\",NETWORKDAYS.INTL(Tableau6[[#This Row],[Date ]],Tableau6[[#This Row],[Date_ Resolution]],11,11)&\" Jr\")","v":""}]
[25,"2018-01-12","Showroom Bonamoussadi",{"$f":"IFERROR(VLOOKUP(Tableau6[[#This Row],[Typologie ]],Tableau1[],2,0),\"\")","v":"SRBDI"},null,null,null,null,null,null,"Plaintes",null,null,null,null,null,{"$f":"IF(Tableau6[[#This Row],[Date_ Resolution]]=\"\",\"\",NETWORKDAYS.INTL(Tableau6[[#This Row],[Date ]],Tableau6[[#This Row],[Date_ Resolution]],11,11)&\" Jr\")","v":""}]
[26,"2018-01-13","Showroom Bonamoussadi",{"$f":"IFERROR(VLOOKUP(Tableau6[[#This Row],[Typologie ]],Tableau1[],2,0),\"\")","v":"SRBDI"},null,null,null,null,null,null,"Plaintes",null,null,null,null,null,{"$f":"IF(Tableau6[[#This Row],[Date_ Resolution]]=\"\",\"\",NETWORKDAYS.INTL(Tableau6[[#This Row],[Date ]],Tableau6[[#This Row],[Date_ Resolution]],11,11)&\" Jr\")","v":""}]
[27,"2018-01-14","Showroom Bonamoussadi",{"$f":"IFERROR(VLOOKUP(Tableau6[[#This Row],[Typologie ]],Tableau1[],2,0),\"\")","v":"SRBDI"},null,null,null,null,null,null,"Plaintes",null,null,null,null,null,{"$f":"IF(Tableau6[[#This Row],[Date_ Resolution]]=\"\",\"\",NETWORKDAYS.INTL(Tableau6[[#This Row],[Date ]],Tableau6[[#This Row],[Date_ Resolution]],11,11)&\" Jr\")","v":""}]
[28,"2018-01-15","Showroom Bonamoussadi",{"$f":"IFERROR(VLOOKUP(Tableau6[[#This Row],[Typologie ]],Tableau1[],2,0),\"\")","v":"SRBDI"},null,null,null,null,null,null,"Informations ",null,null,null,null,null,{"$f":"IF(Tableau6[[#This Row],[Date_ Resolution]]=\"\",\"\",NETWORKDAYS.INTL(Tableau6[[#This Row],[Date ]],Tableau6[[#This Row],[Date_ Resolution]],11,11)&\" Jr\")","v":""}]
[29,"2018-01-16","Showroom Bonamoussadi",{"$f":"IFERROR(VLOOKUP(Tableau6[[#This Row],[Typologie ]],Tableau1[],2,0),\"\")","v":"SRBDI"},null,null,null,null,null,null,"Informations ",null,null,null,null,null,{"$f":"IF(Tableau6[[#This Row],[Date_ Resolution]]=\"\",\"\",NETWORKDAYS.INTL(Tableau6[[#This Row],[Date ]],Tableau6[[#This Row],[Date_ Resolution]],11,11)&\" Jr\")","v":""}]
[30,"2018-01-17","Showroom Bonamoussadi",{"$f":"IFERROR(VLOOKUP(Tableau6[[#This Row],[Typologie ]],Tableau1[],2,0),\"\")","v":"SRBDI"},null,null,null,null,null,null,"Informations ",null,null,null,null,null,{"$f":"IF(Tableau6[[#This Row],[Date_ Resolution]]=\"\",\"\",NETWORKDAYS.INTL(Tableau6[[#This Row],[Date ]],Tableau6[[#This Row],[Date_ Resolution]],11,11)&\" Jr\")","v":""}]
[31,"2018-01-18","Showroom Bonamoussadi",{"$f":"IFERROR(VLOOKUP(Tableau6[[#This Row],[Typologie ]],Tableau1[],2,0),\"\")","v":"SRBDI"},null,null,null,null,null,null,"Informations ",null,null,null,null,null,{"$f":"IF(Tableau6[[#This Row],[Date_ Resolution]]=\"\",\"\",NETWORKDAYS.INTL(Tableau6[[#This Row],[Date ]],Tableau6[[#This Row],[Date_ Resolution]],11,11)&\" Jr\")","v":""}]
[null,null,null,{"$f":"IFERROR(VLOOKUP(Tableau6[[#This Row],[Typologie ]],Tableau1[],2,0),\"\")","v":""},null,null,null,null,null,null,null,null,null,null,null,null,{"$f":"IF(Tableau6[[#This Row],[Date_ Resolution]]=\"\",\"\",NETWORKDAYS.INTL(Tableau6[[#This Row],[Date ]],Tableau6[[#This Row],[Date_ Resolution]],11,11)&\" Jr\")","v":""}]
[null,null,null,{"$f":"IFERROR(VLOOKUP(Tableau6[[#This Row],[Typologie ]],Tableau1[],2,0),\"\")","v":""},null,null,null,null,null,null,null,null,null,null,null,null,{"$f":"IF(Tableau6[[#This Row],[Date_ Resolution]]=\"\",\"\",NETWORKDAYS.INTL(Tableau6[[#This Row],[Date ]],Tableau6[[#This Row],[Date_ Resolution]],11,11)&\" Jr\")","v":""}]
[null,null,null,{"$f":"IFERROR(VLOOKUP(Tableau6[[#This Row],[Typologie ]],Tableau1[],2,0),\"\")","v":""},null,null,null,null,null,null,null,null,null,null,null,null,{"$f":"IF(Tableau6[[#This Row],[Date_ Resolution]]=\"\",\"\",NETWORKDAYS.INTL(Tableau6[[#This Row],[Date ]],Tableau6[[#This Row],[Date_ Resolution]],11,11)&\" Jr\")","v":""}]
[null,null,null,{"$f":"IFERROR(VLOOKUP(Tableau6[[#This Row],[Typologie ]],Tableau1[],2,0),\"\")","v":""},null,null,null,null,null,null,null,null,null,null,null,null,{"$f":"IF(Tableau6[[#This Row],[Date_ Resolution]]=\"\",\"\",NETWORKDAYS.INTL(Tableau6[[#This Row],[Date ]],Tableau6[[#This Row],[Date_ Resolution]],11,11)&\" Jr\")","v":""}]
[null,null,null,{"$f":"IFERROR(VLOOKUP(Tableau6[[#This Row],[Typologie ]],Tableau1[],2,0),\"\")","v":""},null,null,null,null,null,null,null,null,null,null,null,null,{"$f":"IF(Tableau6[[#This Row],[Date_ Resolution]]=\"\",\"\",NETWORKDAYS.INTL(Tableau6[[#This Row],[Date ]],Tableau6[[#This Row],[Date_ Resolution]],11,11)&\" Jr\")","v":""}]
[null,null,null,{"$f":"IFERROR(VLOOKUP(Tableau6[[#This Row],[Typologie ]],Tableau1[],2,0),\"\")","v":""},null,null,null,null,null,null,null,null,null,null,null,null,{"$f":"IF(Tableau6[[#This Row],[Date_ Resolution]]=\"\",\"\",NETWORKDAYS.INTL(Tableau6[[#This Row],[Date ]],Tableau6[[#This Row],[Date_ Resolution]],11,11)&\" Jr\")","v":""}]
[null,null,null,{"$f":"IFERROR(VLOOKUP(Tableau6[[#This Row],[Typologie ]],Tableau1[],2,0),\"\")","v":""},null,null,null,null,null,null,null,null,null,null,null,null,{"$f":"IF(Tableau6[[#This Row],[Date_ Resolution]]=\"\",\"\",NETWORKDAYS.INTL(Tableau6[[#This Row],[Date ]],Tableau6[[#This Row],[Date_ Resolution]],11,11)&\" Jr\")","v":""}]
[null,null,null,{"$f":"IFERROR(VLOOKUP(Tableau6[[#This Row],[Typologie ]],Tableau1[],2,0),\"\")","v":""},null,null,null,null,null,null,null,null,null,null,null,null,{"$f":"IF(Tableau6[[#This Row],[Date_ Resolution]]=\"\",\"\",NETWORKDAYS.INTL(Tableau6[[#This Row],[Date ]],Tableau6[[#This Row],[Date_ Resolution]],11,11)&\" Jr\")","v":""}]
[null,null,null,{"$f":"IFERROR(VLOOKUP(Tableau6[[#This Row],[Typologie ]],Tableau1[],2,0),\"\")","v":""},null,null,null,null,null,null,null,null,null,null,null,null,{"$f":"IF(Tableau6[[#This Row],[Date_ Resolution]]=\"\",\"\",NETWORKDAYS.INTL(Tableau6[[#This Row],[Date ]],Tableau6[[#This Row],[Date_ Resolution]],11,11)&\" Jr\")","v":""}]
[null,null,null,{"$f":"IFERROR(VLOOKUP(Tableau6[[#This Row],[Typologie ]],Tableau1[],2,0),\"\")","v":""},null,null,null,null,null,null,null,null,null,null,null,null,{"$f":"IF(Tableau6[[#This Row],[Date_ Resolution]]=\"\",\"\",NETWORKDAYS.INTL(Tableau6[[#This Row],[Date ]],Tableau6[[#This Row],[Date_ Resolution]],11,11)&\" Jr\")","v":""}]
[null,null,null,{"$f":"IFERROR(VLOOKUP(Tableau6[[#This Row],[Typologie ]],Tableau1[],2,0),\"\")","v":""},null,null,null,null,null,null,null,null,null,null,null,null,{"$f":"IF(Tableau6[[#This Row],[Date_ Resolution]]=\"\",\"\",NETWORKDAYS.INTL(Tableau6[[#This Row],[Date ]],Tableau6[[#This Row],[Date_ Resolution]],11,11)&\" Jr\")","v":""}]
[null,null,null,{"$f":"IFERROR(VLOOKUP(Tableau6[[#This Row],[Typologie ]],Tableau1[],2,0),\"\")","v":""},null,null,null,null,null,null,null,null,null,null,null,null,{"$f":"IF(Tableau6[[#This Row],[Date_ Resolution]]=\"\",\"\",NETWORKDAYS.INTL(Tableau6[[#This Row],[Date ]],Tableau6[[#This Row],[Date_ Resolution]],11,11)&\" Jr\")","v":""}]
[null,null,null,{"$f":"IFERROR(VLOOKUP(Tableau6[[#This Row],[Typologie ]],Tableau1[],2,0),\"\")","v":""},null,null,null,null,null,null,null,null,null,null,null,null,{"$f":"IF(Tableau6[[#This Row],[Date_ Resolution]]=\"\",\"\",NETWORKDAYS.INTL(Tableau6[[#This Row],[Date ]],Tableau6[[#This Row],[Date_ Resolution]],11,11)&\" Jr\")","v":""}]
[null,null,null,{"$f":"IFERROR(VLOOKUP(Tableau6[[#This Row],[Typologie ]],Tableau1[],2,0),\"\")","v":""},null,null,null,null,null,null,null,null,null,null,null,null,{"$f":"IF(Tableau6[[#This Row],[Date_ Resolution]]=\"\",\"\",NETWORKDAYS.INTL(Tableau6[[#This Row],[Date ]],Tableau6[[#This Row],[Date_ Resolution]],11,11)&\" Jr\")","v":""}]
[null,null,null,{"$f":"IFERROR(VLOOKUP(Tableau6[[#This Row],[Typologie ]],Tableau1[],2,0),\"\")","v":""},null,null,null,null,null,null,null,null,null,null,null,null,{"$f":"IF(Tableau6[[#This Row],[Date_ Resolution]]=\"\",\"\",NETWORKDAYS.INTL(Tableau6[[#This Row],[Date ]],Tableau6[[#This Row],[Date_ Resolution]],11,11)&\" Jr\")","v":""}]
[null,null,null,{"$f":"IFERROR(VLOOKUP(Tableau6[[#This Row],[Typologie ]],Tableau1[],2,0),\"\")","v":""},null,null,null,null,null,null,null,null,null,null,null,null,{"$f":"IF(Tableau6[[#This Row],[Date_ Resolution]]=\"\",\"\",NETWORKDAYS.INTL(Tableau6[[#This Row],[Date ]],Tableau6[[#This Row],[Date_ Resolution]],11,11)&\" Jr\")","v":""}]
[null,null,null,{"$f":"IFERROR(VLOOKUP(Tableau6[[#This Row],[Typologie ]],Tableau1[],2,0),\"\")","v":""},null,null,null,null,null,null,null,null,null,null,null,null,{"$f":"IF(Tableau6[[#This Row],[Date_ Resolution]]=\"\",\"\",NETWORKDAYS.INTL(Tableau6[[#This Row],[Date ]],Tableau6[[#This Row],[Date_ Resolution]],11,11)&\" Jr\")","v":""}]
[null,null,null,{"$f":"IFERROR(VLOOKUP(Tableau6[[#This Row],[Typologie ]],Tableau1[],2,0),\"\")","v":""},null,null,null,null,null,null,null,null,null,null,null,null,{"$f":"IF(Tableau6[[#This Row],[Date_ Resolution]]=\"\",\"\",NETWORKDAYS.INTL(Tableau6[[#This Row],[Date ]],Tableau6[[#This Row],[Date_ Resolution]],11,11)&\" Jr\")","v":""}]
[null,null,null,{"$f":"IFERROR(VLOOKUP(Tableau6[[#This Row],[Typologie ]],Tableau1[],2,0),\"\")","v":""},null,null,null,null,null,null,null,null,null,null,null,null,{"$f":"IF(Tableau6[[#This Row],[Date_ Resolution]]=\"\",\"\",NETWORKDAYS.INTL(Tableau6[[#This Row],[Date ]],Tableau6[[#This Row],[Date_ Resolution]],11,11)&\" Jr\")","v":""}]
[null,null,null,{"$f":"IFERROR(VLOOKUP(Tableau6[[#This Row],[Typologie ]],Tableau1[],2,0),\"\")","v":""},null,null,null,null,null,null,null,null,null,null,null,null,{"$f":"IF(Tableau6[[#This Row],[Date_ Resolution]]=\"\",\"\",NETWORKDAYS.INTL(Tableau6[[#This Row],[Date ]],Tableau6[[#This Row],[Date_ Resolution]],11,11)&\" Jr\")","v":""}]
[null,null,null,{"$f":"IFERROR(VLOOKUP(Tableau6[[#This Row],[Typologie ]],Tableau1[],2,0),\"\")","v":""},null,null,null,null,null,null,null,null,null,null,null,null,{"$f":"IF(Tableau6[[#This Row],[Date_ Resolution]]=\"\",\"\",NETWORKDAYS.INTL(Tableau6[[#This Row],[Date ]],Tableau6[[#This Row],[Date_ Resolution]],11,11)&\" Jr\")","v":""}]
[null,null,null,{"$f":"IFERROR(VLOOKUP(Tableau6[[#This Row],[Typologie ]],Tableau1[],2,0),\"\")","v":""},null,null,null,null,null,null,null,null,null,null,null,null,{"$f":"IF(Tableau6[[#This Row],[Date_ Resolution]]=\"\",\"\",NETWORKDAYS.INTL(Tableau6[[#This Row],[Date ]],Tableau6[[#This Row],[Date_ Resolution]],11,11)&\" Jr\")","v":""}]
[null,null,null,{"$f":"IFERROR(VLOOKUP(Tableau6[[#This Row],[Typologie ]],Tableau1[],2,0),\"\")","v":""},null,null,null,null,null,null,null,null,null,null,null,null,{"$f":"IF(Tableau6[[#This Row],[Date_ Resolution]]=\"\",\"\",NETWORKDAYS.INTL(Tableau6[[#This Row],[Date ]],Tableau6[[#This Row],[Date_ Resolution]],11,11)&\" Jr\")","v":""}]
[null,null,null,{"$f":"IFERROR(VLOOKUP(Tableau6[[#This Row],[Typologie ]],Tableau1[],2,0),\"\")","v":""},null,null,null,null,null,null,null,null,null,null,null,null,{"$f":"IF(Tableau6[[#This Row],[Date_ Resolution]]=\"\",\"\",NETWORKDAYS.INTL(Tableau6[[#This Row],[Date ]],Tableau6[[#This Row],[Date_ Resolution]],11,11)&\" Jr\")","v":""}]
[null,null,null,{"$f":"IFERROR(VLOOKUP(Tableau6[[#This Row],[Typologie ]],Tableau1[],2,0),\"\")","v":""},null,null,null,null,null,null,null,null,null,null,null,null,{"$f":"IF(Tableau6[[#This Row],[Date_ Resolution]]=\"\",\"\",NETWORKDAYS.INTL(Tableau6[[#This Row],[Date ]],Tableau6[[#This Row],[Date_ Resolution]],11,11)&\" Jr\")","v":""}]
[null,null,null,{"$f":"IFERROR(VLOOKUP(Tableau6[[#This Row],[Typologie ]],Tableau1[],2,0),\"\")","v":""},null,null,null,null,null,null,null,null,null,null,null,null,{"$f":"IF(Tableau6[[#This Row],[Date_ Resolution]]=\"\",\"\",NETWORKDAYS.INTL(Tableau6[[#This Row],[Date ]],Tableau6[[#This Row],[Date_ Resolution]],11,11)&\" Jr\")","v":""}]

{"sheet":"Don't delete","index":2,"n_rows":129,"n_cols":15,"rows_kept":129,"cut":false,"hidden":false,"merged":[]}
[]
[null,"Typologie","Code",null,"Services ",null,"Equipements ",null,"Requetes ",null,"Catégories ",null,"Types",null,"Statuts "]
[null,"Back Office ","RCBAO",null,"Lte ",null,"Box Lte",null,"Informations ",null,"Couverture",null,"Autre",null,"En cours"]
[null,"Direction Générale","RCDG",null,"Cdma",null,"Mifi Lte",null,"Plaintes",null,"Details_Compte",null,"MSISDN",null,"Fermé"]
[null,"Front Office ","RCFRO",null,"Wimax",null,"Sim Lte ",null,"Support_Technique",null,"Détails_Prix",null,"Recharge",null,"Ouvert"]
[null,"Shop Bastos","SSBAS",null,null,null,"Phone Lte ",null,null,null,"Points_de_vente",null,"Solde "]
[null,"Shop Essos","SSESS",null,null,null,null,null,null,null,"Produits_Services",null,"Transfert"]
[null,"Shop Peyrissac","SSPEY",null,null,null,"Box Wimax ",null,null,null,"Promotion"]
[null,"Showroom Akwa","SRCSP",null,null,null,null,null,null,null,"Shorts_codes",null,"Details_Technologies"]
[null,"Showroom Bafoussam","SRBAF",null,null,null,"C2",null,null,null,null,null,"Détails_équipements"]
[null,"Showroom Bonamoussadi","SRBDI",null,null,null,"GC318",null,null,null,"Configuration",null,"Détails_Produits"]
[null,"Showroom Bonanjo","SRDHL",null,null,null,"Sim Cdma",null,null,null,"Outage",null,"Informations_Recharges"]
[null,"Showroom Garoua ","SRGAR",null,null,null,null,null,null,null,"Problème_appel",null,"Usage"]
[null,"Showroom Yaounde","SRAVK",null,null,null,null,null,null,null,"Problème_Connexion",null,"Wifi"]
[null,null,null,null,null,null,null,null,null,null,"Problème_SMS"]
[null,null,null,null,null,null,null,null,null,null,"Test",null,"Hors Réseau"]
[null,null,null,null,null,null,null,null,null,null,null,null,"Test de Couverture"]
[null,null,null,null,null,null,null,null,null,null,"Batterie",null,"Zone de couverture"]
[null,null,null,null,null,null,null,null,null,null,"Facture "]
[null,null,null,null,null,null,null,null,null,null,"Login_indisponible",null,"Activation"]
[null,null,null,null,null,null,null,null,null,null,"Problème_activation",null,"Details des paramètres de connexion"]
[null,null,null,null,null,null,null,null,null,null,"Problème_Compte",null,"Information de compte"]
[null,null,null,null,null,null,null,null,null,null,"Problème_volume_données"]
[null,null,null,null,null,null,null,null,null,null,"Problème_Recharge",null,"Promotions en cours"]
[null,null,null,null,null,null,null,null,null,null,"Service_Client"]
[null,null,null,null,null,null,null,null,null,null,"Sim_Bloqué"]
[null,null,null,null,null,null,null,null,null,null,"Sim_Inactive",null,"Facture"]
[null,null,null,null,null,null,null,null,null,null,"Téléphone_ou_SIM_égarée",null,"Frequence"]
[null,null,null,null,null,null,null,null,null,null,"Téléphone_bloqué",null,"Prix"]
[null,null,null,null,null,null,null,null,null,null,"Vitesse",null,"Reconduire SIM"]
[null,null,null,null,null,null,null,null,null,null,"Téléphone /Sim/ Modem défectueux "]
[null,null,null,null,null,null,null,null,null,null,null,null,"Showroom"]
[null,null,null,null,null,null,null,null,null,null,null,null,"adresse distributeur"]
[null,null,null,null,null,null,null,null,null,null,null,null,"call box"]
[null,null,null,null,null,null,null,null,null,null,null,null,"Partenaire"]
[]
[null,null,null,null,null,null,null,null,null,null,null,null,"émission"]
[null,null,null,null,null,null,null,null,null,null,null,null,"Réception "]
[null,null,null,null,null,null,null,null,null,null,null,null,"Réception & émission"]
[]
[null,null,null,null,null,null,null,null,null,null,null,null,"émission"]
[null,null,null,null,null,null,null,null,null,null,null,null,"Réception "]
[null,null,null,null,null,null,null,null,null,null,null,null,"Réception & émission"]
[]
[null,null,null,null,null,null,null,null,null,null,null,null,"Logiciel"]
[null,null,null,null,null,null,null,null,null,null,null,null,"Equipements"]
[null,null,null,null,null,null,null,null,null,null,null,null,"Réseau"]
[]
[null,null,null,null,null,null,null,null,null,null,null,null,"Echec de connexion"]
[null,null,null,null,null,null,null,null,null,null,null,null,"Led Rouge de la clé"]
[null,null,null,null,null,null,null,null,null,null,null,null,"Led Wimax éteint quand le modem allumé"]
[null,null,null,null,null,null,null,null,null,null,null,null,"Leds instable du Modem"]
[null,null,null,null,null,null,null,null,null,null,null,null,"Leds stables mais pas d'accès à internet"]
[null,null,null,null,null,null,null,null,null,null,null,null,"Pas_de_signal"]
[null,null,null,null,null,null,null,null,null,null,null,null,"Réseau_Hors_Service"]
[null,null,null,null,null,null,null,null,null,null,null,null,"Micro- coupures "]
[]
[null,null,null,null,null,null,null,null,null,null,null,null,"Test demande"]
[]
[null,null,null,null,null,null,null,null,null,null,null,null,"BTS HS"]
[null,null,null,null,null,null,null,null,null,null,null,null,"Problème liens Camtel"]
[null,null,null,null,null,null,null,null,null,null,null,null,"Problème liens MTN"]
[null,null,null,null,null,null,null,null,null,null,null,null,"Problème_électrique"]
[null,null,null,null,null,null,null,null,null,null,null,null,"Site Webs non disponibles"]
[]
[null,null,null,null,null,null,null,null,null,null,null,null,"Débit lent"]
[null,null,null,null,null,null,null,null,null,null,null,null,"Bande passante saturée"]
[]
[null,null,null,null,null,null,null,null,null,null,null,null,"Carte de recharge non valide"]
[null,null,null,null,null,null,null,null,null,null,null,null,"Client Hotline pas redirigé vers le CSC "]
[null,null,null,null,null,null,null,null,null,null,null,null,"Crédit disparu"]
[null,null,null,null,null,null,null,null,null,null,null,null,"Erreur de transfert"]
[null,null,null,null,null,null,null,null,null,null,null,null,"facturation incorrecte"]
[null,null,null,null,null,null,null,null,null,null,null,null,"Forfait non disponible"]
[null,null,null,null,null,null,null,null,null,null,null,null,"Page de crédit expiré continue à apparaitre"]
[null,null,null,null,null,null,null,null,null,null,null,null,"Credit expire vite "]
[null,null,null,null,null,null,null,null,null,null,null,null,"Perte de crédit"]
[null,null,null,null,null,null,null,null,null,null,null,null,"Recharge non souscrit"]
[null,null,null,null,null,null,null,null,null,null,null,null,"Bonus indisponible "]
[null,null,null,null,null,null,null,null,null,null,null,null,"Recharges indisponibles "]
[null,null,null,null,null,null,null,null,null,null,null,null,"MAJ du quotat journalier"]
[null,null,null,null,null,null,null,null,null,null,null,null,"Quota Bowi # Quota CSC"]
[null,null,null,null,null,null,null,null,null,null,null,null,"Quota expiré rapidement"]
[null,null,null,null,null,null,null,null,null,null,null,null,"Subscription Queueing issue"]
[null,null,null,null,null,null,null,null,null,null,null,null,"Usage Incorrect des données"]
[]
[null,null,null,null,null,null,null,null,null,null,null,null,"CsC indisponible"]
[null,null,null,null,null,null,null,null,null,null,null,null,"CSC indisponible hotline"]
[null,null,null,null,null,null,null,null,null,null,null,null,"login et mot de passe incorrect"]
[null,null,null,null,null,null,null,null,null,null,null,null,"Mot de passe impossible à changer"]
[]
[null,null,null,null,null,null,null,null,null,null,null,null,"Facture non reçu"]
[null,null,null,null,null,null,null,null,null,null,null,null,"Compte bloqué avec facture payée"]
[null,null,null,null,null,null,null,null,null,null,null,null,"Facture incorrecte"]
[]
[null,null,null,null,null,null,null,null,null,null,null,null,"CSC non disponible"]
[null,null,null,null,null,null,null,null,null,null,null,null,"Mauvais service Téléconseiller"]
[null,null,null,null,null,null,null,null,null,null,null,null,"Pas de rappel"]
[null,null,null,null,null,null,null,null,null,null,null,null,"RDV non respecté"]
[]
[null,null,null,null,null,null,null,null,null,null,null,null,"Notification envoyée vers un compte incorrect"]
[null,null,null,null,null,null,null,null,null,null,null,null,"Notification non reçue"]
[null,null,null,null,null,null,null,null,null,null,null,null,"Paramètre de connexion incorrecte"]
[null,null,null,null,null,null,null,null,null,null,null,null,"Paramètre de connexion non reçu"]
[]
[null,null,null,null,null,null,null,null,null,null,null,null,"Activation incomplète"]
[null,null,null,null,null,null,null,null,null,null,null,null,"Activation sans Identification"]
[null,null,null,null,null,null,null,null,null,null,null,null,"Equipement non activé"]
[null,null,null,null,null,null,null,null,null,null,null,null,"MAC adresse incorrecte"]
[]
[null,null,null,null,null,null,null,null,null,null,null,null,"Activation incomplète"]
[null,null,null,null,null,null,null,null,null,null,null,null,"Activation sans Identification"]
[null,null,null,null,null,null,null,null,null,null,null,null,"ICC incorrecte"]
[null,null,null,null,null,null,null,null,null,null,null,null,"SIM non activé"]
[]
[null,null,null,null,null,null,null,null,null,null,null,null,"PIN"]
[null,null,null,null,null,null,null,null,null,null,null,null,"PUK"]
[null,null,null,null,null,null,null,null,null,null,null,null,"Sim delete"]
[null,null,null,null,null,null,null,null,null,null,null,null,"SWAP"]
[]
[null,null,null,null,null,null,null,null,null,null,null,null,"perte de téléphone"]
[null,null,null,null,null,null,null,null,null,null,null,null,"PIN"]
[null,null,null,null,null,null,null,null,null,null,null,null,"PUK"]
[null,null,null,null,null,null,null,null,null,null,null,null,"Téléphone bloqué"]
[null,null,null,null,null,null,null,null,null,null,null,null,"Perte de Résau "]
[]
[null,null,null,null,null,null,null,null,null,null,null,null,"batterie défectueuse"]
[]
[null,null,null,null,null,null,null,null,null,null,null,null,"Reconduire SIM"]